Workbook

Sheet Menu
A5: Serviceability Calculator
A6: Version 1.19 (1 April 2024)
A21: ='Linked Picture'!J3 -> The information contained in this calculator is provided by ORDE Financial Pty Limited ACN 634 779 990 Australian Credit Licence 522079 and ORDE Capital Management Limited ACN 636 165 378 Australian Financial Services Licence 523150 Australian Credit Licence 523150 for illustrative purposes only and should not be regarded as a prediction, or as personal advice. Calculations are not forecasts or projections but is a tool that may assist you to make your own projections. The calculator is not intended to be a substitute for professional advice. The information in this calculator does not constitute an offer to lend, or imply the product is suitable for clients. Before acting on this general information, your client must consider its appropriateness having regard to their own objectives, financial situation and need and also seek independent financial, legal and taxation advice. No guarantee, warranty, or representation is given or implied as to the reliability or accuracy of the information use to compile each index or each calculation. ORDE Financial specifically disclaims any liability for any direct, indirect, incidental, consequential, or special damages or for any loss arising out of or in any way connected with the access to, reliance on, or use of this calculator.

Sheet ResidentialGuide (hidden)
A6: User Guide
A8: Residential Serviceability Calculator
A9: Application Name: | B9: Enter the applicants name
A10: Application #: | B10: Enter the application number (if known)
A12: Income Details
A13: Applicant Details:
A14: Heading: | B14: Able to amend the headings for 'Applicant 1', 'Applicant 2', etc to the actual applicant name.
A15: Status: | B15: Select the relevant household relationship status option from the dropdown box.
B16: Is the applicant Individual (Single), Individual (Couple), or a Company
A17: Household: | B17: Enter the household number that the appliant is a member of. If there is more than one applicant and they reside in separate households (and will continue to do so after settlement), enter 1, 2 and/or 3 respectively.
A20: Individual: | B20: For individual applicants
A21: HECS / HELP Debt: | B21: If relevant, select Yes from the dropdown box, otherwise leave as No
A22: Gross Annual Income | B22: If a PAYG individual, enter their gross annual income figure (pre-tax, excluding employer superannuation).
B23: If a Self-Employed individual, enter their net profit before tax figure including allowable add-backs e.g. depreciation
A24: Annual Non-Taxable Income: | B24: Enter the individuals annual non-taxable income (for example, government benefit, Family A&B payment. Some industries provide a portion of salary as non-taxable)
A26: Annual Gross Rental Income: | B26: Enter the individuals share of gross rental income from investment properties (existing and proposed).
B27: (The calculator will adopt 80% of the gross rental figure).
A28: Annual Investment Property Interest: | B28: Negative gearing. Enter the annual interest amount for existing and proposed investment property loans.
A29: Annual Investment Property utilities, rates & costs: | B29: Enter the current and proposed investment property costs (12x declared Investment Property Costs in declared living expenses)
A31: Company: | B31: For Company applicants
A32: NPBT: | B32: Enter the annual company Net Profit Before Tax (after all company expenses have been accounted for)
A33: Addbacks: | B33: Acceptable Addbacks:
B34: + Depreciation amount from the recent company Financial Statements.
B35: + Annual interest on an existing company loan being refinanced with this ORDE loan, or has or will be repaid prior to settlement.
B37: + One off expenses which can be verified as non-recurring.
A38: Annual Gross Rental Income (not included in NPBT): | B38: New / proposed rental income to be received by the company.
A39: Living Expenses (Per Month): (*non-HEM expenses) | B39: If there is more than one household, enter the living expenses for each relevant household.
A40: Dependents | B40: Enter the number of dependents for each relevant household.
A41: Primary Residence property utilities, rates & costs | B41: Council rates, water rates, utilities, land tax, property maintenance, furnishings.
A42: Groceries | B42: Groceries (food and non-alcoholic beverages), toiletries, cleaning products.
A43: Clothing & Personal Care | B43: Clothing, footwear, personal care products, cosmetics, hairdressers.
A44: Transport | B44: Fuel, registration, vehicle maintenance, parking, tolls, public transport, ride share.
A45: Medical & Health | B45: General Practitioners, Medical Specialists, Optical, Dental, Pharmacy
A46: Education (excluding Private School Fees) | B46: Public school fees, books, uniforms, camps, etc. Training fees, higher education, vocational training.
A47: Education - Private School Fees * | B47: Private school fees and costs.
A48: Childcare | B48: Day Care, Kindergarten, Baby Sitting, etc (Childcare payments after rebate).
A49: Insurance (excluding Private Health, Life and IP) | B49: Home, contents, vehicle insurance, pet, general property insurance
A50: Private Health, Life and IP Insurance * | B50: Private Health, Life, Total Permanent Disability (TPD), Income Protection (IP) (not included in super fund)
A51: Telephone, Internet, Pay TV & Media Streaming | B51: Telephone, internet, pay TV, media streaming (netflix, spotify, etc)
A52: Recreation & Entertainment | B52: Eating out, takeaway food and drinks, alcohol, tobacco products, concerts, movies, gambling, purchase and hire of recreational / sports items, holidays.
A54: Memberships | B54: Gym, sporting clubs, subscriptions.
A55: Non-Complusory Superannuation * | B55: Additonal superannuation contributions.
A56: Maintenance * | B56: Child support for non-dependent children, maintenance payments to ex-partners.
A57: Other Living Expenses | B57: All other expenses not accounted for in above categories.
A58: Other Commitments
A59: For owner occupied and investment loans, enter the current outstanding balance and the actual monthly repayment amount e.g. interest only or principal and interest.
A60: For loans which are in advance / have redraw available, enter the total debt that the loan can be drawn up to (balance + redraw).
A61: For Lines of Credit / Overdrafts, enter the approved facility limit and the contracted monthly repayment amount.
A62: For Personal Loans, enter the current outstanding balance and the monthly repayment amount.
A63: For Credit Cards, enter the approved card limit. (The calculator will adopt 3.8% of the total limit as a repayment amount, regardless of the outstanding balance).
A64: Rent / Board: If the applicant is currently residing in a rental property and will continue to do so after settlement, enter the current monthly rental expense.
A65: Loan Details
A66: New Loan Amount | B66: Enter the proposed new ORDE Financial loan amount
A67: Interest Rate: | B67: Enter the relevant product interest rate (as per Product Guide)
A68: Repayment Type: | B68: Select relevant repayment type - Amortising or Bullet
B69: - Amortising: Principal (post Interest Only period) repaid over the life of the loan
B70: - Bullet: Interest Only for the life of the loan, Principal to be repaid at loan maturity
A71: Loan Term (Years): | B71: Enter the requested Loan Term
A72: Interest Only Term (Years): | B72: If seeking an initial interest only period, enter the number of years

Sheet SMSFGuide (hidden)
A6: User Guide
A8: SMSF Serviceability Calculator
A9: Application Name: | B9: Enter the applicants name
A10: Application #: | B10: Enter the application number (if known)
A12: Income Details
A13: Applicant Details:
A14: Heading: | B14: Able to amend the headings for 'Member 1', 'Member 2', etc to the actual SMSF Members name.
A15: Gross Annual Income: | B15: Enter the gross annual income amount for each SMSF member
A16: Compulsory Superannuation Contributions: | B16: Enter the compulsory superannuation contribution amount the SMSF member receives
A17: Superannuation Contributions (%) | B17: Will auto calculate from the figures entered above.
A18: Salary Sacrifice Contributions | B18: Enter the amount of contributions the SMSF members makes via salary sacrifice
A19: Non-Concessional Contributions | B19: Enter the amount of after tax superannuation contributions
A21: SMSF Details:
A22: Annual Gross Rental Income (Security) | B22: Enter the annual gross rental income derived from the property offered as secruity.
A23: Annual Gross Rental Income (Other) | B23: Enter the annual gross rental income derived from existing SMSF investment properties.
A24: Other SMSF Assets | B24: Enter the indicative post-settlement SMSF Cash Management Account residual balance. (Adopts a 3% return)
A25: SMSF Ongoing Expenses (Annual)
A26: Total Ongoing SMSF Expenses Declared | B26: Enter the amount of ongoing SMSF expenses (accounting, administrative, property, insurances, etc)
B27: *A minimum of $2,500 will apply. Where the SMSF has existing assets, the SMSF financials are to be
B28: reviewed to confirm the ongoing expenses.
A29: Other Commitments
A30: Investment Property 1 | B30: If the SMSF has an existing loan, enter the loan mount, repayment amount and interest rate
A31: Investment Property 2 | B31: If the SMSF has an existing loan, enter the loan mount, repayment amount and interest rate
A32: Loan Details
A33: New Loan Amount | B33: Enter the proposed new ORDE Financial loan amount
A34: Interest Rate: | B34: Enter the relevant product interest rate (as per Product Guide)
A35: Repayment Type: | B35: Select relevant repayment type - Amortising or Bullet
B36: - Amortising: Principal (post Interest Only period) repaid over the life of the loan
B37: - Bullet: Interest Only for the life of the loan, Principal to be repaid at loan maturity
A38: Loan Term (Years): | B38: Enter the requested Loan Term
A39: Interest Only Term (Years): | B39: If seeking an initial interest only period, enter the number of years

Sheet CommercialGuide (hidden)
A6: User Guide
A8: Commercial Serviceability Calculator
A9: Application Name: | B9: Enter the applicants name
A10: Application #: | B10: Enter the application number (if known)
A12: Income Details
A13: Applicant Details:
A14: Heading: | B14: Able to amend the headings for 'Applicant 1', 'Applicant 2', etc to the actual applicant name.
A15: Status: | B15: Select the relevant household relationship status option from the dropdown box.
B16: Is the applicant Individual (Single), Individual (Couple), or a Company
A17: Household: | B17: Enter the household number that the appliant is a member of. If there is more than one applicant and they reside in separate households (and will continue to do so after settlement), enter 1, 2 and/or 3 respectively.
A20: Individual: | B20: For individual applicants
A21: HECS / HELP Debt: | B21: If relevant, select Yes from the dropdown box, otherwise leave as No
A22: Gross Annual Income | B22: If a PAYG individual, enter their gross annual income figure (pre-tax, excluding employer superannuation).
B23: If a Self-Employed individual, enter their net profit before tax figure including allowable add-backs e.g. depreciation.
A24: Annual Non-Taxable Income: | B24: Enter the individuals annual non-taxable income (for example, government benefit, Family A&B payment. Some industries provide a portion of salary as non-taxable)
A26: Annual Gross Rental Income: | B26: Enter the individuals share of gross rental income from investment properties (existing and proposed).
B27: (The calculator will adopt 80% of the gross rental figure).
A28: Investment Property Interest Expense: | B28: Negative gearing. Enter the annual interest amount for existing and proposed investment property loans.
A29: Investment Property utilities, rates & costs: | B29: Enter the current and proposed investment property costs (12x declared Investment Property Costs in declared living expenses)
A31: Company: | B31: For Company applicants
A32: Company NPBT: | B32: Enter the annual company Net Profit Before Tax (after all company expenses have been accounted for)
A33: Addbacks - Interest Paid: | B33: Annual interest on an existing company loan being refinanced with this ORDE loan, or has or will be repaid prior to settlement.
A35: Addbacks - Other | B35: Depreciation amount from the recent company Financial Statements.
B36: One off expenses which can be verified as non-recurring.
A37: Annual Gross Rental Income (not included in NPBT): | B37: New / proposed rental income to be received by the company.
A38: Living Expenses (Per Month): (*non-HEM Expenses) | B38: If there is more than one household, enter the living expenses for each relevant household.
A39: Dependents | B39: Enter the number of dependents for each relevant household.
A40: Primary Residence property utilities, rates & costs | B40: Council rates, water rates, utilities, land tax, property maintenance, furnishings.
A41: Groceries | B41: Groceries (food and non-alcoholic beverages), toiletries, cleaning products.
A42: Clothing & Personal Care | B42: Clothing, footwear, personal care products, cosmetics, hairdressers.
A43: Transport | B43: Fuel, registration, vehicle maintenance, parking, tolls, public transport, ride share.
A44: Medical & Health | B44: General Practitioners, Medical Specialists, Optical, Dental, Pharmacy
A45: Education (excluding Private School Fees) | B45: Public school fees, books, uniforms, camps, etc. Training fees, higher education, vocational training.
A46: Education - Private School Fees * | B46: Private school fees and costs.
A47: Childcare | B47: Day Care, Kindergarten, Baby Sitting, etc (Childcare payments after rebate).
A48: Insurance (excluding Private Health, Life and IP) | B48: Home, contents, vehicle insurance, pet, general property insurance
A49: Private Health, Life and IP Insurance * | B49: Private Health, Life, Total Permanent Disability (TPD), Income Protection (IP) (not included in super fund)
A50: Telephone, Internet, Pay TV & Media Streaming | B50: Telephone, internet, pay TV, media streaming (netflix, spotify, etc)
A51: Recreation & Entertainment | B51: Eating out, takeaway food and drinks, alcohol, tobacco products, concerts, movies, gambling, purchase and hire of recreational / sports items, holidays.
A53: Memberships | B53: Gym, sporting clubs, subscriptions.
A54: Non-Complusory Superannuation * | B54: Additonal superannuation contributions.
A55: Maintenance * | B55: Child support for non-dependent children, maintenance payments to ex-partners.
A56: Other Living Expenses | B56: All other expenses not accounted for in above categories.
A57: Other Commitments
A58: For owner occupied and investment loans, enter the current outstanding balance and the actual monthly repayment amount e.g. interest only or principal and interest.
A59: For loans which are in advance / have redraw available, enter the total debt that the loan can be drawn up to (balance + redraw).
A60: For Lines of Credit / Overdrafts, enter the approved facility limit and the contracted monthly repayment amount.
A61: For Personal Loans, enter the current outstanding balance and the monthly repayment amount.
A62: For Credit Cards, enter the approved card limit. (The calculator will adopt 3.8% of the total limit as a repayment amount, regardless of the outstanding balance).
A63: Rent / Board: If the applicant is currently residing in a rental property and will continue to do so after settlement, enter the current monthly rental expense.
A64: Loan Details
A65: New Loan Amount | B65: Enter the proposed new ORDE Financial loan amount
A66: Interest Rate: | B66: Enter the relevant product interest rate (as per Product Guide)
A67: Repayment Type: | B67: Select relevant repayment type - Amortising or Bullet
B68: - Amortising: Principal (post Interest Only period) repaid over the life of the loan
B69: - Bullet: Interest Only for the life of the loan, Principal to be repaid at loan maturity
A70: Loan Term (Years): | B70: Enter the requested Loan Term
A71: Interest Only Term (Years): | B71: If seeking an initial interest only period, enter the number of years

Sheet LeaseDocGuide (hidden)
A6: User Guide
A8: Lease Doc Serviceability Calculator
A9: Application Name: | B9: Enter the applicants name
A10: Application #: | B10: Enter the application number (if known)
A12: Loan Details
A13: Monthly Net Rental Income (Security): | B13: Enter the lower of the Net Market Rental (as confirmed by valuation) or the agreed Lease Income
A14: New Loan Amount | B14: Enter the proposed new ORDE Financial loan amount
A15: Repayment Type: | B15: Select Amortising or Bullet
B16: - Amortising: Principal (post Interest Only period) repaid over the life of the loan
B17: - Bullet: Interest Only for the life of the loan, Principal to be repaid at loan maturity
A18: Interest Rate: | B18: Enter the relevant product interest rate (as per Product Guide)
A19: Loan Term (Years): | B19: Enter the requested Loan Term
A20: Interest Only Term (Years): | B20: If seeking an initial interest only period, enter the number of years

Sheet Residential (hidden)
A3: Residential Serviceability Calculator | K3: =Menu!A6 -> Version 1.19 (1 April 2024)
A5: Application Name: | I5: Application #:
A7: Income Details
A9: Applicant Details: | C9: Applicant 1 | E9: Applicant 2 | G9: Applicant 3 | I9: Applicant 4 | K9: Applicant 5 | M9: Applicant 6
A10: Status | C10: n/a | E10: n/a | G10: n/a | I10: n/a | K10: n/a | M10: n/a
A11: Household
C12: =C123 -> 
A13: Individual
A14: HECS/HELP Debt | C14: No | E14: No | G14: No | I14: No | K14: No | M14: No
A15: Gross Annual Income | C15: 0 | E15: 0 | G15: 0 | I15: 0 | K15: 0 | M15: 0
A16: Annual Non-Taxable Income | C16: 0 | E16: 0 | G16: 0 | I16: 0 | K16: 0 | M16: 0
A18: Annual Gross Rental Income | C18: 0 | E18: 0 | G18: 0 | I18: 0 | K18: 0 | M18: 0
A19: Annual Investment Property Interest (Negative Gearing) | C19: 0 | E19: 0 | G19: 0 | I19: 0 | K19: 0 | M19: 0
A20: Annual Investment property utilities, rates & costs | C20: 0 | E20: 0 | G20: 0 | I20: 0 | K20: 0 | M20: 0
A21: Company
A22: NPBT | C22: 0 | E22: 0 | G22: 0 | I22: 0 | K22: 0 | M22: 0
A23: Addbacks | C23: 0 | E23: 0 | G23: 0 | I23: 0 | K23: 0 | M23: 0
A24: Annual Gross Rental Income (not included in NPBT) | C24: 0 | E24: 0 | G24: 0 | I24: 0 | K24: 0 | M24: 0
C25: =((C15+C16)/12)+((C22+C23+(C24))/12)+(C18/12) -> 0 | E25: =((E15+E16)/12)+((E22+E23+(E24))/12)+(E18/12) -> 0 | G25: =((G15+G16)/12)+((G22+G23+(G24))/12)+(G18/12) -> 0 | I25: =((I15+I16)/12)+((I22+I23+(I24))/12)+(I18/12) -> 0 | K25: =((K15+K16)/12)+((K22+K23+(K24))/12)+(K18/12) -> 0 | M25: =((M15+M16)/12)+((M22+M23+(M24))/12)+(M18/12) -> 0
A26: Total Income (Monthly) | C26: =((C15+C16)/12)+((C22+C23+(C24*'Tax Tables'!$D$1))/12)+(C18/12*'Tax Tables'!$D$1) -> 0 | E26: =((E15+E16)/12)+((E22+E23+(E24*'Tax Tables'!$D$1))/12)+(E18/12*'Tax Tables'!$D$1) -> 0 | G26: =((G15+G16)/12)+((G22+G23+(G24*'Tax Tables'!$D$1))/12)+(G18/12*'Tax Tables'!$D$1) -> 0 | I26: =((I15+I16)/12)+((I22+I23+(I24*'Tax Tables'!$D$1))/12)+(I18/12*'Tax Tables'!$D$1) -> 0 | K26: =((K15+K16)/12)+((K22+K23+(K24*'Tax Tables'!$D$1))/12)+(K18/12*'Tax Tables'!$D$1) -> 0 | M26: =((M15+M16)/12)+((M22+M23+(M24*'Tax Tables'!$D$1))/12)+(M18/12*'Tax Tables'!$D$1) -> 0
A27: Net Income (Monthly) | C27: =IF(C10="Company",C26-('Tax Tables'!H42/12)-((C20)/12),IF(C14="No",C26-('Tax Tables'!H42/12)-((C22+(C24*'Tax Tables'!$D$1)+C23)*'Tax Tables'!$D$2/12)-((C20)/12),C26-('Tax Tables'!H65/12)-((C22+(C24*'Tax Tables'!$D$1)+C23)*'Tax Tables'!$D$2/12)-((C20)/12))) -> 0 | E27: =IF(E10="Company",E26-('Tax Tables'!J42/12)-((E20)/12),IF(E14="No",E26-('Tax Tables'!J42/12)-((E22+(E24*'Tax Tables'!$D$1)+E23)*'Tax Tables'!$D$2/12)-((E20)/12),E26-('Tax Tables'!J65/12)-((E22+(E24*'Tax Tables'!$D$1)+E23)*'Tax Tables'!$D$2/12)-((E20)/12))) -> 0 | G27: =IF(G10="Company",G26-('Tax Tables'!L42/12)-((G20)/12),IF(G14="No",G26-('Tax Tables'!L42/12)-((G22+(G24*'Tax Tables'!$D$1)+G23)*'Tax Tables'!$D$2/12)-((G20)/12),G26-('Tax Tables'!L65/12)-((G22+(G24*'Tax Tables'!$D$1)+G23)*'Tax Tables'!$D$2/12)-((G20)/12))) -> 0 | I27: =IF(I10="Company",I26-('Tax Tables'!N42/12)-((I20)/12),IF(I14="No",I26-('Tax Tables'!N42/12)-((I22+(I24*'Tax Tables'!$D$1)+I23)*'Tax Tables'!$D$2/12)-((I20)/12),I26-('Tax Tables'!N65/12)-((I22+(I24*'Tax Tables'!$D$1)+I23)*'Tax Tables'!$D$2/12)-((I20)/12))) -> 0 | K27: =IF(K10="Company",K26-('Tax Tables'!P42/12)-((K20)/12),IF(K14="No",K26-('Tax Tables'!P42/12)-((K22+(K24*'Tax Tables'!$D$1)+K23)*'Tax Tables'!$D$2/12)-((K20)/12),K26-('Tax Tables'!P65/12)-((K22+(K24*'Tax Tables'!$D$1)+K23)*'Tax Tables'!$D$2/12)-((K20)/12))) -> 0 | M27: =IF(M10="Company",M26-('Tax Tables'!R42/12)-((M20)/12),IF(M14="No",M26-('Tax Tables'!R42/12)-((M22+(M24*'Tax Tables'!$D$1)+M23)*'Tax Tables'!$D$2/12)-((M20)/12),M26-('Tax Tables'!R65/12)-((M22+(M24*'Tax Tables'!$D$1)+M23)*'Tax Tables'!$D$2/12)-((M20)/12))) -> 0
A29: Living Expenses (Per Month) - All living expenses must be completed. Where an amount is $0, further explanation is required
A30: Household | E30: 1 | I30: 2 | M30: 3
A31: Household Status | E31: =IF(E30=$C$11,$C$10,IF(E30=$E$11,$E$10,IF(E30=$G$11,$G$10,IF(E30=$I$11,$I$10,IF(E30=$K$11,$K$10,IF(E30=$M$11,$M$10,"")))))) ->  | I31: =IF(I30=$C$11,$C$10,IF(I30=$E$11,$E$10,IF(I30=$G$11,$G$10,IF(I30=$I$11,$I$10,IF(I30=$K$11,$K$10,IF(I30=$M$11,$M$10,"")))))) ->  | M31: =IF(M30=$C$11,$C$10,IF(M30=$E$11,$E$10,IF(M30=$G$11,$G$10,IF(M30=$I$11,$I$10,IF(M30=$K$11,$K$10,IF(M30=$M$11,$M$10,"")))))) -> 
A32: Status ID | E32: =IFERROR(VLOOKUP(E31,List!$B$1:$C$5,2,FALSE),"") ->  | I32: =IFERROR(VLOOKUP(I31,List!$B$1:$C$5,2,FALSE),"") ->  | M32: =IFERROR(VLOOKUP(M31,List!$B$1:$C$5,2,FALSE),"") -> 
A33: Dependents | E33: =E43 -> 0 | I33: =I43 -> 0 | M33: =M43 -> 0
A34: HEMID | E34: =E32&E33 -> 0 | I34: =I32&I33 -> 0 | M34: =M32&M33 -> 0
A35: HouseholdIncome | E35: =(SUMIF($C$11:$M$11,E30,$C$26:$M$26)*12)-(SUMIF(C11:M11,E30,C19:M19))-(SUMIF(C11:M11,E30,C20:M20)) -> 0 | I35: =(SUMIF($C$11:$M$11,I30,$C$26:$M$26)*12)-(SUMIF(C11:M11,I30,C19:M19))-(SUMIF(C11:M11,I30,C20:M20)) -> 0 | M35: =(SUMIF($C$11:$M$11,M30,$C$26:$M$26)*12)-(SUMIF(C11:M11,M30,C19:M19))-(SUMIF(C11:M11,M30,C20:M20)) -> 0
A36: HEM | E36: =IFERROR(HLOOKUP(E35,HEM!$B$20:$P$21,2,TRUE)+1,"") -> 2 | I36: =IFERROR(HLOOKUP(I35,HEM!$B$20:$P$21,2,TRUE)+1,"") -> 2 | M36: =IFERROR(HLOOKUP(M35,HEM!$B$20:$P$21,2,TRUE)+1,"") -> 2
A37: HEM Amount | E37: =IFERROR(VLOOKUP(E34,HEM!$B$22:$P$37,Residential!E36,FALSE)*52/12,"") ->  | I37: =IFERROR(VLOOKUP(I34,HEM!$B$22:$P$37,Residential!I36,FALSE)*52/12,"") ->  | M37: =IFERROR(VLOOKUP(M34,HEM!$B$22:$P$37,Residential!M36,FALSE)*52/12,"") -> 
A38: Declared living expenses exculding non HEM | E38: =E45+E47+E48+E49+E50+E51+E53+E54+E56+E57+E58+E61 -> 0 | I38: =I45+I47+I48+I49+I50+I51+I53+I54+I56+I57+I58+I61 -> 0 | M38: =M45+M47+M48+M49+M50+M51+M53+M54+M56+M57+M58+M61 -> 0
E39: =IFERROR(E38/E37,"") ->  | I39: =IFERROR(I38/I37,"") ->  | M39: =IFERROR(M38/M37,"") -> 
A40: 0.15 | C40: =IFERROR(((E37)*(1+A40))+E52+E55+E60+E59,0) -> 0 | E40: =IFERROR(E63-E66,0) -> 0 | G40: =IFERROR(((I37)*(1+A40))+I52+I55+I60+I59,0) -> 0 | I40: =IFERROR(I63-I66,0) -> 0 | K40: =IFERROR(((M37)*(1+A40))+M52+M55+M60+M59,0) -> 0 | M40: =IFERROR(M63-M66,0) -> 0
E42: Household 1 | I42: Household 2 | M42: Household 3
C43: Dependents | E43: 0 | I43: 0 | M43: 0
A45: Primary Residence property utilities, rates & costs | E45: 0 | I45: 0 | M45: 0
A46: Investment property utilities, rates & costs * | E46: 0 | I46: 0 | M46: 0
A47: Groceries | E47: 0 | I47: 0 | M47: 0
A48: Clothing & Personal Care | E48: 0 | I48: 0 | M48: 0
A49: Transport | E49: 0 | I49: 0 | M49: 0
A50: Medical & Health | E50: 0 | I50: 0 | M50: 0
A51: Education (excluding Private School Fees) | E51: 0 | I51: 0 | M51: 0
A52: Education - Private School Fees * | E52: 0 | I52: 0 | M52: 0
A53: Childcare | E53: 0 | I53: 0 | M53: 0
A54: Insurance (excluding Private Health, Life and IP) | E54: 0 | I54: 0 | M54: 0
A55: Private Health, Life and IP Insurance * | E55: 0 | I55: 0 | M55: 0
A56: Telephone, Internet, Pay TV & Media Streaming | E56: 0 | I56: 0 | M56: 0
A57: Recreation & Entertainment | E57: 0 | I57: 0 | M57: 0
A58: Memberships (gym, sporting clubs etc) | E58: 0 | I58: 0 | M58: 0
A59: Non-Compulsory Superannuation * | E59: 0 | I59: 0 | M59: 0
A60: Maintenance * | E60: 0 | I60: 0 | M60: 0
A61: Other Living Expenses | E61: 0 | I61: 0 | M61: 0
A63: Total Monthly Living Expenses Declared (HEM & non-HEM) | E63: =SUM(E45:E61) -> 0 | I63: =SUM(I45:I61) -> 0 | M63: =SUM(M45:M61) -> 0
E64: =C127 ->  | I64: =E127 ->  | M64: =G127 -> 
A66: HEM Living Expense | E66: =E37 ->  | I66: =I37 ->  | M66: =M37 -> 
A67: Monthly Living Expenses Used | E67: =MAX(E37:E38)+E46+E52+E55+E60+E59 -> 0 | I67: =MAX(I37:I38)+I46+I52+I55+I60+I59 -> 0 | M67: =MAX(M37:M38)+M46+M52+M55+M60+M59 -> 0
A69: Other Commitments
C70: Household 1 / Company 1 | G70: Household 2 / Company 2 | K70: Household 3 / Company 3
C71: Debt / Limit | E71: Repayment | G71: Debt / Limit | I71: Repayment | K71: Debt / Limit | M71: Repayment
A72: Owner Occupied Property 1 | C72: 0 | D72: =IFERROR(RATE(360,SUM(E72),SUM(C72)*-1,0,0,0.1)*12,0) -> 0 | E72: 0 | F72: =IF((D72+List!$B$13)>=List!$B$16,(PMT((D72+List!$B$13)/12,360,SUM(Residential!C72),0,0)*-1)-SUM(E72),(PMT((List!$B$16)/12,360,SUM(Residential!C72),0,0)*-1)-SUM(E72)) -> 0 | G72: 0 | H72: =IFERROR(RATE(360,SUM(I72),SUM(G72)*-1,0,0,0.1)*12,0) -> 0 | I72: 0 | J72: =IF((H72+List!$B$13)>=List!$B$16,(PMT((H72+List!$B$13)/12,360,SUM(Residential!G72),0,0)*-1)-SUM(I72),(PMT((List!$B$16)/12,360,SUM(Residential!G72),0,0)*-1)-SUM(I72)) -> 0 | K72: 0 | L72: =IFERROR(RATE(360,SUM(M72),SUM(K72)*-1,0,0,0.1)*12,0) -> 0 | M72: 0 | N72: =IF((L72+List!$B$13)>=List!$B$16,(PMT((L72+List!$B$13)/12,360,SUM(Residential!K72),0,0)*-1)-SUM(M72),(PMT((List!$B$16)/12,360,SUM(Residential!K72),0,0)*-1)-SUM(M72)) -> 0
A73: Owner Occupied Property 2 | C73: 0 | D73: =IFERROR(RATE(360,SUM(E73),SUM(C73)*-1,0,0,0.1)*12,0) -> 0 | E73: 0 | F73: =IF((D73+List!$B$13)>=List!$B$16,(PMT((D73+List!$B$13)/12,360,SUM(Residential!C73),0,0)*-1)-SUM(E73),(PMT((List!$B$16)/12,360,SUM(Residential!C73),0,0)*-1)-SUM(E73)) -> 0 | G73: 0 | H73: 0 | I73: 0 | J73: =IF((H73+List!$B$13)>=List!$B$16,(PMT((H73+List!$B$13)/12,360,SUM(Residential!G73),0,0)*-1)-SUM(I73),(PMT((List!$B$16)/12,360,SUM(Residential!G73),0,0)*-1)-SUM(I73)) -> 0 | K73: 0 | L73: 0 | M73: 0 | N73: =IF((L73+List!$B$13)>=List!$B$16,(PMT((L73+List!$B$13)/12,360,SUM(Residential!K73),0,0)*-1)-SUM(M73),(PMT((List!$B$16)/12,360,SUM(Residential!K73),0,0)*-1)-SUM(M73)) -> 0
A74: Investment Property 1 | C74: 0 | D74: 0 | E74: 0 | F74: =IF((D74+List!$B$13)>=List!$B$16,(PMT((D74+List!$B$13)/12,360,SUM(Residential!C74),0,0)*-1)-SUM(E74),(PMT((List!$B$16)/12,360,SUM(Residential!C74),0,0)*-1)-SUM(E74)) -> 0 | G74: 0 | H74: 0 | I74: 0 | J74: =IF((H74+List!$B$13)>=List!$B$16,(PMT((H74+List!$B$13)/12,360,SUM(Residential!G74),0,0)*-1)-SUM(I74),(PMT((List!$B$16)/12,360,SUM(Residential!G74),0,0)*-1)-SUM(I74)) -> 0 | K74: 0 | L74: 0 | M74: 0 | N74: =IF((L74+List!$B$13)>=List!$B$16,(PMT((L74+List!$B$13)/12,360,SUM(Residential!K74),0,0)*-1)-SUM(M74),(PMT((List!$B$16)/12,360,SUM(Residential!K74),0,0)*-1)-SUM(M74)) -> 0
A75: Investment Property 2 | C75: 0 | D75: 0 | E75: 0 | F75: =IF((D75+List!$B$13)>=List!$B$16,(PMT((D75+List!$B$13)/12,360,SUM(Residential!C75),0,0)*-1)-SUM(E75),(PMT((List!$B$16)/12,360,SUM(Residential!C75),0,0)*-1)-SUM(E75)) -> 0 | G75: 0 | H75: 0 | I75: 0 | J75: =IF((H75+List!$B$13)>=List!$B$16,(PMT((H75+List!$B$13)/12,360,SUM(Residential!G75),0,0)*-1)-SUM(I75),(PMT((List!$B$16)/12,360,SUM(Residential!G75),0,0)*-1)-SUM(I75)) -> 0 | K75: 0 | L75: 0 | M75: 0 | N75: =IF((L75+List!$B$13)>=List!$B$16,(PMT((L75+List!$B$13)/12,360,SUM(Residential!K75),0,0)*-1)-SUM(M75),(PMT((List!$B$16)/12,360,SUM(Residential!K75),0,0)*-1)-SUM(M75)) -> 0
A76: Investment Property 3 | C76: 0 | D76: 0 | E76: 0 | F76: =IF((D76+List!$B$13)>=List!$B$16,(PMT((D76+List!$B$13)/12,360,SUM(Residential!C76),0,0)*-1)-SUM(E76),(PMT((List!$B$16)/12,360,SUM(Residential!C76),0,0)*-1)-SUM(E76)) -> 0 | G76: 0 | H76: 0 | I76: 0 | J76: =IF((H76+List!$B$13)>=List!$B$16,(PMT((H76+List!$B$13)/12,360,SUM(Residential!G76),0,0)*-1)-SUM(I76),(PMT((List!$B$16)/12,360,SUM(Residential!G76),0,0)*-1)-SUM(I76)) -> 0 | K76: 0 | L76: 0 | M76: 0 | N76: =IF((L76+List!$B$13)>=List!$B$16,(PMT((L76+List!$B$13)/12,360,SUM(Residential!K76),0,0)*-1)-SUM(M76),(PMT((List!$B$16)/12,360,SUM(Residential!K76),0,0)*-1)-SUM(M76)) -> 0
A77: Investment Property 4 | C77: 0 | D77: 0 | E77: 0 | F77: =IF((D77+List!$B$13)>=List!$B$16,(PMT((D77+List!$B$13)/12,360,SUM(Residential!C77),0,0)*-1)-SUM(E77),(PMT((List!$B$16)/12,360,SUM(Residential!C77),0,0)*-1)-SUM(E77)) -> 0 | G77: 0 | H77: 0 | I77: 0 | J77: =IF((H77+List!$B$13)>=List!$B$16,(PMT((H77+List!$B$13)/12,360,SUM(Residential!G77),0,0)*-1)-SUM(I77),(PMT((List!$B$16)/12,360,SUM(Residential!G77),0,0)*-1)-SUM(I77)) -> 0 | K77: 0 | L77: 0 | M77: 0 | N77: =IF((L77+List!$B$13)>=List!$B$16,(PMT((L77+List!$B$13)/12,360,SUM(Residential!K77),0,0)*-1)-SUM(M77),(PMT((List!$B$16)/12,360,SUM(Residential!K77),0,0)*-1)-SUM(M77)) -> 0
A78: Other Liabilities 1 | C78: 0 | E78: 0 | G78: 0 | I78: 0 | K78: 0 | M78: 0
A79: Other Liabilities 2 | C79: 0 | E79: 0 | G79: 0 | I79: 0 | K79: 0 | M79: 0
A80: Other Liabilities (Fixed) | C80: 0 | E80: 0 | G80: 0 | I80: 0 | K80: 0 | M80: 0
A81: Credit Card 1 | C81: 0 | E81: =C81*HEM!$C$1 -> 0 | G81: 0 | I81: =G81*HEM!$C$1 -> 0 | K81: 0 | M81: =K81*HEM!$C$1 -> 0
A82: Credit Card 2 | C82: 0 | E82: =C82*HEM!$C$1 -> 0 | G82: 0 | I82: =G82*HEM!$C$1 -> 0 | K82: 0 | M82: =K82*HEM!$C$1 -> 0
E83: =SUMIF(F72:F77,">0",F72:F77) -> 0 | I83: =SUMIF(J72:J77,">0",J72:J77) -> 0 | M83: =SUMIF(N72:N77,">0",N72:N77) -> 0
A84: Rent/Board | E84: 0 | I84: 0 | M84: 0
A86: TOTAL EXISTING COMMITMENTS | E86: =SUM(E72:E82)+E84 -> 0 | I86: =SUM(I72:I82)+I84 -> 0 | M86: =SUM(M72:M82)+M84 -> 0
A87: TOTAL ASSESSED EXISTING COMMITMENTS | E87: =E83+E86 -> 0 | I87: =I83+I86 -> 0 | M87: =M83+M86 -> 0
A89: Loan Details
A90: Application # | C90: App# 1 | E90: App# 2 | G90: App# 3 | I90: App# 4 | K90: App# 5 | M90: App# 6
A91: New Loan Amount | C91: 0 | E91: 0 | G91: 0 | I91: 0 | K91: 0 | M91: 0
A92: Repayment Type | C92: Amortising | E92: Amortising | G92: Amortising | I92: Amortising | K92: Amortising | M92: Amortising
A93: Loan Term (Years) | C93: 30 | E93: 30 | G93: 30 | I93: 30 | K93: 30 | M93: 30
A94: Interest Only Term (Years) | C94: 0 | E94: 0 | G94: 0 | I94: 0 | K94: 0 | M94: 0
A96: Interest Rate | C96: 0.05 | E96: 0.05 | G96: 0.05 | I96: 0.05 | K96: 0.05 | M96: 0.05
A97: Sensitivity | C97: =MAX(List!B15:B16)-C96 -> 0.02 | E97: =MAX(List!C15:C16)-E96 -> 0.02 | G97: =MAX(List!D15:D16)-G96 -> 0.02 | I97: =MAX(List!E15:E16)-I96 -> 0.02 | K97: =MAX(List!F15:F16)-K96 -> 0.02 | M97: =MAX(List!G15:G16)-M96 -> 0.02
A98: Assessment Rate | C98: =C96+C97 -> 0.07 | E98: =E96+E97 -> 0.07 | G98: =G96+G97 -> 0.07 | I98: =I96+I97 -> 0.07 | K98: =K96+K97 -> 0.07 | M98: =M96+M97 -> 0.07
A100: Monthly Loan Repayment | C100: =IFERROR(IF(C92="Amortising",-PMT(C96/12,(C93-C94)*12,C91,0,0),C91*C96/12),"") -> 0 | E100: =IFERROR(IF(E92="Amortising",-PMT(E96/12,(E93-E94)*12,E91,0,0),E91*E96/12),"") -> 0 | G100: =IFERROR(IF(G92="Amortising",-PMT(G96/12,(G93-G94)*12,G91,0,0),G91*G96/12),"") -> 0 | I100: =IFERROR(IF(I92="Amortising",-PMT(I96/12,(I93-I94)*12,I91,0,0),I91*I96/12),"") -> 0 | K100: =IFERROR(IF(K92="Amortising",-PMT(K96/12,(K93-K94)*12,K91,0,0),K91*K96/12),"") -> 0 | M100: =IFERROR(IF(M92="Amortising",-PMT(M96/12,(M93-M94)*12,M91,0,0),M91*M96/12),"") -> 0
A101: Monthly Assessed Repayment | C101: =IFERROR(IF(C92="Amortising",-PMT(C98/12,(C93-C94)*12,C91,0,0),C91*C98/12),"") -> 0 | E101: =IFERROR(IF(E92="Amortising",-PMT(E98/12,(E93-E94)*12,E91,0,0),E91*E98/12),"") -> 0 | G101: =IFERROR(IF(G92="Amortising",-PMT(G98/12,(G93-G94)*12,G91,0,0),G91*G98/12),"") -> 0 | I101: =IFERROR(IF(I92="Amortising",-PMT(I98/12,(I93-I94)*12,I91,0,0),I91*I98/12),"") -> 0 | K101: =IFERROR(IF(K92="Amortising",-PMT(K98/12,(K93-K94)*12,K91,0,0),K91*K98/12),"") -> 0 | M101: =IFERROR(IF(M92="Amortising",-PMT(M98/12,(M93-M94)*12,M91,0,0),M91*M98/12),"") -> 0
A103: Results
C105: Monthly
A106: Net Income | C106: =SUM(C27:M27) -> 0 | E106: Net Surplus Income: | G106: =IFERROR(C106-C107-C108-C109,"") -> 0 | I106: =IFERROR(IF(G106>0,IF(G107>1,"PASS","FAIL"),"FAIL"),"") -> FAIL
A107: Living Expenses | C107: =E67+I67+M67 -> 0 | E107: Debt Service Ratio: | G107: =IFERROR(C106/SUM(C107:C109),"") -> 
A108: Existing Commitments | C108: =E87+I87+M87 -> 0 | E108: Debt To Income: | G108: =IFERROR((SUM(C72:C82)+SUM(G72:G82)+SUM(K72:K82)+C91+E91+G91+I91+K91+M91)/(SUM(C25:M25)*12),"") -> 
A109: Proposed Repayments | C109: =C101+E101+G101+I101+K101+M101 -> 0 | E109: Maximum Loan*: | G109: =IFERROR(IF(C92="Amortising",FLOOR(-PV((C98)/12,(C93-C94)*12,(C106-C107-C108),0,0),100),"N/A"),"") -> 0 | I109: =K131 -> 
E110: ="* based on "&C90&" details" -> * based on App# 1 details
A113: =Menu!A21 -> The information contained in this calculator is provided by ORDE Financial Pty Limited ACN 634 779 990 Australian Credit Licence 522079 and ORDE Capital Management Limited ACN 636 165 378 Australian Financial Services Licence 523150 Australian Credit Licence 523150 for illustrative purposes only and should not be regarded as a prediction, or as personal advice. Calculations are not forecasts or projections but is a tool that may assist you to make your own projections. The calculator is not intended to be a substitute for professional advice. The information in this calculator does not constitute an offer to lend, or imply the product is suitable for clients. Before acting on this general information, your client must consider its appropriateness having regard to their own objectives, financial situation and need and also seek independent financial, legal and taxation advice. No guarantee, warranty, or representation is given or implied as to the reliability or accuracy of the information use to compile each index or each calculation. ORDE Financial specifically disclaims any liability for any direct, indirect, incidental, consequential, or special damages or for any loss arising out of or in any way connected with the access to, reliance on, or use of this calculator.
A117: Count | C117: =COUNTIF($C$11:$M$11,C11) -> 0 | E117: =COUNTIF($C$11:$M$11,E11) -> 0 | G117: =COUNTIF($C$11:$M$11,G11) -> 0 | I117: =COUNTIF($C$11:$M$11,I11) -> 0 | K117: =COUNTIF($C$11:$M$11,K11) -> 0 | M117: =COUNTIF($C$11:$M$11,M11) -> 0
A119: Individual (Single) | C119: =IF(C10="Individual (Single)",IF(C117=1,"",IF(C117>1,"Only 1 Household per Single Applicant","Applicant needs to be assigned a Household"))) -> FALSE | E119: =IF(E10="Individual (Single)",IF(E117=1,"",IF(E117>1,"Only 1 Household per Single Applicant","Applicant needs to be assigned a Household"))) -> FALSE | G119: =IF(G10="Individual (Single)",IF(G117=1,"",IF(G117>1,"Only 1 Household per Single Applicant","Applicant needs to be assigned a Household"))) -> FALSE | I119: =IF(I10="Individual (Single)",IF(I117=1,"",IF(I117>1,"Only 1 Household per Single Applicant","Applicant needs to be assigned a Household"))) -> FALSE | K119: =IF(K10="Individual (Single)",IF(K117=1,"",IF(K117>1,"Only 1 Household per Single Applicant","Applicant needs to be assigned a Household"))) -> FALSE | M119: =IF(M10="Individual (Single)",IF(M117=1,"",IF(M117>1,"Only 1 Household per Single Applicant","Applicant needs to be assigned a Household"))) -> FALSE
A120: Individual (Couple) | C120: =IF(C10="Individual (Couple)",IF(C117=1,"",IF(C117=2,"",IF(C117>2,"Only 1 Household per Couple Applicant",IF(C117<1,"Applicant needs to be assigned a Household",))))) -> FALSE | E120: =IF(E10="Individual (Couple)",IF(E117=1,"",IF(E117=2,"",IF(E117>2,"Only 1 Household per Couple Applicant",IF(E117<1,"Applicant needs to be assigned a Household",))))) -> FALSE | G120: =IF(G10="Individual (Couple)",IF(G117=1,"",IF(G117=2,"",IF(G117>2,"Only 1 Household per Couple Applicant",IF(G117<1,"Applicant needs to be assigned a Household",))))) -> FALSE | I120: =IF(I10="Individual (Couple)",IF(I117=1,"",IF(I117=2,"",IF(I117>2,"Only 1 Household per Couple Applicant",IF(I117<1,"Applicant needs to be assigned a Household",))))) -> FALSE | K120: =IF(K10="Individual (Couple)",IF(K117=1,"",IF(K117=2,"",IF(K117>2,"Only 1 Household per Couple Applicant",IF(K117<1,"Applicant needs to be assigned a Household",))))) -> FALSE | M120: =IF(M10="Individual (Couple)",IF(M117=1,"",IF(M117=2,"",IF(M117>2,"Only 1 Household per Couple Applicant",IF(M117<1,"Applicant needs to be assigned a Household",))))) -> FALSE
A121: n/a | C121: =IF(C10="n/a",IF(C117>0,"Household should only be applied where an applicant exists","")) ->  | E121: =IF(E10="n/a",IF(E117>0,"Household should only be applied where an applicant exists","")) ->  | G121: =IF(G10="n/a",IF(G117>0,"Household should only be applied where an applicant exists","")) ->  | I121: =IF(I10="n/a",IF(I117>0,"Household should only be applied where an applicant exists","")) ->  | K121: =IF(K10="n/a",IF(K117>0,"Household should only be applied where an applicant exists","")) ->  | M121: =IF(M10="n/a",IF(M117>0,"Household should only be applied where an applicant exists","")) -> 
A122: Company | C122: =IF(C10="Company",IF(C117>0,"Household should not be applied to a Company Applicant","")) -> FALSE | E122: =IF(E10="Company",IF(E117>0,"Household should not be applied to a Company Applicant","")) -> FALSE | G122: =IF(G10="Company",IF(G117>0,"Household should not be applied to a Company Applicant","")) -> FALSE | I122: =IF(I10="Company",IF(I117>0,"Household should not be applied to a Company Applicant","")) -> FALSE | K122: =IF(K10="Company",IF(K117>0,"Household should not be applied to a Company Applicant","")) -> FALSE | M122: =IF(M10="Company",IF(M117>0,"Household should not be applied to a Company Applicant","")) -> FALSE
A123: Error Message | C123: =IFERROR(VLOOKUP(C10,$A$119:$M$122,3,FALSE),"") ->  | E123: =IFERROR(VLOOKUP(E10,$A$119:$M$122,5,FALSE),"") ->  | G123: =IFERROR(VLOOKUP(G10,$A$119:$M$122,7,FALSE),"") ->  | I123: =IFERROR(VLOOKUP(I10,$A$119:$M$122,9,FALSE),"") ->  | K123: =IFERROR(VLOOKUP(K10,$A$119:$M$122,11,FALSE),"") ->  | M123: =IFERROR(VLOOKUP(M10,$A$119:$M$122,13,FALSE),"") -> 
A125: Household | C125: 1 | E125: 2 | G125: 3
A126: Household Count | C126: =COUNTIF($C$11:$M$11,C125) -> 0 | E126: =COUNTIF($C$11:$M$11,E125) -> 0 | G126: =COUNTIF($C$11:$M$11,G125) -> 0
A127: Expense Error | C127: =IF(C126=0,IF(E38>0,"Household 1 has not been assigned to an applicant",""),IF(E38<E37,"Monthly living expenses are less than benchmark, detailed explanation required","")) ->  | E127: =IF(E126=0,IF(I38>0,"Household 1 has not been assigned to an applicant",""),IF(I38<I37,"Monthly living expenses are less than benchmark, detailed explanation required","")) ->  | G127: =IF(G126=0,IF(M38>0,"Household 1 has not been assigned to an applicant",""),IF(M38<M37,"Monthly living expenses are less than benchmark, detailed explanation required","")) -> 
A128: Bank Statements | C128: =C40+G40+K40 -> 0
A129: Bank Statements | C129: =IFERROR(C106-C128-C108-C109,"") -> 0
A131: Error Message | C131: =IF(C129<0,"Where borrower/s are individuals, 3 months banks statements / transaction statements required to support loan application","") ->  | K131: =C131 -> 

Sheet Commercial (hidden)
A3: Commercial Serviceability Calculator | I3: =Menu!A6 -> Version 1.19 (1 April 2024)
A5: Application Name: | G5: Application #:
A7: Income Details
A9: Applicant Details: | C9: Applicant 1 | E9: Applicant 2 | G9: Applicant 3 | I9: Applicant 4 | K9: Applicant 5
A10: Status | C10: n/a | E10: n/a | G10: n/a | I10: n/a | K10: n/a
A11: Household
C12: =C120 ->  | E12: =E120 ->  | G12: =G120 ->  | I12: =I120 ->  | K12: =K120 -> 
A13: Individual
A14: HECS/HELP Debt | C14: No | E14: No | G14: No | I14: No | K14: No
A15: Gross Annual Income | C15: 0 | D15: 0 | E15: 0 | F15: 0 | G15: 0 | H15: 0 | I15: 0 | J15: 0 | K15: 0
A16: Annual Non-Taxable Income | C16: 0 | D16: 0 | E16: 0 | F16: 0 | G16: 0 | H16: 0 | I16: 0 | J16: 0 | K16: 0
A18: Annual Gross Rental Income | C18: 0 | D18: 0 | E18: 0 | F18: 0 | G18: 0 | H18: 0 | I18: 0 | J18: 0 | K18: 0
A19: Investment Property Interest Expense (Negative Gearing) | C19: 0 | D19: 0 | E19: 0 | F19: 0 | G19: 0 | H19: 0 | I19: 0 | J19: 0 | K19: 0
A20: Investment property utilities, rates & costs | C20: 0 | D20: 0 | E20: 0 | F20: 0 | G20: 0 | H20: 0 | I20: 0 | J20: 0 | K20: 0
A21: Company
A22: Company NPBT | C22: 0 | D22: 0 | E22: 0 | F22: 0 | G22: 0 | H22: 0 | I22: 0 | J22: 0 | K22: 0
A23: Addbacks - Interest Paid | C23: 0 | D23: 0 | E23: 0 | F23: 0 | G23: 0 | H23: 0 | I23: 0 | J23: 0 | K23: 0
A24: Addbacks - Other | C24: 0 | D24: 0 | E24: 0 | F24: 0 | G24: 0 | H24: 0 | I24: 0 | J24: 0 | K24: 0
A25: Annual Gross Rental Income (not included in NPBT) | C25: 0 | D25: 0 | E25: 0 | F25: 0 | G25: 0 | H25: 0 | I25: 0 | J25: 0 | K25: 0
A27: Total Income (Monthly) | C27: =((C15+C16)/12)+((C22+C23+C24)/12)+(C18/12*'Tax Tables (C)'!D1)+(C25/12*'Tax Tables (C)'!D1) -> 0 | E27: =((E15+E16)/12)+((E22+E23+E24)/12)+(E18/12*'Tax Tables'!$D$1)+(E25/12*'Tax Tables'!$D$1) -> 0 | G27: =((G15+G16)/12)+((G22+G23+G24)/12)+(G18/12*'Tax Tables'!$D$1)+(G25/12*'Tax Tables'!$D$1) -> 0 | I27: =((I15+I16)/12)+((I22+I23+I24)/12)+(I18/12*'Tax Tables'!$D$1)+(I25/12*'Tax Tables'!$D$1) -> 0 | K27: =((K15+K16)/12)+((K22+K23+K24)/12)+(K18/12*'Tax Tables'!$D$1)+(K25/12*'Tax Tables'!$D$1) -> 0
A28: Total Net Income (Monthly) | C28: =IF(C10="Company",C27-('Tax Tables (C)'!H42/12),IF(C14="No",C27-('Tax Tables (C)'!H42/12)-((C22+(C25*'Tax Tables (C)'!$D$1)+C23+C24)*'Tax Tables (C)'!$D$2/12)-((C20)/12),C27-('Tax Tables (C)'!H65/12)-((C22+(C25*'Tax Tables (C)'!$D$1)+C23+C24)*'Tax Tables (C)'!$D$2/12)-((C20)/12))) -> 0 | E28: =IF(E10="Company",E27-('Tax Tables (C)'!J42/12),IF(E14="No",E27-('Tax Tables (C)'!J42/12)-((E22+(E25*'Tax Tables (C)'!$D$1)+E23+E24)*'Tax Tables (C)'!$D$2/12)-((E20)/12),E27-('Tax Tables (C)'!J65/12)-((E22+(E25*'Tax Tables (C)'!$D$1)+E23+E24)*'Tax Tables (C)'!$D$2/12)-((E20)/12))) -> 0 | G28: =IF(G10="Company",G27-('Tax Tables (C)'!L42/12),IF(G14="No",G27-('Tax Tables (C)'!L42/12)-((G22+(G25*'Tax Tables (C)'!$D$1)+G23+G24)*'Tax Tables (C)'!$D$2/12)-((G20)/12),G27-('Tax Tables (C)'!L65/12)-((G22+(G25*'Tax Tables (C)'!$D$1)+G23+G24)*'Tax Tables (C)'!$D$2/12)-((G20)/12))) -> 0 | I28: =IF(I10="Company",I27-('Tax Tables (C)'!N42/12),IF(I14="No",I27-('Tax Tables (C)'!N42/12)-((I22+(I25*'Tax Tables (C)'!$D$1)+I23+I24)*'Tax Tables (C)'!$D$2/12)-((I20)/12),I27-('Tax Tables (C)'!N65/12)-((I22+(I25*'Tax Tables (C)'!$D$1)+I23+I24)*'Tax Tables (C)'!$D$2/12)-((I20)/12))) -> 0 | K28: =IF(K10="Company",K27-('Tax Tables (C)'!P42/12),IF(K14="No",K27-('Tax Tables (C)'!P42/12)-((K22+(K25*'Tax Tables (C)'!$D$1)+K23+K24)*'Tax Tables (C)'!$D$2/12)-((K20)/12),K27-('Tax Tables (C)'!P65/12)-((K22+(K25*'Tax Tables (C)'!$D$1)+K23+K24)*'Tax Tables (C)'!$D$2/12)-((K20)/12))) -> 0
A30: Living Expenses (Per Month) - All living expenses must be completed. Where an amount is $0, further explanation is required
A31: Household | C31: 1 | E31: 2 | G31: 3
A32: Household Status | C32: =IF(C31=$C$11,$C$10,IF(C31=$E$11,$E$10,IF(C31=$G$11,$G$10,IF(C31=$I$11,$I$10,IF(C31=$K$11,$K$10,IF(C31=#REF!,#REF!,"")))))) ->  | E32: =IF(E31=$C$11,$C$10,IF(E31=$E$11,$E$10,IF(E31=$G$11,$G$10,IF(E31=$I$11,$I$10,IF(E31=$K$11,$K$10,IF(E31=#REF!,#REF!,"")))))) ->  | G32: =IF(G31=$C$11,$C$10,IF(G31=$E$11,$E$10,IF(G31=$G$11,$G$10,IF(G31=$I$11,$I$10,IF(G31=$K$11,$K$10,IF(G31=#REF!,#REF!,"")))))) -> 
A33: Status ID | C33: =IFERROR(VLOOKUP(C32,List!$B$1:$C$5,2,FALSE),"") ->  | E33: =IFERROR(VLOOKUP(E32,List!$B$1:$C$5,2,FALSE),"") ->  | G33: =IFERROR(VLOOKUP(G32,List!$B$1:$C$5,2,FALSE),"") ->  | I33: Household 1 | K33: =IFERROR(C63-C65,0) -> 0
A34: Dependents | C34: =C43 -> 0 | E34: =G43 -> 0 | G34: =K43 -> 0 | I34: Household 2 | K34: =IFERROR(G63-G65,0) -> 0
A35: HEMID | C35: =C33&C34 -> 0 | E35: =E33&E34 -> 0 | G35: =G33&G34 -> 0 | I35: Household 3 | K35: =IFERROR(K63-K65,0) -> 0
A36: HouseholdIncome | C36: =(SUMIF($C$11:$L$11,C31,$C$27:$L$27)*12)-SUMIF($C$11:$L$11,C31,$C$19:$L$19)-SUMIF($C$11:$L$11,C31,$C$20:$L$20) -> 0 | E36: =(SUMIF($C$11:$L$11,E31,$C$27:$L$27)*12)-SUMIF($C$11:$L$11,E31,$C$19:$L$19)-SUMIF($C$11:$L$11,E31,$C$20:$L$20) -> 0 | G36: =(SUMIF($C$11:$L$11,G31,$C$27:$L$27)*12)-SUMIF($C$11:$L$11,G31,$C$19:$L$19)-SUMIF($C$11:$L$11,G31,$C$20:$L$20) -> 0
A37: HEM | C37: =IFERROR(HLOOKUP(C36,HEM!$B$20:$P$21,2,TRUE)+1,"") -> 2 | E37: =IFERROR(HLOOKUP(E36,HEM!$B$20:$P$21,2,TRUE)+1,"") -> 2 | G37: =IFERROR(HLOOKUP(G36,HEM!$B$20:$P$21,2,TRUE)+1,"") -> 2
A38: HEM Amount | B38: =IFERROR((C38*1.15)+C52+C55+C60+C59,0) -> 0 | C38: =IFERROR(VLOOKUP(C35,HEM!$B$22:$P$37,Commercial!C37,FALSE)*52/12,"") ->  | D38: =IFERROR((E38*1.15)+G52+G55+G59+G60,0) -> 0 | E38: =IFERROR(VLOOKUP(E35,HEM!$B$22:$P$37,Commercial!E37,FALSE)*52/12,"") ->  | F38: =IFERROR((G38*1.15)+K52+K55+K59+K60,0) -> 0 | G38: =IFERROR(VLOOKUP(G35,HEM!$B$22:$P$37,Commercial!G37,FALSE)*52/12,"") -> 
A39: Declared living expenses exculding non HEM | C39: =C45+C47+C48+C49+C50+C51+C53+C54+C56+C57+C58+C61 -> 0 | E39: =G45+G47+G48+G49+G50+G51+G53+G54+G56+G57+G58+G61 -> 0 | G39: =K45+K47+K48+K49+K50+K51+K53+K54+K56+K57+K58+K61 -> 0
A40: Living Expenses (Per Month) - Only where individual income is required to support servicing | C40: =IFERROR(C39/C38,"") ->  | E40: =IFERROR(E39/E38,"") ->  | G40: =IFERROR(G39/G38,"") -> 
C42: Household 1 | G42: Household 2 | K42: Household 3
A43: Dependents | C43: 0 | G43: 0 | K43: 0
A45: Primary Residence property utilities, rates & costs | C45: 0 | G45: 0 | K45: 0
A46: Investment property utilities, rates & costs * | C46: 0 | G46: 0 | K46: 0
A47: Groceries | C47: 0 | G47: 0 | K47: 0
A48: Clothing & Personal Care | C48: 0 | G48: 0 | K48: 0
A49: Transport | C49: 0 | G49: 0 | K49: 0
A50: Medical & Health | C50: 0 | G50: 0 | K50: 0
A51: Education (excluding Private School Fees) | C51: 0 | G51: 0 | K51: 0
A52: Education - Private School Fees * | C52: 0 | G52: 0 | K52: 0
A53: Childcare | C53: 0 | G53: 0 | K53: 0
A54: Insurance (excluding Private Health, Life and IP) | C54: 0 | G54: 0 | K54: 0
A55: Private Health, Life and IP Insurance * | C55: 0 | G55: 0 | K55: 0
A56: Telephone, Internet, Pay TV & Media Streaming | C56: 0 | G56: 0 | K56: 0
A57: Recreation & Entertainment | C57: 0 | G57: 0 | K57: 0
A58: Memberships (gym, sporting clubs etc) | C58: 0 | G58: 0 | K58: 0
A59: Non-Compulsory Superannuation * | C59: 0 | G59: 0 | K59: 0
A60: Maintenance * | C60: 0 | G60: 0 | K60: 0
A61: Other Living Expenses | C61: 0 | G61: 0 | K61: 0
A63: Total Monthly Living Expenses Declared (HEM & non-HEM) | C63: =SUM(C45:C61) -> 0 | G63: =SUM(G45:G61) -> 0 | K63: =SUM(K45:K61) -> 0
C64: =C124 ->  | G64: =E124 ->  | K64: =G124 -> 
A65: HEM Living Expense | C65: =C38 ->  | G65: =E38 ->  | K65: =G38 -> 
A66: Monthly Living Expenses Used | C66: =MAX(C38:C39)+C46+C52+C55+C60+C59 -> 0 | G66: =MAX(E38:E39)+G46+G52+G55+G60+G59 -> 0 | K66: =MAX(G38:G39)+K46+K52+K55+K60+K59 -> 0
A68: Other Commitments
C70: Debt / Limit | E70: Monthly Repayment | G70: Interest Rate
A71: Owner Occupied Property 1 | C71: 0 | D71: =IFERROR(RATE(360,SUM(E71),SUM(C71)*-1,0,0,0.1)*12,0) -> 0 | E71: 0 | F71: =IF((D71+List!$B$13)>=List!$B$16,(PMT((D71+List!$B$13)/12,360,SUM(C71),0,0)*-1)-SUM(E71),(PMT((List!$B$16)/12,360,SUM(C71),0,0)*-1)-SUM(E71)) -> 0 | G71: 0
A72: Owner Occupied Property 2 | C72: 0 | D72: 0 | E72: 0 | F72: =IF((D72+List!$B$13)>=List!$B$16,(PMT((D72+List!$B$13)/12,360,SUM(C72),0,0)*-1)-SUM(E72),(PMT((List!$B$16)/12,360,SUM(C72),0,0)*-1)-SUM(E72)) -> 0 | G72: 0
A73: Investment Property 1 | C73: 0 | D73: 0 | E73: 0 | F73: =IF((D73+List!$B$13)>=List!$B$16,(PMT((D73+List!$B$13)/12,360,SUM(C73),0,0)*-1)-SUM(E73),(PMT((List!$B$16)/12,360,SUM(C73),0,0)*-1)-SUM(E73)) -> 0 | G73: 0
A74: Investment Property 2 | C74: 0 | D74: 0 | E74: 0 | F74: =IF((D74+List!$B$13)>=List!$B$16,(PMT((D74+List!$B$13)/12,360,SUM(C74),0,0)*-1)-SUM(E74),(PMT((List!$B$16)/12,360,SUM(C74),0,0)*-1)-SUM(E74)) -> 0 | G74: 0
A75: Investment Property 3 | C75: 0 | D75: 0 | E75: 0 | F75: =IF((D75+List!$B$13)>=List!$B$16,(PMT((D75+List!$B$13)/12,360,SUM(C75),0,0)*-1)-SUM(E75),(PMT((List!$B$16)/12,360,SUM(C75),0,0)*-1)-SUM(E75)) -> 0 | G75: 0
A76: Investment Property 4 | C76: 0 | D76: 0 | E76: 0 | F76: =IF((D76+List!$B$13)>=List!$B$16,(PMT((D76+List!$B$13)/12,360,SUM(C76),0,0)*-1)-SUM(E76),(PMT((List!$B$16)/12,360,SUM(C76),0,0)*-1)-SUM(E76)) -> 0 | G76: 0
A77: Other Liabilities 1 | C77: 0 | E77: 0 | G77: 0
A78: Other Liabilities 2 | C78: 0 | E78: 0 | G78: 0
A79: Other Liabilities (Fixed) | C79: 0 | E79: 0 | G79: 0
A80: Credit Card 1 | C80: 0 | E80: =C80*HEM!$C$1 -> 0
A81: Credit Card 2 | C81: 0 | E81: =C81*HEM!$C$1 -> 0
E82: =SUMIF(F71:F76,">0",F71:F76) -> 0
A83: Rent/Board | E83: 0
A85: TOTAL EXISTING COMMITMENTS | E85: =SUM(E71:E81)+E83 -> 0
A86: TOTAL ASSESSED EXISTING COMMITMENTS | E86: =E82+E85 -> 0
A88: Loan Details
C89: App #1 | E89: App #2 | G89: App #3 | I89: App #4 | K89: App #5
A90: New Loan Amount | C90: 0 | E90: 0 | G90: 0 | I90: 0 | K90: 0
A91: Repayment Type | C91: Amortising | E91: Amortising | G91: Amortising | I91: Amortising | K91: Amortising
A92: Loan Term (Years) | C92: 30 | E92: 30 | G92: 30 | I92: 30 | K92: 30
A93: Interest Only Term (Years) | C93: 0 | E93: 0 | G93: 0 | I93: 0 | K93: 0
A95: Interest Rate | C95: 0.05 | E95: 0.05 | G95: 0.05 | I95: 0.05 | K95: 0.05
A96: Sensitivity | C96: =MAX(List!J15:J16)-C95 -> 0.02 | E96: =MAX(List!K15:K16)-E95 -> 0.02 | G96: =MAX(List!L15:L16)-G95 -> 0.02 | I96: =MAX(List!M15:M16)-I95 -> 0.02 | K96: =MAX(List!N15:N16)-K95 -> 0.02
A97: Assessment Rate | C97: =C95+C96 -> 0.07 | E97: =E95+E96 -> 0.07 | G97: =G95+G96 -> 0.07 | I97: =I95+I96 -> 0.07 | K97: =K95+K96 -> 0.07
A99: Monthly Loan Repayment | C99: =IF(C91="Amortising",-PMT(C95/12,(C92-C93)*12,C90,0,0),C90*C95/12) -> 0 | E99: =IF(E91="Amortising",-PMT(E95/12,(E92-E93)*12,E90,0,0),E90*E95/12) -> 0 | G99: =IF(G91="Amortising",-PMT(G95/12,(G92-G93)*12,G90,0,0),G90*G95/12) -> 0 | I99: =IF(I91="Amortising",-PMT(I95/12,(I92-I93)*12,I90,0,0),I90*I95/12) -> 0 | K99: =IF(K91="Amortising",-PMT(K95/12,(K92-K93)*12,K90,0,0),K90*K95/12) -> 0
A100: Monthly Assessed Repayment | C100: =IF(C91="Amortising",-PMT(C97/12,(C92-C93)*12,C90,0,0),C90*C97/12) -> 0 | E100: =IF(E91="Amortising",-PMT(E97/12,(E92-E93)*12,E90,0,0),E90*E97/12) -> 0 | G100: =IF(G91="Amortising",-PMT(G97/12,(G92-G93)*12,G90,0,0),G90*G97/12) -> 0 | I100: =IF(I91="Amortising",-PMT(I97/12,(I92-I93)*12,I90,0,0),I90*I97/12) -> 0 | K100: =IF(K91="Amortising",-PMT(K97/12,(K92-K93)*12,K90,0,0),K90*K97/12) -> 0
A102: Results
C104: Monthly
A105: Total Income | C105: =SUM(C28:L28) -> 0 | E105: NSI: | G105: =C105-C106-C107-C108 -> 0 | I105: =IF(G105>0,IF(G107>1.24999,"PASS","FAIL"),"FAIL") -> FAIL
A106: Living Expenses | C106: =C66+G66+K66 -> 0 | E106: Debt Service Ratio: | G106: =C105/SUM(C106:C108) -> 
A107: Existing Commitments | C107: =E86 -> 0 | E107: ICR: | G107: =IFERROR(((C105-C106)*12)/((C71*G71)+(C72*G72)+(C73*G73)+(C74*G74)+(C75*G75)+(C76*G76)+(C77*G77)+(C78*G78)+(C79*G79)+(C90*C95)+(E90*E95)+(G90*G95)+(I90*I95)+(K90*K95)),"") ->  | I107: =K130 -> 
A108: Proposed Repayments | C108: =C100+E100+G100+I100+K100 -> 0
A111: =Menu!A21 -> The information contained in this calculator is provided by ORDE Financial Pty Limited ACN 634 779 990 Australian Credit Licence 522079 and ORDE Capital Management Limited ACN 636 165 378 Australian Financial Services Licence 523150 Australian Credit Licence 523150 for illustrative purposes only and should not be regarded as a prediction, or as personal advice. Calculations are not forecasts or projections but is a tool that may assist you to make your own projections. The calculator is not intended to be a substitute for professional advice. The information in this calculator does not constitute an offer to lend, or imply the product is suitable for clients. Before acting on this general information, your client must consider its appropriateness having regard to their own objectives, financial situation and need and also seek independent financial, legal and taxation advice. No guarantee, warranty, or representation is given or implied as to the reliability or accuracy of the information use to compile each index or each calculation. ORDE Financial specifically disclaims any liability for any direct, indirect, incidental, consequential, or special damages or for any loss arising out of or in any way connected with the access to, reliance on, or use of this calculator.
A114: Count | C114: =COUNTIF($C$11:$M$11,C11) -> 0 | E114: =COUNTIF($C$11:$M$11,E11) -> 0 | G114: =COUNTIF($C$11:$M$11,G11) -> 0 | I114: =COUNTIF($C$11:$M$11,I11) -> 0 | K114: =COUNTIF($C$11:$M$11,K11) -> 0
A116: Individual (Single) | C116: =IF(C10="Individual (Single)",IF(C114=1,"",IF(C114>1,"Only 1 Household per Single Applicant","Applicant needs to be assigned a Household"))) -> FALSE | E116: =IF(E10="Individual (Single)",IF(E114=1,"",IF(E114>1,"Only 1 Household per Single Applicant","Applicant needs to be assigned a Household"))) -> FALSE | G116: =IF(G10="Individual (Single)",IF(G114=1,"",IF(G114>1,"Only 1 Household per Single Applicant","Applicant needs to be assigned a Household"))) -> FALSE | I116: =IF(I10="Individual (Single)",IF(I114=1,"",IF(I114>1,"Only 1 Household per Single Applicant","Applicant needs to be assigned a Household"))) -> FALSE | K116: =IF(K10="Individual (Single)",IF(K114=1,"",IF(K114>1,"Only 1 Household per Single Applicant","Applicant needs to be assigned a Household"))) -> FALSE
A117: Individual (Couple) | C117: =IF(C10="Individual (Couple)",IF(C114=1,"",IF(C114=2,"",IF(C114>2,"Only 1 Household per Couple Applicant",IF(C114<1,"Applicant needs to be assigned a Household",))))) -> FALSE | E117: =IF(E10="Individual (Couple)",IF(E114=1,"",IF(E114=2,"",IF(E114>2,"Only 1 Household per Couple Applicant",IF(E114<1,"Applicant needs to be assigned a Household",))))) -> FALSE | G117: =IF(G10="Individual (Couple)",IF(G114=1,"",IF(G114=2,"",IF(G114>2,"Only 1 Household per Couple Applicant",IF(G114<1,"Applicant needs to be assigned a Household",))))) -> FALSE | I117: =IF(I10="Individual (Couple)",IF(I114=1,"",IF(I114=2,"",IF(I114>2,"Only 1 Household per Couple Applicant",IF(I114<1,"Applicant needs to be assigned a Household",))))) -> FALSE | K117: =IF(K10="Individual (Couple)",IF(K114=1,"",IF(K114=2,"",IF(K114>2,"Only 1 Household per Couple Applicant",IF(K114<1,"Applicant needs to be assigned a Household",))))) -> FALSE
A118: n/a | C118: =IF(C10="n/a",IF(C114>0,"Household should only be applied where an applicant exists","")) ->  | E118: =IF(E10="n/a",IF(E114>0,"Household should only be applied where an applicant exists","")) ->  | G118: =IF(G10="n/a",IF(G114>0,"Household should only be applied where an applicant exists","")) ->  | I118: =IF(I10="n/a",IF(I114>0,"Household should only be applied where an applicant exists","")) ->  | K118: =IF(K10="n/a",IF(K114>0,"Household should only be applied where an applicant exists","")) -> 
A119: Company | C119: =IF(C10="Company",IF(C114>0,"Household should not be applied to a Company Applicant","")) -> FALSE | E119: =IF(E10="Company",IF(E114>0,"Household should not be applied to a Company Applicant","")) -> FALSE | G119: =IF(G10="Company",IF(G114>0,"Household should not be applied to a Company Applicant","")) -> FALSE | I119: =IF(I10="Company",IF(I114>0,"Household should not be applied to a Company Applicant","")) -> FALSE | K119: =IF(K10="Company",IF(K114>0,"Household should not be applied to a Company Applicant","")) -> FALSE
A120: Error Message | C120: =IFERROR(VLOOKUP(C10,$A$116:$M$119,3,FALSE),"") ->  | E120: =IFERROR(VLOOKUP(E10,$A$116:$M$119,5,FALSE),"") ->  | G120: =IFERROR(VLOOKUP(G10,$A$116:$M$119,7,FALSE),"") ->  | I120: =IFERROR(VLOOKUP(I10,$A$116:$M$119,9,FALSE),"") ->  | K120: =IFERROR(VLOOKUP(K10,$A$116:$M$119,11,FALSE),"") -> 
A122: Household | C122: 1 | E122: 2 | G122: 3
A123: Household Count | C123: =COUNTIF($C$11:$M$11,C122) -> 0 | E123: =COUNTIF($C$11:$M$11,E122) -> 0 | G123: =COUNTIF($C$11:$M$11,G122) -> 0
A124: Expense Error | C124: =IF(C123=0,IF(C39>0,"Household 1 has not been assigned to an applicant",""),IF(C39<C38,"Monthly living expenses are less than benchmark, detailed explanation required","")) ->  | E124: =IF(E123=0,IF(E39>0,"Household 1 has not been assigned to an applicant",""),IF(E39<E38,"Monthly living expenses are less than benchmark, detailed explanation required","")) ->  | G124: =IF(G123=0,IF(G39>0,"Household 1 has not been assigned to an applicant",""),IF(G39<G38,"Monthly living expenses are less than benchmark, detailed explanation required","")) -> 
A127: Bank Statements | C127: =B38+D38+F38 -> 0
A128: Bank Statements | C128: =C105-C127-C107-C108 -> 0 | E128: =IFERROR(AND(G107<1.1,G107>1,E40<1.1),"") -> FALSE | G128: =IFERROR(AND(G107<1.1,G107>1,G40<1.1),"") -> FALSE
A130: Error Message | C130: =IF(C128<0,"Where borrower/s are individuals, 3 months banks statements / transaction statements required to support loan application","") ->  | K130: =C130 -> 

Sheet SMSF (hidden)
A3: SMSF Serviceability Calculator | G3: =Menu!A6 -> Version 1.19 (1 April 2024)
A5: Application Name:
A6: Application #:
A8: Income Details
A10: Applicant Details: | C10: Member 1 | E10: Member 2 | G10: Member 3 | I10: Member 4 | K10: Member 5 | M10: Member 6
A12: Gross Annual Income | C12: 0 | E12: 0 | G12: 0 | I12: 0 | K12: 0 | M12: 0
A13: Compulsory Superannuation Contributions | C13: 0 | E13: 0 | G13: 0 | I13: 0 | K13: 0 | M13: 0
A14: Superannuation Contributions (%) | C14: =IFERROR(C13/C12,"") ->  | E14: =IFERROR(E13/E12,"") ->  | G14: =IFERROR(G13/G12,"") ->  | I14: =IFERROR(I13/I12,"") ->  | K14: =IFERROR(K13/K12,"") ->  | M14: =IFERROR(M13/M12,"") -> 
A15: Current Salary Sacrifice Contributions | C15: 0 | E15: 0 | G15: 0 | I15: 0 | K15: 0 | M15: 0
A16: Current Non-Concessional Contibutions | C16: 0 | E16: 0 | G16: 0 | I16: 0 | K16: 0 | M16: 0
A17: Future Salary Sacrifice Contributions | C17: ='Residential SMSF'!C113 -> 0 | E17: ='Residential SMSF'!E113 -> 0 | G17: ='Residential SMSF'!G113 -> 0 | I17: ='Residential SMSF'!I113 -> 0 | K17: ='Residential SMSF'!K113 -> 0 | M17: ='Residential SMSF'!M113 -> 0
C18: ='SMSF Tax Tables'!G21 ->  | E18: ='SMSF Tax Tables'!I21 ->  | G18: ='SMSF Tax Tables'!K21 ->  | I18: ='SMSF Tax Tables'!M21 ->  | K18: ='SMSF Tax Tables'!O21 ->  | M18: ='SMSF Tax Tables'!Q21 -> 
A20: SMSF Details:
A22: Annual Gross Rental Income (Security) | C22: 0 | E22: Interest Expense | G22: =C47*G47 -> 0
A23: Annual Gross Rental Income (Other) | C23: 0 | E23: Interest Expense | G23: =(C39*G39)+(C40*G40) -> 0
A25: Other SMSF Assets | C25: 0 | E25: Investment Returns | G25: =(C25*'Tax Tables'!$D$3) -> 0
A27: Total Income | C27: =SUM(C13:M13)+SUM(C15:M17)+(C22*'SMSF Tax Tables'!D1)+(C23*'SMSF Tax Tables'!D1)+SMSF!G25 -> 0
A28: Less Tax | C28: ='SMSF Tax Tables'!S36 -> 0
A29: Net Income | C29: =C27-C28 -> 0
A31: SMSF Ongoing Expenses (Annual)
A33: Total Ongoing SMSF Expenses Declared | C33: 0
A34: Minimum SMSF Ongoing Expenses | C34: 2500
A35: SMSF Ongoing Expenses Used | C35: =MAX(C33:C34) -> 2500
A37: Other Commitments
C38: Debt / Limit | E38: Monthly Repayment | G38: Interest Rate
A39: Investment Property 1 | C39: 0 | D39: =IFERROR(RATE(360,SUM(E39),SUM(C39)*-1,0,0,0.1)*12,0) -> 0 | E39: 0 | F39: =IF((D39+List!$B$13)>=List!$B$16,(PMT((D39+List!$B$13)/12,360,SUM(C39),0,0)*-1)-SUM(E39),(PMT((List!$B$16)/12,360,SUM(C39),0,0)*-1)-SUM(E39)) -> 0 | G39: 0
A40: Investment Property 2 | C40: 0 | D40: =IFERROR(RATE(360,SUM(E40),SUM(C40)*-1,0,0,0.1)*12,0) -> 0 | E40: 0 | F40: =IF((D40+List!$B$13)>=List!$B$16,(PMT((D40+List!$B$13)/12,360,SUM(C40),0,0)*-1)-SUM(E40),(PMT((List!$B$16)/12,360,SUM(C40),0,0)*-1)-SUM(E40)) -> 0 | G40: 0
C41: =IFERROR(RATE(360,SUM(E39:E40),SUM(C39:C40)*-1,0,0,0.1)*12,0) -> 0 | E41: =SUM(F39:F40) -> 0
A42: TOTAL EXISTING COMMITMENTS | E42: =SUM(E39:E40) -> 0
A43: TOTAL ASSESSED EXISTING COMMITMENTS | E43: =E42+E41 -> 0
A45: Loan Details
A47: New Loan Amount | C47: 0 | E47: Interest Rate | F47: 5 | G47: 0.05
A48: Repayment Type | C48: Amortising | E48: Sensitivity | G48: =MAX(List!O15:O16)-G47 -> 0.02
A49: Loan Term | C49: 30 | E49: Assessment Rate | F49: 5 | G49: =G47+G48 -> 0.07
A50: Interest Only Term | C50: 0
E51: Monthly Loan Repayment | G51: =IFERROR(IF(C48="Amortising",-PMT(G47/12,(C49-C50)*12,C47,0,0),C47*G47/12),"") -> 0
E52: Monthly Assessed Repayment | G52: =IFERROR(IF(C48="Amortising",-PMT(G49/12,(C49-C50)*12,C47,0,0),C47*G49/12),"") -> 0
A54: Results
C56: Monthly
A57: Net Income | C57: =C29/12 -> 0 | E57: NSI: | G57: =IFERROR(C57-C58-C59-C60,"") -> -208.3333333
A58: SMSF Ongoing Expenses | C58: =C35/12 -> 208.3333333 | E58: ICR: | G58: =IFERROR((C29-C35)/(G22+G23),"") -> 
A59: Existing Commitments | C59: =E43 -> 0 | G59: =IF(G57>0,IF(G58>1.24999999,"PASS","FAIL"),"FAIL") -> FAIL
A60: Proposed Repayments | C60: =G52 -> 0
A62: =Menu!A21 -> The information contained in this calculator is provided by ORDE Financial Pty Limited ACN 634 779 990 Australian Credit Licence 522079 and ORDE Capital Management Limited ACN 636 165 378 Australian Financial Services Licence 523150 Australian Credit Licence 523150 for illustrative purposes only and should not be regarded as a prediction, or as personal advice. Calculations are not forecasts or projections but is a tool that may assist you to make your own projections. The calculator is not intended to be a substitute for professional advice. The information in this calculator does not constitute an offer to lend, or imply the product is suitable for clients. Before acting on this general information, your client must consider its appropriateness having regard to their own objectives, financial situation and need and also seek independent financial, legal and taxation advice. No guarantee, warranty, or representation is given or implied as to the reliability or accuracy of the information use to compile each index or each calculation. ORDE Financial specifically disclaims any liability for any direct, indirect, incidental, consequential, or special damages or for any loss arising out of or in any way connected with the access to, reliance on, or use of this calculator.

Sheet Residential SMSF (hidden)
A3: SMSF Residential Serviceability Calculator | K3: =Menu!A6 -> Version 1.19 (1 April 2024)
A5: Application Name: | I5: Application #:
A7: Income Details
A9: Applicant Details: | C9: Member 1 | E9: Member 2 | G9: Member 3 | I9: Member 4 | K9: Member 5 | M9: Member 6
A10: Status | C10: n/a | E10: n/a | G10: n/a | I10: n/a | K10: n/a | M10: n/a
A11: Household
C12: =C129 ->  | E12: =E129 ->  | G12: =G129 ->  | I12: =I129 ->  | K12: =K129 ->  | M12: =M129 -> 
A13: Individual
A14: HECS/HELP Debt | C14: No | E14: No | G14: No | I14: No | K14: No | M14: No
A15: Gross Annual Income | C15: 0 | E15: 0 | G15: 0 | I15: 0 | K15: 0 | M15: 0
A16: Annual Non-Taxable Income | C16: 0 | E16: 0 | G16: 0 | I16: 0 | K16: 0 | M16: 0
A18: Annual Gross Rental Income | C18: 0 | E18: 0 | G18: 0 | I18: 0 | K18: 0 | M18: 0
A19: Annual Investment Property Interest (Negative Gearing) | C19: 0 | E19: 0 | G19: 0 | I19: 0 | K19: 0 | M19: 0
A20: Annual Investment property utilities, rates & costs | C20: 0 | E20: 0 | G20: 0 | I20: 0 | K20: 0 | M20: 0
A21: Company
A22: NPBT | C22: 0 | E22: 0 | G22: 0 | I22: 0 | K22: 0 | M22: 0
A23: Addbacks | C23: 0 | E23: 0 | G23: 0 | I23: 0 | K23: 0 | M23: 0
A24: Annual Gross Rental Income (not included in NPBT) | C24: 0 | E24: 0 | G24: 0 | I24: 0 | K24: 0 | M24: 0
C25: =((C15+C16)/12)+((C22+C23+(C24))/12)+(C18/12) -> 0 | E25: =((E15+E16)/12)+((E22+E23+(E24))/12)+(E18/12) -> 0 | G25: =((G15+G16)/12)+((G22+G23+(G24))/12)+(G18/12) -> 0 | I25: =((I15+I16)/12)+((I22+I23+(I24))/12)+(I18/12) -> 0 | K25: =((K15+K16)/12)+((K22+K23+(K24))/12)+(K18/12) -> 0 | M25: =((M15+M16)/12)+((M22+M23+(M24))/12)+(M18/12) -> 0
A26: Total Income (Monthly) | C26: =((C15+C16)/12)+((C22+C23+(C24*'Resi SMSF Tax Tables'!$D$1))/12)+(C18/12*'Resi SMSF Tax Tables'!$D$1) -> 0 | E26: =((E15+E16)/12)+((E22+E23+(E24*'Resi SMSF Tax Tables'!$D$1))/12)+(E18/12*'Resi SMSF Tax Tables'!$D$1) -> 0 | G26: =((G15+G16)/12)+((G22+G23+(G24*'Resi SMSF Tax Tables'!$D$1))/12)+(G18/12*'Resi SMSF Tax Tables'!$D$1) -> 0 | I26: =((I15+I16)/12)+((I22+I23+(I24*'Resi SMSF Tax Tables'!$D$1))/12)+(I18/12*'Resi SMSF Tax Tables'!$D$1) -> 0 | K26: =((K15+K16)/12)+((K22+K23+(K24*'Resi SMSF Tax Tables'!$D$1))/12)+(K18/12*'Resi SMSF Tax Tables'!$D$1) -> 0 | M26: =((M15+M16)/12)+((M22+M23+(M24*'Resi SMSF Tax Tables'!$D$1))/12)+(M18/12*'Resi SMSF Tax Tables'!$D$1) -> 0
A27: Net Income (Monthly) | C27: =IF(C10="Company",C26-('Resi SMSF Tax Tables'!H$42/12)-((C20)/12),IF(C14="No",C26-('Resi SMSF Tax Tables'!H$42/12)-((C22+(C24*'Resi SMSF Tax Tables'!$D$1)+C23)*'Resi SMSF Tax Tables'!$D$2/12)-((C20)/12),C26-('Resi SMSF Tax Tables'!H$65/12)-((C22+(C24*'Resi SMSF Tax Tables'!$D$1)+C23)*'Resi SMSF Tax Tables'!$D$2/12)-((C20)/12))) -> 0 | E27: =IF(E10="Company",E26-('Resi SMSF Tax Tables'!J$42/12)-((E20)/12),IF(E14="No",E26-('Resi SMSF Tax Tables'!J$42/12)-((E22+(E24*'Resi SMSF Tax Tables'!$D$1)+E23)*'Resi SMSF Tax Tables'!$D$2/12)-((E20)/12),E26-('Resi SMSF Tax Tables'!J$65/12)-((E22+(E24*'Resi SMSF Tax Tables'!$D$1)+E23)*'Resi SMSF Tax Tables'!$D$2/12)-((E20)/12))) -> 0 | G27: =IF(G10="Company",G26-('Resi SMSF Tax Tables'!L$42/12)-((G20)/12),IF(G14="No",G26-('Resi SMSF Tax Tables'!L$42/12)-((G22+(G24*'Resi SMSF Tax Tables'!$D$1)+G23)*'Resi SMSF Tax Tables'!$D$2/12)-((G20)/12),G26-('Resi SMSF Tax Tables'!L$65/12)-((G22+(G24*'Resi SMSF Tax Tables'!$D$1)+G23)*'Resi SMSF Tax Tables'!$D$2/12)-((G20)/12))) -> 0 | I27: =IF(I10="Company",I26-('Resi SMSF Tax Tables'!N$42/12)-((I20)/12),IF(I14="No",I26-('Resi SMSF Tax Tables'!N$42/12)-((I22+(I24*'Resi SMSF Tax Tables'!$D$1)+I23)*'Resi SMSF Tax Tables'!$D$2/12)-((I20)/12),I26-('Resi SMSF Tax Tables'!N$65/12)-((I22+(I24*'Resi SMSF Tax Tables'!$D$1)+I23)*'Resi SMSF Tax Tables'!$D$2/12)-((I20)/12))) -> 0 | K27: =IF(K10="Company",K26-('Resi SMSF Tax Tables'!P$42/12)-((K20)/12),IF(K14="No",K26-('Resi SMSF Tax Tables'!P$42/12)-((K22+(K24*'Resi SMSF Tax Tables'!$D$1)+K23)*'Resi SMSF Tax Tables'!$D$2/12)-((K20)/12),K26-('Resi SMSF Tax Tables'!P$65/12)-((K22+(K24*'Resi SMSF Tax Tables'!$D$1)+K23)*'Resi SMSF Tax Tables'!$D$2/12)-((K20)/12))) -> 0 | M27: =IF(M10="Company",M26-('Resi SMSF Tax Tables'!R$42/12)-((M20)/12),IF(M14="No",M26-('Resi SMSF Tax Tables'!R$42/12)-((M22+(M24*'Resi SMSF Tax Tables'!$D$1)+M23)*'Resi SMSF Tax Tables'!$D$2/12)-((M20)/12),M26-('Resi SMSF Tax Tables'!R$65/12)-((M22+(M24*'Resi SMSF Tax Tables'!$D$1)+M23)*'Resi SMSF Tax Tables'!$D$2/12)-((M20)/12))) -> 0
A29: Living Expenses (Per Month) - All living expenses must be completed. Where an amount is $0, further explanation is required
A30: Household | E30: 1 | I30: 2 | M30: 3
A31: Household Status | E31: =IF(E30=$C$11,$C$10,IF(E30=$E$11,$E$10,IF(E30=$G$11,$G$10,IF(E30=$I$11,$I$10,IF(E30=$K$11,$K$10,IF(E30=$M$11,$M$10,"")))))) ->  | I31: =IF(I30=$C$11,$C$10,IF(I30=$E$11,$E$10,IF(I30=$G$11,$G$10,IF(I30=$I$11,$I$10,IF(I30=$K$11,$K$10,IF(I30=$M$11,$M$10,"")))))) ->  | M31: =IF(M30=$C$11,$C$10,IF(M30=$E$11,$E$10,IF(M30=$G$11,$G$10,IF(M30=$I$11,$I$10,IF(M30=$K$11,$K$10,IF(M30=$M$11,$M$10,"")))))) -> 
A32: Status ID | E32: =IFERROR(VLOOKUP(E31,List!$B$1:$C$5,2,FALSE),"") ->  | I32: =IFERROR(VLOOKUP(I31,List!$B$1:$C$5,2,FALSE),"") ->  | M32: =IFERROR(VLOOKUP(M31,List!$B$1:$C$5,2,FALSE),"") -> 
A33: Dependents | E33: =E43 -> 0 | I33: =I43 -> 0 | M33: =M43 -> 0
A34: HEMID | E34: =E32&E33 -> 0 | I34: =I32&I33 -> 0 | M34: =M32&M33 -> 0
A35: HouseholdIncome | E35: =(SUMIF($C$11:$M$11,E30,$C$26:$M$26)*12)-(SUMIF(C11:M11,E30,C19:M19))-(SUMIF(C11:M11,E30,C20:M20)) -> 0 | I35: =(SUMIF($C$11:$M$11,I30,$C$26:$M$26)*12)-(SUMIF(C11:M11,I30,C19:M19))-(SUMIF(C11:M11,I30,C20:M20)) -> 0 | M35: =(SUMIF($C$11:$M$11,M30,$C$26:$M$26)*12)-(SUMIF(C11:M11,M30,C19:M19))-(SUMIF(C11:M11,M30,C20:M20)) -> 0
A36: HEM | E36: =IFERROR(HLOOKUP(E35,HEM!$B$20:$P$21,2,TRUE)+1,"") -> 2 | I36: =IFERROR(HLOOKUP(I35,HEM!$B$20:$P$21,2,TRUE)+1,"") -> 2 | M36: =IFERROR(HLOOKUP(M35,HEM!$B$20:$P$21,2,TRUE)+1,"") -> 2
A37: HEM Amount | E37: =IFERROR(VLOOKUP(E34,HEM!$B$22:$P$37,'Residential SMSF'!E36,FALSE)*52/12,"") ->  | I37: =IFERROR(VLOOKUP(I34,HEM!$B$22:$P$37,'Residential SMSF'!I36,FALSE)*52/12,"") ->  | M37: =IFERROR(VLOOKUP(M34,HEM!$B$22:$P$37,'Residential SMSF'!M36,FALSE)*52/12,"") -> 
A38: Declared living expenses exculding non HEM | E38: =E45+E47+E48+E49+E50+E51+E53+E54+E56+E57+E58+E61 -> 0 | I38: =I45+I47+I48+I49+I50+I51+I53+I54+I56+I57+I58+I61 -> 0 | M38: =M45+M47+M48+M49+M50+M51+M53+M54+M56+M57+M58+M61 -> 0
E39: =IFERROR(E38/E37,"") ->  | I39: =IFERROR(I38/I37,"") ->  | M39: =IFERROR(M38/M37,"") -> 
A40: 0.15 | C40: =IFERROR(((E37)*(1+A40))+E52+E55+E60+E59,0) -> 0 | E40: =IFERROR(E63-E66,0) -> 0 | G40: =IFERROR(((I37)*(1+A40))+I52+I55+I60+I59,0) -> 0 | I40: =IFERROR(I63-I66,0) -> 0 | K40: =IFERROR(((M37)*(1+A40))+M52+M55+M60+M59,0) -> 0 | M40: =IFERROR(M63-M66,0) -> 0
E42: Household 1 | I42: Household 2 | M42: Household 3
C43: Dependents | E43: 0 | I43: 0 | M43: 0
A45: Primary Residence property utilities, rates & costs | E45: 0 | I45: 0 | M45: 0
A46: Investment property utilities, rates & costs * | E46: 0 | I46: 0 | M46: 0
A47: Groceries | E47: 0 | I47: 0 | M47: 0
A48: Clothing & Personal Care | E48: 0 | I48: 0 | M48: 0
A49: Transport | E49: 0 | I49: 0 | M49: 0
A50: Medical & Health | E50: 0 | I50: 0 | M50: 0
A51: Education (excluding Private School Fees) | E51: 0 | I51: 0 | M51: 0
A52: Education - Private School Fees * | E52: 0 | I52: 0 | M52: 0
A53: Childcare | E53: 0 | I53: 0 | M53: 0
A54: Insurance (excluding Private Health, Life and IP) | E54: 0 | I54: 0 | M54: 0
A55: Private Health, Life and IP Insurance * | E55: 0 | I55: 0 | M55: 0
A56: Telephone, Internet, Pay TV & Media Streaming | E56: 0 | I56: 0 | M56: 0
A57: Recreation & Entertainment | E57: 0 | I57: 0 | M57: 0
A58: Memberships (gym, sporting clubs etc) | E58: 0 | I58: 0 | M58: 0
A59: Non-Compulsory Superannuation * | E59: 0 | I59: 0 | M59: 0
A60: Maintenance * | E60: 0 | I60: 0 | M60: 0
A61: Other Living Expenses | E61: 0 | I61: 0 | M61: 0
A63: Total Monthly Living Expenses Declared (HEM & non-HEM) | E63: =SUM(E45:E61) -> 0 | I63: =SUM(I45:I61) -> 0 | M63: =SUM(M45:M61) -> 0
E64: =C133 ->  | I64: =E133 ->  | M64: =G133 -> 
A66: HEM Living Expense | E66: =E37 ->  | I66: =I37 ->  | M66: =M37 -> 
A67: Monthly Living Expenses Used | E67: =MAX(E37:E38)+E46+E52+E55+E60+E59 -> 0 | I67: =MAX(I37:I38)+I46+I52+I55+I60+I59 -> 0 | M67: =MAX(M37:M38)+M46+M52+M55+M60+M59 -> 0
A69: Other Commitments
C70: Household 1 / Company 1 | G70: Household 2 / Company 2 | K70: Household 3 / Company 3
C71: Debt / Limit | E71: Repayment | G71: Debt / Limit | I71: Repayment | K71: Debt / Limit | M71: Repayment
A72: Owner Occupied Property 1 | C72: 0 | D72: =IFERROR(RATE(360,SUM(E72),SUM(C72)*-1,0,0,0.1)*12,0) -> 0 | E72: 0 | F72: =IF((D72+List!$B$13)>=List!$B$16,(PMT((D72+List!$B$13)/12,360,SUM('Residential SMSF'!C72),0,0)*-1)-SUM(E72),(PMT((List!$B$16)/12,360,SUM('Residential SMSF'!C72),0,0)*-1)-SUM(E72)) -> 0 | G72: 0 | H72: =IFERROR(RATE(360,SUM(I72),SUM(G72)*-1,0,0,0.1)*12,0) -> 0 | I72: 0 | J72: =IF((H72+List!$B$13)>=List!$B$16,(PMT((H72+List!$B$13)/12,360,SUM('Residential SMSF'!G72),0,0)*-1)-SUM(I72),(PMT((List!$B$16)/12,360,SUM('Residential SMSF'!G72),0,0)*-1)-SUM(I72)) -> 0 | K72: 0 | L72: =IFERROR(RATE(360,SUM(M72),SUM(K72)*-1,0,0,0.1)*12,0) -> 0 | M72: 0 | N72: =IF((L72+List!$B$13)>=List!$B$16,(PMT((L72+List!$B$13)/12,360,SUM('Residential SMSF'!K72),0,0)*-1)-SUM(M72),(PMT((List!$B$16)/12,360,SUM('Residential SMSF'!K72),0,0)*-1)-SUM(M72)) -> 0
A73: Owner Occupied Property 2 | C73: 0 | D73: 0 | E73: 0 | F73: =IF((D73+List!$B$13)>=List!$B$16,(PMT((D73+List!$B$13)/12,360,SUM('Residential SMSF'!C73),0,0)*-1)-SUM(E73),(PMT((List!$B$16)/12,360,SUM('Residential SMSF'!C73),0,0)*-1)-SUM(E73)) -> 0 | G73: 0 | H73: 0 | I73: 0 | J73: =IF((H73+List!$B$13)>=List!$B$16,(PMT((H73+List!$B$13)/12,360,SUM('Residential SMSF'!G73),0,0)*-1)-SUM(I73),(PMT((List!$B$16)/12,360,SUM('Residential SMSF'!G73),0,0)*-1)-SUM(I73)) -> 0 | K73: 0 | L73: 0 | M73: 0 | N73: =IF((L73+List!$B$13)>=List!$B$16,(PMT((L73+List!$B$13)/12,360,SUM('Residential SMSF'!K73),0,0)*-1)-SUM(M73),(PMT((List!$B$16)/12,360,SUM('Residential SMSF'!K73),0,0)*-1)-SUM(M73)) -> 0
A74: Investment Property 1 | C74: 0 | D74: 0 | E74: 0 | F74: =IF((D74+List!$B$13)>=List!$B$16,(PMT((D74+List!$B$13)/12,360,SUM('Residential SMSF'!C74),0,0)*-1)-SUM(E74),(PMT((List!$B$16)/12,360,SUM('Residential SMSF'!C74),0,0)*-1)-SUM(E74)) -> 0 | G74: 0 | H74: 0 | I74: 0 | J74: =IF((H74+List!$B$13)>=List!$B$16,(PMT((H74+List!$B$13)/12,360,SUM('Residential SMSF'!G74),0,0)*-1)-SUM(I74),(PMT((List!$B$16)/12,360,SUM('Residential SMSF'!G74),0,0)*-1)-SUM(I74)) -> 0 | K74: 0 | L74: 0 | M74: 0 | N74: =IF((L74+List!$B$13)>=List!$B$16,(PMT((L74+List!$B$13)/12,360,SUM('Residential SMSF'!K74),0,0)*-1)-SUM(M74),(PMT((List!$B$16)/12,360,SUM('Residential SMSF'!K74),0,0)*-1)-SUM(M74)) -> 0
A75: Investment Property 2 | C75: 0 | D75: 0 | E75: 0 | F75: =IF((D75+List!$B$13)>=List!$B$16,(PMT((D75+List!$B$13)/12,360,SUM('Residential SMSF'!C75),0,0)*-1)-SUM(E75),(PMT((List!$B$16)/12,360,SUM('Residential SMSF'!C75),0,0)*-1)-SUM(E75)) -> 0 | G75: 0 | H75: 0 | I75: 0 | J75: =IF((H75+List!$B$13)>=List!$B$16,(PMT((H75+List!$B$13)/12,360,SUM('Residential SMSF'!G75),0,0)*-1)-SUM(I75),(PMT((List!$B$16)/12,360,SUM('Residential SMSF'!G75),0,0)*-1)-SUM(I75)) -> 0 | K75: 0 | L75: 0 | M75: 0 | N75: =IF((L75+List!$B$13)>=List!$B$16,(PMT((L75+List!$B$13)/12,360,SUM('Residential SMSF'!K75),0,0)*-1)-SUM(M75),(PMT((List!$B$16)/12,360,SUM('Residential SMSF'!K75),0,0)*-1)-SUM(M75)) -> 0
A76: Investment Property 3 | C76: 0 | D76: 0 | E76: 0 | F76: =IF((D76+List!$B$13)>=List!$B$16,(PMT((D76+List!$B$13)/12,360,SUM('Residential SMSF'!C76),0,0)*-1)-SUM(E76),(PMT((List!$B$16)/12,360,SUM('Residential SMSF'!C76),0,0)*-1)-SUM(E76)) -> 0 | G76: 0 | H76: 0 | I76: 0 | J76: =IF((H76+List!$B$13)>=List!$B$16,(PMT((H76+List!$B$13)/12,360,SUM('Residential SMSF'!G76),0,0)*-1)-SUM(I76),(PMT((List!$B$16)/12,360,SUM('Residential SMSF'!G76),0,0)*-1)-SUM(I76)) -> 0 | K76: 0 | L76: 0 | M76: 0 | N76: =IF((L76+List!$B$13)>=List!$B$16,(PMT((L76+List!$B$13)/12,360,SUM('Residential SMSF'!K76),0,0)*-1)-SUM(M76),(PMT((List!$B$16)/12,360,SUM('Residential SMSF'!K76),0,0)*-1)-SUM(M76)) -> 0
A77: Investment Property 4 | C77: 0 | D77: 0 | E77: 0 | F77: =IF((D77+List!$B$13)>=List!$B$16,(PMT((D77+List!$B$13)/12,360,SUM('Residential SMSF'!C77),0,0)*-1)-SUM(E77),(PMT((List!$B$16)/12,360,SUM('Residential SMSF'!C77),0,0)*-1)-SUM(E77)) -> 0 | G77: 0 | H77: 0 | I77: 0 | J77: =IF((H77+List!$B$13)>=List!$B$16,(PMT((H77+List!$B$13)/12,360,SUM('Residential SMSF'!G77),0,0)*-1)-SUM(I77),(PMT((List!$B$16)/12,360,SUM('Residential SMSF'!G77),0,0)*-1)-SUM(I77)) -> 0 | K77: 0 | L77: 0 | M77: 0 | N77: =IF((L77+List!$B$13)>=List!$B$16,(PMT((L77+List!$B$13)/12,360,SUM('Residential SMSF'!K77),0,0)*-1)-SUM(M77),(PMT((List!$B$16)/12,360,SUM('Residential SMSF'!K77),0,0)*-1)-SUM(M77)) -> 0
A78: Other Liabilities 1 | C78: 0 | E78: 0 | G78: 0 | I78: 0 | K78: 0 | M78: 0
A79: Other Liabilities 2 | C79: 0 | E79: 0 | G79: 0 | I79: 0 | K79: 0 | M79: 0
A80: Other Liabilities (Fixed) | C80: 0 | E80: 0 | G80: 0 | I80: 0 | K80: 0 | M80: 0
A81: Credit Card 1 | C81: 0 | E81: =C81*HEM!$C$1 -> 0 | G81: 0 | I81: =G81*HEM!$C$1 -> 0 | K81: 0 | M81: =K81*HEM!$C$1 -> 0
A82: Credit Card 2 | C82: 0 | E82: =C82*HEM!$C$1 -> 0 | G82: 0 | I82: =G82*HEM!$C$1 -> 0 | K82: 0 | M82: =K82*HEM!$C$1 -> 0
E83: =SUMIF(F72:F77,">0",F72:F77) -> 0 | I83: =SUMIF(J72:J77,">0",J72:J77) -> 0 | M83: =SUMIF(N72:N77,">0",N72:N77) -> 0
A84: Rent/Board | E84: 0 | I84: 0 | M84: 0
A86: TOTAL EXISTING COMMITMENTS | E86: =SUM(E72:E82)+E84 -> 0 | I86: =SUM(I72:I82)+I84 -> 0 | M86: =SUM(M72:M82)+M84 -> 0
A87: TOTAL ASSESSED EXISTING COMMITMENTS | E87: =E83+E86 -> 0 | I87: =I83+I86 -> 0 | M87: =M83+M86 -> 0
A89: Loan Details
A90: Application # | C90: App# 1 | E90: App# 2 | G90: App# 3 | I90: App# 4 | K90: App# 5 | M90: App# 6
A91: New Loan Amount | C91: 0 | E91: 0 | G91: 0 | I91: 0 | K91: 0 | M91: 0
A92: Repayment Type | C92: Amortising | E92: Amortising | G92: Amortising | I92: Amortising | K92: Amortising | M92: Amortising
A93: Loan Term (Years) | C93: 30 | E93: 30 | G93: 30 | I93: 30 | K93: 30 | M93: 30
A94: Interest Only Term (Years) | C94: 0 | E94: 0 | G94: 0 | I94: 0 | K94: 0 | M94: 0
A96: Interest Rate | C96: 0.05 | E96: 0.05 | G96: 0.05 | I96: 0.05 | K96: 0.05 | M96: 0.05
A97: Sensitivity | C97: =MAX(List!B15:B16)-C96 -> 0.02 | E97: =MAX(List!C15:C16)-E96 -> 0.02 | G97: =MAX(List!D15:D16)-G96 -> 0.02 | I97: =MAX(List!E15:E16)-I96 -> 0.02 | K97: =MAX(List!F15:F16)-K96 -> 0.02 | M97: =MAX(List!G15:G16)-M96 -> 0.02
A98: Assessment Rate | C98: =C96+C97 -> 0.07 | E98: =E96+E97 -> 0.07 | G98: =G96+G97 -> 0.07 | I98: =I96+I97 -> 0.07 | K98: =K96+K97 -> 0.07 | M98: =M96+M97 -> 0.07
A100: Monthly Loan Repayment | C100: =IFERROR(IF(C92="Amortising",-PMT(C96/12,(C93-C94)*12,C91,0,0),C91*C96/12),"") -> 0 | E100: =IFERROR(IF(E92="Amortising",-PMT(E96/12,(E93-E94)*12,E91,0,0),E91*E96/12),"") -> 0 | G100: =IFERROR(IF(G92="Amortising",-PMT(G96/12,(G93-G94)*12,G91,0,0),G91*G96/12),"") -> 0 | I100: =IFERROR(IF(I92="Amortising",-PMT(I96/12,(I93-I94)*12,I91,0,0),I91*I96/12),"") -> 0 | K100: =IFERROR(IF(K92="Amortising",-PMT(K96/12,(K93-K94)*12,K91,0,0),K91*K96/12),"") -> 0 | M100: =IFERROR(IF(M92="Amortising",-PMT(M96/12,(M93-M94)*12,M91,0,0),M91*M96/12),"") -> 0
A101: Monthly Assessed Repayment | C101: =IFERROR(IF(C92="Amortising",-PMT(C98/12,(C93-C94)*12,C91,0,0),C91*C98/12),"") -> 0 | E101: =IFERROR(IF(E92="Amortising",-PMT(E98/12,(E93-E94)*12,E91,0,0),E91*E98/12),"") -> 0 | G101: =IFERROR(IF(G92="Amortising",-PMT(G98/12,(G93-G94)*12,G91,0,0),G91*G98/12),"") -> 0 | I101: =IFERROR(IF(I92="Amortising",-PMT(I98/12,(I93-I94)*12,I91,0,0),I91*I98/12),"") -> 0 | K101: =IFERROR(IF(K92="Amortising",-PMT(K98/12,(K93-K94)*12,K91,0,0),K91*K98/12),"") -> 0 | M101: =IFERROR(IF(M92="Amortising",-PMT(M98/12,(M93-M94)*12,M91,0,0),M91*M98/12),"") -> 0
A103: Results
C105: Household / Company 1 | G105: Household / Company 2 | K105: Household / Company 3
A106: Annual Net Income | C106: =SUMIF($C$11:$M$11,1,$C$27:$M$27)*12 -> 0 | E106: =IFERROR(IF(C110>=0,"PASS","FAIL"),"") -> PASS | G106: =SUMIF($C$11:$M$11,2,$C$27:$M$27)*12 -> 0 | I106: =IFERROR(IF(G110>=0,"PASS","FAIL"),"") -> PASS | K106: =SUMIF($C$11:$M$11,3,$C$27:$M$27)*12 -> 0 | M106: =IFERROR(IF(K110>=0,"PASS","FAIL"),"") -> PASS
A107: Annual Living Expenses | C107: =E67*12 -> 0 | G107: =I67*12 -> 0 | K107: =M67*12 -> 0
A108: Annual Existing Commitments | C108: =E87*12 -> 0 | G108: =I87*12 -> 0 | K108: =M87*12 -> 0
A109: Annual Proposed Repayments | C109: =(C101+E101+G101+I101+K101+M101)*12 -> 0 | G109: =(E101+G101+I101+K101+M101+O101)*12 -> 0 | K109: =(G101+I101+K101+M101+O101+Q101)*12 -> 0
A110: Annual Net Surplus Income: | C110: =IFERROR(C106-C107-C108-C109,"") -> 0 | G110: =IFERROR(G106-G107-G108-G109,"") -> 0 | K110: =IFERROR(K106-K107-K108-K109,"") -> 0
A112: Proposed Future Additional Annual Contributions | C112: Member 1 | E112: Member 2 | G112: Member 3 | I112: Member 4 | K112: Member 5 | M112: Member 6
C113: 0 | E113: 0 | G113: 0 | I113: 0 | K113: 0 | M113: 0
A114: Household | C114: =SUMIF($C$11:$M$11,1,$C$113:$M$113) -> 0 | G114: =SUMIF($C$11:$M$11,2,$C$113:$M$113) -> 0 | K114: =SUMIF($C$11:$M$11,3,$C$113:$M$113) -> 0
C115: =IF(C114>C110,"Surplus income allocation > Household 1 NSI","") ->  | G115: =IF(G114>G110,"Surplus income allocation > Household 2 NSI","") ->  | K115: =IF(K114>K110,"Surplus income allocation > Household 3 NSI","") -> 
C116: =K137 -> 
A119: =Menu!A21 -> The information contained in this calculator is provided by ORDE Financial Pty Limited ACN 634 779 990 Australian Credit Licence 522079 and ORDE Capital Management Limited ACN 636 165 378 Australian Financial Services Licence 523150 Australian Credit Licence 523150 for illustrative purposes only and should not be regarded as a prediction, or as personal advice. Calculations are not forecasts or projections but is a tool that may assist you to make your own projections. The calculator is not intended to be a substitute for professional advice. The information in this calculator does not constitute an offer to lend, or imply the product is suitable for clients. Before acting on this general information, your client must consider its appropriateness having regard to their own objectives, financial situation and need and also seek independent financial, legal and taxation advice. No guarantee, warranty, or representation is given or implied as to the reliability or accuracy of the information use to compile each index or each calculation. ORDE Financial specifically disclaims any liability for any direct, indirect, incidental, consequential, or special damages or for any loss arising out of or in any way connected with the access to, reliance on, or use of this calculator.
A123: Count | C123: =COUNTIF($C$11:$M$11,C11) -> 0 | E123: =COUNTIF($C$11:$M$11,E11) -> 0 | G123: =COUNTIF($C$11:$M$11,G11) -> 0 | I123: =COUNTIF($C$11:$M$11,I11) -> 0 | K123: =COUNTIF($C$11:$M$11,K11) -> 0 | M123: =COUNTIF($C$11:$M$11,M11) -> 0
A125: Individual (Single) | C125: =IF(C10="Individual (Single)",IF(C123=1,"",IF(C123>1,"Only 1 Household per Single Applicant","Applicant needs to be assigned a Household"))) -> FALSE | E125: =IF(E10="Individual (Single)",IF(E123=1,"",IF(E123>1,"Only 1 Household per Single Applicant","Applicant needs to be assigned a Household"))) -> FALSE | G125: =IF(G10="Individual (Single)",IF(G123=1,"",IF(G123>1,"Only 1 Household per Single Applicant","Applicant needs to be assigned a Household"))) -> FALSE | I125: =IF(I10="Individual (Single)",IF(I123=1,"",IF(I123>1,"Only 1 Household per Single Applicant","Applicant needs to be assigned a Household"))) -> FALSE | K125: =IF(K10="Individual (Single)",IF(K123=1,"",IF(K123>1,"Only 1 Household per Single Applicant","Applicant needs to be assigned a Household"))) -> FALSE | M125: =IF(M10="Individual (Single)",IF(M123=1,"",IF(M123>1,"Only 1 Household per Single Applicant","Applicant needs to be assigned a Household"))) -> FALSE
A126: Individual (Couple) | C126: =IF(C10="Individual (Couple)",IF(C123=1,"",IF(C123=2,"",IF(C123>2,"Only 1 Household per Couple Applicant",IF(C123<1,"Applicant needs to be assigned a Household",))))) -> FALSE | E126: =IF(E10="Individual (Couple)",IF(E123=1,"",IF(E123=2,"",IF(E123>2,"Only 1 Household per Couple Applicant",IF(E123<1,"Applicant needs to be assigned a Household",))))) -> FALSE | G126: =IF(G10="Individual (Couple)",IF(G123=1,"",IF(G123=2,"",IF(G123>2,"Only 1 Household per Couple Applicant",IF(G123<1,"Applicant needs to be assigned a Household",))))) -> FALSE | I126: =IF(I10="Individual (Couple)",IF(I123=1,"",IF(I123=2,"",IF(I123>2,"Only 1 Household per Couple Applicant",IF(I123<1,"Applicant needs to be assigned a Household",))))) -> FALSE | K126: =IF(K10="Individual (Couple)",IF(K123=1,"",IF(K123=2,"",IF(K123>2,"Only 1 Household per Couple Applicant",IF(K123<1,"Applicant needs to be assigned a Household",))))) -> FALSE | M126: =IF(M10="Individual (Couple)",IF(M123=1,"",IF(M123=2,"",IF(M123>2,"Only 1 Household per Couple Applicant",IF(M123<1,"Applicant needs to be assigned a Household",))))) -> FALSE
A127: n/a | C127: =IF(C10="n/a",IF(C123>0,"Household should only be applied where an applicant exists","")) ->  | E127: =IF(E10="n/a",IF(E123>0,"Household should only be applied where an applicant exists","")) ->  | G127: =IF(G10="n/a",IF(G123>0,"Household should only be applied where an applicant exists","")) ->  | I127: =IF(I10="n/a",IF(I123>0,"Household should only be applied where an applicant exists","")) ->  | K127: =IF(K10="n/a",IF(K123>0,"Household should only be applied where an applicant exists","")) ->  | M127: =IF(M10="n/a",IF(M123>0,"Household should only be applied where an applicant exists","")) -> 
A128: Company | C128: =IF(C10="Company",IF(C123>0,"Household should not be applied to a Company Applicant","")) -> FALSE | E128: =IF(E10="Company",IF(E123>0,"Household should not be applied to a Company Applicant","")) -> FALSE | G128: =IF(G10="Company",IF(G123>0,"Household should not be applied to a Company Applicant","")) -> FALSE | I128: =IF(I10="Company",IF(I123>0,"Household should not be applied to a Company Applicant","")) -> FALSE | K128: =IF(K10="Company",IF(K123>0,"Household should not be applied to a Company Applicant","")) -> FALSE | M128: =IF(M10="Company",IF(M123>0,"Household should not be applied to a Company Applicant","")) -> FALSE
A129: Error Message | C129: =IFERROR(VLOOKUP(C10,$A$125:$M$128,3,FALSE),"") ->  | E129: =IFERROR(VLOOKUP(E10,$A$125:$M$128,5,FALSE),"") ->  | G129: =IFERROR(VLOOKUP(G10,$A$125:$M$128,7,FALSE),"") ->  | I129: =IFERROR(VLOOKUP(I10,$A$125:$M$128,9,FALSE),"") ->  | K129: =IFERROR(VLOOKUP(K10,$A$125:$M$128,11,FALSE),"") ->  | M129: =IFERROR(VLOOKUP(M10,$A$125:$M$128,13,FALSE),"") -> 
A131: Household | C131: 1 | E131: 2 | G131: 3
A132: Household Count | C132: =COUNTIF($C$11:$M$11,C131) -> 0 | E132: =COUNTIF($C$11:$M$11,E131) -> 0 | G132: =COUNTIF($C$11:$M$11,G131) -> 0
A133: Expense Error | C133: =IF(C132=0,IF(E38>0,"Household 1 has not been assigned to an applicant",""),IF(E38<E37,"Monthly living expenses are less than benchmark, detailed explanation required","")) ->  | E133: =IF(E132=0,IF(I38>0,"Household 1 has not been assigned to an applicant",""),IF(I38<I37,"Monthly living expenses are less than benchmark, detailed explanation required","")) ->  | G133: =IF(G132=0,IF(M38>0,"Household 1 has not been assigned to an applicant",""),IF(M38<M37,"Monthly living expenses are less than benchmark, detailed explanation required","")) -> 
A134: Bank Statements | C134: =C40+G40+K40 -> 0
A135: Bank Statements | C135: =IFERROR(C106-C134-C108-C109,"") -> 0
A137: Error Message | C137: =IF(C135<0,"Where borrower/s are individuals, 3 months banks statements / transaction statements required to support loan application","") ->  | K137: =C137 -> 

Sheet LeaseDoc (hidden)
A3: Lease Doc Serviceability Calculator | E3: =Menu!A6 -> Version 1.19 (1 April 2024)
A5: Application Name:
A6: Applicant #:
A8: Loan Details
A10: Monthly Net Rental Income (Security) | C10: 0 | E10: Annual Net Rental Income | G10: =C10*12 -> 0
A12: New Loan Amount | C12: 0 | E12: Interest Rate | F12: 5 | G12: 0.05
A13: Repayment Type | C13: Amortising
A14: Loan Term | C14: 30
A15: Interest Only Term | C15: 0 | E15: Monthly Loan Repayment | G15: =IF(C13="Amortising",-PMT(G12/12,(C14-C15)*12,C12,0,0),C12*G12/12) -> 0
A19: Results
C21: Monthly
A22: Net Income | C22: =C10 -> 0 | E22: Interest Cover Ratio | G22: =IFERROR(ROUNDUP(C22/C23,2),"") -> 
A23: Loan Repayment | C23: =G15 -> 0 | E23: Maximum Loan: | G23: =IF(G22>=1.4,"PASS",IF(G22>=1.25,"FAIL","FAIL")) -> PASS
A26: =Menu!A21 -> The information contained in this calculator is provided by ORDE Financial Pty Limited ACN 634 779 990 Australian Credit Licence 522079 and ORDE Capital Management Limited ACN 636 165 378 Australian Financial Services Licence 523150 Australian Credit Licence 523150 for illustrative purposes only and should not be regarded as a prediction, or as personal advice. Calculations are not forecasts or projections but is a tool that may assist you to make your own projections. The calculator is not intended to be a substitute for professional advice. The information in this calculator does not constitute an offer to lend, or imply the product is suitable for clients. Before acting on this general information, your client must consider its appropriateness having regard to their own objectives, financial situation and need and also seek independent financial, legal and taxation advice. No guarantee, warranty, or representation is given or implied as to the reliability or accuracy of the information use to compile each index or each calculation. ORDE Financial specifically disclaims any liability for any direct, indirect, incidental, consequential, or special damages or for any loss arising out of or in any way connected with the access to, reliance on, or use of this calculator.

Sheet Tax Tables (hidden)
A1: Rental Income Allowable % | D1: 0.8
A2: Company Tax Rate % | D2: 0.275
A3: SMSF Investment Returns | D3: 0.03
A4: SMSF Contributions Tax | D4: 0.15
A5: LeaseDoc ICR | D5: 1.5
A6: Individual Tax Calculator | G6: Applicant 1 | I6: Applicant 2 | K6: Applicant 3 | M6: Applicant 4 | O6: Applicant 5 | Q6: Applicant 6
A7: Rental Income Gearing / (Negative Gearing) | G7: =(Residential!C18*$D$1)-(Residential!C19)-(Residential!C20) -> 0 | I7: =(Residential!E18*$D$1)-(Residential!E19)-(Residential!E20) -> 0 | K7: =(Residential!G18*$D$1)-(Residential!G19)-(Residential!G20) -> 0 | M7: =(Residential!I18*$D$1)-(Residential!I19)-(Residential!I20) -> 0 | O7: =(Residential!K18*$D$1)-(Residential!K19)-(Residential!K29) -> 0 | Q7: =(Residential!M18*$D$1)-(Residential!M19)-(Residential!M20) -> 0
A9: Gross Annual Income | G9: =Residential!C15 -> 0 | I9: =Residential!E15 -> 0 | K9: =Residential!G15 -> 0 | M9: =Residential!I15 -> 0 | O9: =Residential!K15 -> 0 | Q9: =Residential!M15 -> 0
A11: Gross Taxable Income | E11: Tax Rate | G11: =G7+G9 -> 0 | I11: =I7+I9 -> 0 | K11: =K7+K9 -> 0 | M11: =M7+M9 -> 0 | O11: =O7+O9 -> 0 | Q11: =Q7+Q9 -> 0
B12: 0 | C12: 18200 | E12: 0 | G12: =IF(G11>$C$12,$C$12,G11) -> 0 | H12: =$E$12*G12 -> 0 | I12: =IF(I11>$C$12,$C$12,I11) -> 0 | J12: =$E$12*I12 -> 0 | K12: =IF(K11>$C$12,$C$12,K11) -> 0 | L12: =$E$12*K12 -> 0 | M12: =IF(M11>$C$12,$C$12,M11) -> 0 | N12: =$E$12*M12 -> 0 | O12: =IF(O11>$C$12,$C$12,O11) -> 0 | P12: =$E$12*O12 -> 0 | Q12: =IF(Q11>$C$12,$C$12,Q11) -> 0 | R12: =$E$12*Q12 -> 0
B13: 18201 | C13: 45000 | E13: 0.19 | G13: =IF(G12=$C$12,IF(G$11>$C$13,$C$13-$C$12,G$11-$C$12),0) -> 0 | H13: =$E$13*G13 -> 0 | I13: =IF(I12=$C$12,IF(I$11>$C$13,$C$13-$C$12,I$11-$C$12),0) -> 0 | J13: =$E$13*I13 -> 0 | K13: =IF(K12=$C$12,IF(K$11>$C$13,$C$13-$C$12,K$11-$C$12),0) -> 0 | L13: =$E$13*K13 -> 0 | M13: =IF(M12=$C$12,IF(M$11>$C$13,$C$13-$C$12,M$11-$C$12),0) -> 0 | N13: =$E$13*M13 -> 0 | O13: =IF(O12=$C$12,IF(O$11>$C$13,$C$13-$C$12,O$11-$C$12),0) -> 0 | P13: =$E$13*O13 -> 0 | Q13: =IF(Q12=$C$12,IF(Q$11>$C$13,$C$13-$C$12,Q$11-$C$12),0) -> 0 | R13: =$E$13*Q13 -> 0
B14: 45001 | C14: 120000 | E14: 0.325 | G14: =IF(G13+G12=$C$13,IF(G$11>$C$14,$C$14-$C$13,G$11-$C$13),0) -> 0 | H14: =$E$14*G14 -> 0 | I14: =IF(I13+I12=$C$13,IF(I$11>$C$14,$C$14-$C$13,I$11-$C$13),0) -> 0 | J14: =$E$14*I14 -> 0 | K14: =IF(K13+K12=$C$13,IF(K$11>$C$14,$C$14-$C$13,K$11-$C$13),0) -> 0 | L14: =$E$14*K14 -> 0 | M14: =IF(M13+M12=$C$13,IF(M$11>$C$14,$C$14-$C$13,M$11-$C$13),0) -> 0 | N14: =$E$14*M14 -> 0 | O14: =IF(O13+O12=$C$13,IF(O$11>$C$14,$C$14-$C$13,O$11-$C$13),0) -> 0 | P14: =$E$14*O14 -> 0 | Q14: =IF(Q13+Q12=$C$13,IF(Q$11>$C$14,$C$14-$C$13,Q$11-$C$13),0) -> 0 | R14: =$E$14*Q14 -> 0
B15: 120001 | C15: 180000 | E15: 0.37 | G15: =IF(G14+G13+G12=$C$14,IF(G$11>$C$15,$C$15-$C$14,G$11-$C$14),0) -> 0 | H15: =$E$15*G15 -> 0 | I15: =IF(I14+I13+I12=$C$14,IF(I$11>$C$15,$C$15-$C$14,I$11-$C$14),0) -> 0 | J15: =$E$15*I15 -> 0 | K15: =IF(K14+K13+K12=$C$14,IF(K$11>$C$15,$C$15-$C$14,K$11-$C$14),0) -> 0 | L15: =$E$15*K15 -> 0 | M15: =IF(M14+M13+M12=$C$14,IF(M$11>$C$15,$C$15-$C$14,M$11-$C$14),0) -> 0 | N15: =$E$15*M15 -> 0 | O15: =IF(O14+O13+O12=$C$14,IF(O$11>$C$15,$C$15-$C$14,O$11-$C$14),0) -> 0 | P15: =$E$15*O15 -> 0 | Q15: =IF(Q14+Q13+Q12=$C$14,IF(Q$11>$C$15,$C$15-$C$14,Q$11-$C$14),0) -> 0 | R15: =$E$15*Q15 -> 0
B16: 180001 | C16: 100000000 | E16: 0.45 | G16: =IF(G15+G14+G13+G12=$C$15,IF(G$11>$C$16,$C$16-$C$15,G$11-$C$15),0) -> 0 | H16: =$E$16*G16 -> 0 | I16: =IF(I15+I14+I13+I12=$C$15,IF(I$11>$C$16,$C$16-$C$15,I$11-$C$15),0) -> 0 | J16: =$E$16*I16 -> 0 | K16: =IF(K15+K14+K13+K12=$C$15,IF(K$11>$C$16,$C$16-$C$15,K$11-$C$15),0) -> 0 | L16: =$E$16*K16 -> 0 | M16: =IF(M15+M14+M13+M12=$C$15,IF(M$11>$C$16,$C$16-$C$15,M$11-$C$15),0) -> 0 | N16: =$E$16*M16 -> 0 | O16: =IF(O15+O14+O13+O12=$C$15,IF(O$11>$C$16,$C$16-$C$15,O$11-$C$15),0) -> 0 | P16: =$E$16*O16 -> 0 | Q16: =IF(Q15+Q14+Q13+Q12=$C$15,IF(Q$11>$C$16,$C$16-$C$15,Q$11-$C$15),0) -> 0 | R16: =$E$16*Q16 -> 0
E17: Taxable IncomeTotals: | G17: =SUM(G12:G16) -> 0 | H17: =SUM(H12:H16) -> 0 | I17: 0 | J17: 0 | K17: 0 | L17: 0 | M17: 0 | N17: 0 | O17: 0 | P17: 0 | Q17: 0 | R17: 0
A19: Low & Middle Income Tax Offset table | D19: Tax Offset | E19: Tax Offset %
B20: 0 | C20: 37000 | D20: 0 | G20: =IF(G$11>$C$20,$C$20,G$11) -> 0 | H20: =IF(G$11<$C$20+0.01,$D$20,0) -> 0 | I20: =IF(I$11>$C$20,$C$20,I$11) -> 0 | J20: =IF(I$11<$C$20+0.01,$D$20,0) -> 0 | K20: =IF(K$11>$C$20,$C$20,K$11) -> 0 | L20: =IF(K$11<$C$20+0.01,$D$20,0) -> 0 | M20: =IF(M$11>$C$20,$C$20,M$11) -> 0 | N20: =IF(M$11<$C$20+0.01,$D$20,0) -> 0 | O20: =IF(O$11>$C$20,$C$20,O$11) -> 0 | P20: =IF(O$11<$C$20+0.01,$D$20,0) -> 0 | Q20: =IF(Q$11>$C$20,$C$20,Q$11) -> 0 | R20: =IF(Q$11<$C$20+0.01,$D$20,0) -> 0 | S20: does not exceed $37,000, you will be entitled to an offset amount of $255 on your tax payable.
B21: 37001 | C21: 48000 | D21: 0 | E21: 0.075 | G21: =IF(G20=$C$20,IF(G$11>$C$21,$C$21-$C$20,G$11-$C$20),0) -> 0 | H21: =IF(G21=0,0,IF(G$11<$C$21+0.01,(((G$11-$C$20)*$E$21)+$D$21),0)) -> 0 | I21: =IF(I20=$C$20,IF(I$11>$C$21,$C$21-$C$20,I$11-$C$20),0) -> 0 | J21: =IF(I21=0,0,IF(I$11<$C$21+0.01,(((I$11-$C$20)*$E$21)+$D$21),0)) -> 0 | K21: =IF(K20=$C$20,IF(K$11>$C$21,$C$21-$C$20,K$11-$C$20),0) -> 0 | L21: =IF(K21=0,0,IF(K$11<$C$21+0.01,(((K$11-$C$20)*$E$21)+$D$21),0)) -> 0 | M21: =IF(M20=$C$20,IF(M$11>$C$21,$C$21-$C$20,M$11-$C$20),0) -> 0 | N21: =IF(M21=0,0,IF(M$11<$C$21+0.01,(((M$11-$C$20)*$E$21)+$D$21),0)) -> 0 | O21: =IF(O20=$C$20,IF(O$11>$C$21,$C$21-$C$20,O$11-$C$20),0) -> 0 | P21: =IF(O21=0,0,IF(O$11<$C$21+0.01,(((O$11-$C$20)*$E$21)+$D$21),0)) -> 0 | Q21: =IF(Q20=$C$20,IF(Q$11>$C$21,$C$21-$C$20,Q$11-$C$20),0) -> 0 | R21: =IF(Q21=0,0,IF(Q$11<$C$21+0.01,(((Q$11-$C$20)*$E$21)+$D$21),0)) -> 0 | S21: exceeds $37,000 but is not more than $48,000, you will be entitled to an offset amount of $255, plus 7.5% of the excess above $37,000 to a maximum offset of $1,080 on your tax payable.
B22: 48001 | C22: 90000 | D22: 0 | G22: =IF(G21+G20=$C$21,IF(G$11>$C$22,$C$22-$C$21,G$11-$C$21),0) -> 0 | H22: =IF(G22=0,0,IF(G$11<$C$22+0.01,(((G$11-$C$21)*$E$22)+$D$22),0)) -> 0 | I22: =IF(I21+I20=$C$21,IF(I$11>$C$22,$C$22-$C$21,I$11-$C$21),0) -> 0 | J22: =IF(I22=0,0,IF(I$11<$C$22+0.01,(((I$11-$C$21)*$E$22)+$D$22),0)) -> 0 | K22: =IF(K21+K20=$C$21,IF(K$11>$C$22,$C$22-$C$21,K$11-$C$21),0) -> 0 | L22: =IF(K22=0,0,IF(K$11<$C$22+0.01,(((K$11-$C$21)*$E$22)+$D$22),0)) -> 0 | M22: =IF(M21+M20=$C$21,IF(M$11>$C$22,$C$22-$C$21,M$11-$C$21),0) -> 0 | N22: =IF(M22=0,0,IF(M$11<$C$22+0.01,(((M$11-$C$21)*$E$22)+$D$22),0)) -> 0 | O22: =IF(O21+O20=$C$21,IF(O$11>$C$22,$C$22-$C$21,O$11-$C$21),0) -> 0 | P22: =IF(O22=0,0,IF(O$11<$C$22+0.01,(((O$11-$C$21)*$E$22)+$D$22),0)) -> 0 | Q22: =IF(Q21+Q20=$C$21,IF(Q$11>$C$22,$C$22-$C$21,Q$11-$C$21),0) -> 0 | R22: =IF(Q22=0,0,IF(Q$11<$C$22+0.01,(((Q$11-$C$21)*$E$22)+$D$22),0)) -> 0 | S22: exceeds $48,000 but is not more than $90,000, you will be entitled to the maximum offset amount of $1,080 on your tax payable.
B23: 90001 | C23: 126000 | D23: 0 | E23: -0.03 | G23: =IF(G22+G21+G20=$C$22,IF(G$11>$C$23,$C$23-$C$22,G$11-$C$22),0) -> 0 | H23: =IF(G23=0,0,IF(G$11<$C$23+0.01,(((G$11-$C$22)*$E$23)+$D$23),0)) -> 0 | I23: =IF(I22+I21+I20=$C$22,IF(I$11>$C$23,$C$23-$C$22,I$11-$C$22),0) -> 0 | J23: =IF(I23=0,0,IF(I$11<$C$23+0.01,(((I$11-$C$22)*$E$23)+$D$23),0)) -> 0 | K23: =IF(K22+K21+K20=$C$22,IF(K$11>$C$23,$C$23-$C$22,K$11-$C$22),0) -> 0 | L23: =IF(K23=0,0,IF(K$11<$C$23+0.01,(((K$11-$C$22)*$E$23)+$D$23),0)) -> 0 | M23: =IF(M22+M21+M20=$C$22,IF(M$11>$C$23,$C$23-$C$22,M$11-$C$22),0) -> 0 | N23: =IF(M23=0,0,IF(M$11<$C$23+0.01,(((M$11-$C$22)*$E$23)+$D$23),0)) -> 0 | O23: =IF(O22+O21+O20=$C$22,IF(O$11>$C$23,$C$23-$C$22,O$11-$C$22),0) -> 0 | P23: =IF(O23=0,0,IF(O$11<$C$23+0.01,(((O$11-$C$22)*$E$23)+$D$23),0)) -> 0 | Q23: =IF(Q22+Q21+Q20=$C$22,IF(Q$11>$C$23,$C$23-$C$22,Q$11-$C$22),0) -> 0 | R23: =IF(Q23=0,0,IF(Q$11<$C$23+0.01,(((Q$11-$C$22)*$E$23)+$D$23),0)) -> 0 | S23: exceeds $90,000 but is not more than $126,000, you will be entitled to an offset amount $1,080 less 3% of your taxable income above $90,000.
B24: 126001 | C24: 100000000 | G24: =IF(G23+G22+G21+G20=$C$23,IF(G$11>$C$24,$C$24-$C$23,G$11-$C$23),0) -> 0 | I24: =IF(I23+I22+I21+I20=$C$23,IF(I$11>$C$24,$C$24-$C$23,I$11-$C$23),0) -> 0 | K24: =IF(K23+K22+K21+K20=$C$23,IF(K$11>$C$24,$C$24-$C$23,K$11-$C$23),0) -> 0 | M24: =IF(M23+M22+M21+M20=$C$23,IF(M$11>$C$24,$C$24-$C$23,M$11-$C$23),0) -> 0 | O24: =IF(O23+O22+O21+O20=$C$23,IF(O$11>$C$24,$C$24-$C$23,O$11-$C$23),0) -> 0 | Q24: =IF(Q23+Q22+Q21+Q20=$C$23,IF(Q$11>$C$24,$C$24-$C$23,Q$11-$C$23),0) -> 0
E25: Low & Middle Income Tax Offse Totals: | G25: =SUM(G19:G24) -> 0 | H25: 0 | I25: 0 | J25: 0 | K25: 0 | L25: 0 | M25: 0 | N25: 0 | O25: 0 | P25: 0 | Q25: 0 | R25: 0
A27: Low Income Tax Offset | D27: Tax Offset | E27: Tax Offset %
B28: 0 | C28: 37500 | D28: 700 | G28: =IF(G$11>$C$28,$C$28,G$11) -> 0 | H28: =IF(G$11<$C$28+0.01,$D$28,0) -> 700 | I28: =IF(I$11>$C$28,$C$28,I$11) -> 0 | J28: =IF(I$11<$C$28+0.01,$D$28,0) -> 700 | K28: =IF(K$11>$C$28,$C$28,K$11) -> 0 | L28: =IF(K$11<$C$28+0.01,$D$28,0) -> 700 | M28: =IF(M$11>$C$28,$C$28,M$11) -> 0 | N28: =IF(M$11<$C$28+0.01,$D$28,0) -> 700 | O28: =IF(O$11>$C$28,$C$28,O$11) -> 0 | P28: =IF(O$11<$C$28+0.01,$D$28,0) -> 700 | Q28: =IF(Q$11>$C$28,$C$28,Q$11) -> 0 | R28: =IF(Q$11<$C$28+0.01,$D$28,0) -> 700 | S28: The maximum tax offset of $700 applies if your taxable income is $37,500 or less. \
B29: 37501 | C29: 45000 | D29: 700 | E29: -0.05 | G29: =IF(G28=$C$28,IF(G$11>$C$29,$C$29-$C$28,G$11-$C$28),0) -> 0 | H29: =IF(G29=0,0,IF(G$11<$C$29+0.01,(((G$11-$C$28)*$E$29)+$D$29),0)) -> 0 | I29: =IF(I28=$C$28,IF(I$11>$C$29,$C$29-$C$28,I$11-$C$28),0) -> 0 | J29: =IF(I29=0,0,IF(I$11<$C$29+0.01,(((I$11-$C$28)*$E$29)+$D$29),0)) -> 0 | K29: =IF(K28=$C$28,IF(K$11>$C$29,$C$29-$C$28,K$11-$C$28),0) -> 0 | L29: =IF(K29=0,0,IF(K$11<$C$29+0.01,(((K$11-$C$28)*$E$29)+$D$29),0)) -> 0 | M29: =IF(M28=$C$28,IF(M$11>$C$29,$C$29-$C$28,M$11-$C$28),0) -> 0 | N29: =IF(M29=0,0,IF(M$11<$C$29+0.01,(((M$11-$C$28)*$E$29)+$D$29),0)) -> 0 | O29: =IF(O28=$C$28,IF(O$11>$C$29,$C$29-$C$28,O$11-$C$28),0) -> 0 | P29: =IF(O29=0,0,IF(O$11<$C$29+0.01,(((O$11-$C$28)*$E$29)+$D$29),0)) -> 0 | Q29: =IF(Q28=$C$28,IF(Q$11>$C$29,$C$29-$C$28,Q$11-$C$28),0) -> 0 | R29: =IF(Q29=0,0,IF(Q$11<$C$29+0.01,(((Q$11-$C$28)*$E$29)+$D$29),0)) -> 0 | S29: This amount is reduced by 5 cents for each dollar over $37,500 up to $45,000.
B30: 45001 | C30: 66667 | D30: 325 | E30: -0.015 | G30: =IF(G29+G28=$C$29,IF(G$11>$C$30,$C$30-$C$29,G$11-$C$29),0) -> 0 | H30: =IF(G30=0,0,IF(G$11<$C$30+0.01,(((G$11-$C$29)*$E$30)+$D$30),0)) -> 0 | I30: =IF(I29+I28=$C$29,IF(I$11>$C$30,$C$30-$C$29,I$11-$C$29),0) -> 0 | J30: =IF(I30=0,0,IF(I$11<$C$30+0.01,(((I$11-$C$29)*$E$30)+$D$30),0)) -> 0 | K30: =IF(K29+K28=$C$29,IF(K$11>$C$30,$C$30-$C$29,K$11-$C$29),0) -> 0 | L30: =IF(K30=0,0,IF(K$11<$C$30+0.01,(((K$11-$C$29)*$E$30)+$D$30),0)) -> 0 | M30: =IF(M29+M28=$C$29,IF(M$11>$C$30,$C$30-$C$29,M$11-$C$29),0) -> 0 | N30: =IF(M30=0,0,IF(M$11<$C$30+0.01,(((M$11-$C$29)*$E$30)+$D$30),0)) -> 0 | O30: =IF(O29+O28=$C$29,IF(O$11>$C$30,$C$30-$C$29,O$11-$C$29),0) -> 0 | P30: =IF(O30=0,0,IF(O$11<$C$30+0.01,(((O$11-$C$29)*$E$30)+$D$30),0)) -> 0 | Q30: =IF(Q29+Q28=$C$29,IF(Q$11>$C$30,$C$30-$C$29,Q$11-$C$29),0) -> 0 | R30: =IF(Q30=0,0,IF(Q$11<$C$30+0.01,(((Q$11-$C$29)*$E$30)+$D$30),0)) -> 0 | S30: This amount is reduced by 1.55 cents for each dollar over $45,000 up to $66,667
B31: 66668 | C31: 100000000 | G31: =IF(G29+G28+G30=$C$30,IF(G$11>$C$31,$C$31-$C$30,G$11-$C$30),0) -> 0 | H31: =IF(G31=0,0,IF(G$11<$C$31+0.01,(((G$11-$C$29)*$E$31)+$D$31),0)) -> 0 | I31: =IF(I29+I28+I30=$C$30,IF(I$11>$C$31,$C$31-$C$30,I$11-$C$30),0) -> 0 | J31: =IF(I31=0,0,IF(I$11<$C$31+0.01,(((I$11-$C$29)*$E$31)+$D$31),0)) -> 0 | K31: =IF(K29+K28+K30=$C$30,IF(K$11>$C$31,$C$31-$C$30,K$11-$C$30),0) -> 0 | L31: =IF(K31=0,0,IF(K$11<$C$31+0.01,(((K$11-$C$29)*$E$31)+$D$31),0)) -> 0 | M31: =IF(M29+M28+M30=$C$30,IF(M$11>$C$31,$C$31-$C$30,M$11-$C$30),0) -> 0 | N31: =IF(M31=0,0,IF(M$11<$C$31+0.01,(((M$11-$C$29)*$E$31)+$D$31),0)) -> 0 | O31: =IF(O29+O28+O30=$C$30,IF(O$11>$C$31,$C$31-$C$30,O$11-$C$30),0) -> 0 | P31: =IF(O31=0,0,IF(O$11<$C$31+0.01,(((O$11-$C$29)*$E$31)+$D$31),0)) -> 0 | Q31: =IF(Q29+Q28+Q30=$C$30,IF(Q$11>$C$31,$C$31-$C$30,Q$11-$C$30),0) -> 0 | R31: =IF(Q31=0,0,IF(Q$11<$C$31+0.01,(((Q$11-$C$29)*$E$31)+$D$31),0)) -> 0
E32: Low Income Tax Offset Totals: | H32: =SUM(H28:H31) -> 700 | J32: =SUM(J28:J31) -> 700 | L32: =SUM(L28:L31) -> 700 | N32: =SUM(N28:N31) -> 700 | P32: =SUM(P28:P31) -> 700 | R32: =SUM(R28:R31) -> 700
E34: Total Tax | H34: =IF(H17-H25-H32<0,0,H17-H25-H32) -> 0 | J34: =IF(J17-J25-J32<0,0,J17-J25-J32) -> 0 | L34: =IF(L17-L25-L32<0,0,L17-L25-L32) -> 0 | N34: =IF(N17-N25-N32<0,0,N17-N25-N32) -> 0 | P34: =IF(P17-P25-P32<0,0,P17-P25-P32) -> 0 | R34: =IF(R17-R25-R32<0,0,R17-R25-R32) -> 0
A36: Medicare Levy (Yearly) | S36: In 2018–19, you do not have to pay the Medicare levy if your taxable income is equal to or less than $22,398
B37: 0 | C37: 24276 | D37: 0 | E37: 0 | G37: =IF(G$11>$C$37,$C$37,G$11) -> 0 | H37: =IF(G$11<$C$37+0.01,$D$37,0) -> 0 | I37: =IF(I$11>$C$37,$C$37,I$11) -> 0 | J37: =IF(I$11<$C$37+0.01,$D$37,0) -> 0 | K37: =IF(K$11>$C$37,$C$37,K$11) -> 0 | L37: =IF(K$11<$C$37+0.01,$D$37,0) -> 0 | M37: =IF(M$11>$C$37,$C$37,M$11) -> 0 | N37: =IF(M$11<$C$37+0.01,$D$37,0) -> 0 | O37: =IF(O$11>$C$37,$C$37,O$11) -> 0 | P37: =IF(O$11<$C$37+0.01,$D$37,0) -> 0 | Q37: =IF(Q$11>$C$37,$C$37,Q$11) -> 0 | R37: =IF(Q$11<$C$37+0.01,$D$37,0) -> 0 | S37: You will pay only part of the Medicare levy if your taxable income is between $22,398 and $27,997
B38: 24276 | C38: 30345 | D38: 0 | E38: 0.1 | G38: =IF(G37=$C$37,IF(G$11>$C$38,$C$38-$C$37,G$11-$C$37),0) -> 0 | H38: =IF(G38=0,0,IF(G$11<$C$38+0.01,(((G$11-$C$37)*$E$38)+$D$38),0)) -> 0 | I38: =IF(I37=$C$37,IF(I$11>$C$38,$C$38-$C$37,I$11-$C$37),0) -> 0 | J38: =IF(I38=0,0,IF(I$11<$C$38+0.01,(((I$11-$C$37)*$E$38)+$D$38),0)) -> 0 | K38: =IF(K37=$C$37,IF(K$11>$C$38,$C$38-$C$37,K$11-$C$37),0) -> 0 | L38: =IF(K38=0,0,IF(K$11<$C$38+0.01,(((K$11-$C$37)*$E$38)+$D$38),0)) -> 0 | M38: =IF(M37=$C$37,IF(M$11>$C$38,$C$38-$C$37,M$11-$C$37),0) -> 0 | N38: =IF(M38=0,0,IF(M$11<$C$38+0.01,(((M$11-$C$37)*$E$38)+$D$38),0)) -> 0 | O38: =IF(O37=$C$37,IF(O$11>$C$38,$C$38-$C$37,O$11-$C$37),0) -> 0 | P38: =IF(O38=0,0,IF(O$11<$C$38+0.01,(((O$11-$C$37)*$E$38)+$D$38),0)) -> 0 | Q38: =IF(Q37=$C$37,IF(Q$11>$C$38,$C$38-$C$37,Q$11-$C$37),0) -> 0 | R38: =IF(Q38=0,0,IF(Q$11<$C$38+0.01,(((Q$11-$C$37)*$E$38)+$D$38),0)) -> 0
B39: 30345 | C39: 100000000 | D39: =C38*2% -> 606.9 | E39: 0.02 | G39: =IF(G38+G37=$C$38,IF(G$11>$C$39,$C$39-$C$38,G$11-$C$38),0) -> 0 | H39: =IF(G39=0,0,IF(G$11<$C$39+0.01,(((G$11-$C$38)*$E$39)+$D$39),0)) -> 0 | I39: =IF(I38+I37=$C$38,IF(I$11>$C$39,$C$39-$C$38,I$11-$C$38),0) -> 0 | J39: =IF(I39=0,0,IF(I$11<$C$39+0.01,(((I$11-$C$38)*$E$39)+$D$39),0)) -> 0 | K39: =IF(K38+K37=$C$38,IF(K$11>$C$39,$C$39-$C$38,K$11-$C$38),0) -> 0 | L39: =IF(K39=0,0,IF(K$11<$C$39+0.01,(((K$11-$C$38)*$E$39)+$D$39),0)) -> 0 | M39: =IF(M38+M37=$C$38,IF(M$11>$C$39,$C$39-$C$38,M$11-$C$38),0) -> 0 | N39: =IF(M39=0,0,IF(M$11<$C$39+0.01,(((M$11-$C$38)*$E$39)+$D$39),0)) -> 0 | O39: =IF(O38+O37=$C$38,IF(O$11>$C$39,$C$39-$C$38,O$11-$C$38),0) -> 0 | P39: =IF(O39=0,0,IF(O$11<$C$39+0.01,(((O$11-$C$38)*$E$39)+$D$39),0)) -> 0 | Q39: =IF(Q38+Q37=$C$38,IF(Q$11>$C$39,$C$39-$C$38,Q$11-$C$38),0) -> 0 | R39: =IF(Q39=0,0,IF(Q$11<$C$39+0.01,(((Q$11-$C$38)*$E$39)+$D$39),0)) -> 0
E40: Medicare Levy Totals: | H40: =SUM(H37:H39) -> 0 | J40: =SUM(J37:J39) -> 0 | L40: =SUM(L37:L39) -> 0 | N40: =SUM(N37:N39) -> 0 | P40: =SUM(P37:P39) -> 0 | R40: =SUM(R37:R39) -> 0
E42: Total Tax | H42: =H34+H40 -> 0 | J42: =J34+J40 -> 0 | L42: =L34+L40 -> 0 | N42: =N34+N40 -> 0 | P42: =P34+P40 -> 0 | R42: =R34+R40 -> 0
A43: HECS/HELP Debt | G43: =IF(G7>0,G7+G9,G9) -> 0 | I43: =IF(I7>0,I7+I9,I9) -> 0 | K43: =IF(K7>0,K7+K9,K9) -> 0 | M43: =IF(M7>0,M7+M9,M9) -> 0 | O43: =IF(O7>0,O7+O9,O9) -> 0 | Q43: =IF(Q7>0,Q7+Q9,Q9) -> 0
B44: 0 | C44: 51550 | E44: 0 | G44: =IF(G$43>$C44,0,IF(G$43<$B44,0,G$43)) -> 0 | H44: =$E44*G44 -> 0 | I44: =IF(I$43>$C44,0,IF(I$43<$B44,0,I$43)) -> 0 | J44: =$E44*I44 -> 0 | K44: =IF(K$43>$C44,0,IF(K$43<$B44,0,K$43)) -> 0 | L44: =$E44*K44 -> 0 | M44: =IF(M$43>$C44,0,IF(M$43<$B44,0,M$43)) -> 0 | N44: =$E44*M44 -> 0 | O44: =IF(O$43>$C44,0,IF(O$43<$B44,0,O$43)) -> 0 | P44: =$E44*O44 -> 0 | Q44: =IF(Q$43>$C44,0,IF(Q$43<$B44,0,Q$43)) -> 0 | R44: =$E44*Q44 -> 0
B45: =C44+0.01 -> 51550.01 | C45: 59518 | E45: 0.01 | G45: 0 | H45: =$E45*G45 -> 0 | I45: 0 | J45: 0 | K45: 0 | L45: =$E45*K45 -> 0 | M45: 0 | N45: =$E45*M45 -> 0 | O45: 0 | P45: =$E45*O45 -> 0 | Q45: 0 | R45: =$E45*Q45 -> 0
B46: 59518.01 | C46: 63089 | E46: 0.02 | G46: 0 | H46: 0 | I46: 0 | J46: 0 | K46: 0 | L46: 0 | M46: 0 | N46: =$E46*M46 -> 0 | O46: 0 | P46: 0 | Q46: 0 | R46: =$E46*Q46 -> 0
B47: 63089.01 | C47: 66875 | E47: 0.025 | G47: 0 | H47: 0 | I47: 0 | J47: 0 | K47: 0 | L47: 0 | M47: 0 | N47: =$E47*M47 -> 0 | O47: 0 | P47: 0 | Q47: 0 | R47: =$E47*Q47 -> 0
B48: 66875.01 | C48: 70888 | E48: 0.03 | G48: 0 | H48: 0 | I48: 0 | J48: 0 | K48: 0 | L48: 0 | M48: 0 | N48: =$E48*M48 -> 0 | O48: 0 | P48: 0 | Q48: 0 | R48: =$E48*Q48 -> 0
B49: 70888.01 | C49: 75140 | E49: 0.035 | G49: 0 | H49: 0 | I49: 0 | J49: 0 | K49: 0 | L49: 0 | M49: 0 | N49: =$E49*M49 -> 0 | O49: 0 | P49: 0 | Q49: 0 | R49: =$E49*Q49 -> 0
B50: 75140.01 | C50: 79649 | E50: 0.04 | G50: 0 | H50: 0 | I50: 0 | J50: 0 | K50: 0 | L50: 0 | M50: 0 | N50: =$E50*M50 -> 0 | O50: 0 | P50: 0 | Q50: 0 | R50: =$E50*Q50 -> 0
B51: 79649.01 | C51: 84429 | E51: 0.045 | G51: 0 | H51: 0 | I51: 0 | J51: 0 | K51: 0 | L51: 0 | M51: 0 | N51: =$E51*M51 -> 0 | O51: 0 | P51: 0 | Q51: 0 | R51: =$E51*Q51 -> 0
B52: 84429.01 | C52: 89494 | E52: 0.05 | G52: 0 | H52: 0 | I52: 0 | J52: 0 | K52: 0 | L52: 0 | M52: 0 | N52: =$E52*M52 -> 0 | O52: 0 | P52: 0 | Q52: 0 | R52: =$E52*Q52 -> 0
B53: 89494.01 | C53: 94865 | E53: 0.055 | G53: 0 | H53: 0 | I53: 0 | J53: 0 | K53: 0 | L53: 0 | M53: 0 | N53: =$E53*M53 -> 0 | O53: 0 | P53: 0 | Q53: 0 | R53: =$E53*Q53 -> 0
B54: 94865.01 | C54: 100557 | E54: 0.06 | G54: 0 | H54: 0 | I54: 0 | J54: 0 | K54: 0 | L54: 0 | M54: 0 | N54: =$E54*M54 -> 0 | O54: 0 | P54: 0 | Q54: 0 | R54: =$E54*Q54 -> 0
B55: 100557.01 | C55: 106590 | E55: 0.065 | G55: 0 | H55: 0 | I55: 0 | J55: 0 | K55: 0 | L55: 0 | M55: 0 | N55: =$E55*M55 -> 0 | O55: 0 | P55: 0 | Q55: 0 | R55: =$E55*Q55 -> 0
B56: 106590.01 | C56: 112985 | E56: 0.07 | G56: 0 | H56: 0 | I56: 0 | J56: 0 | K56: 0 | L56: 0 | M56: 0 | N56: =$E56*M56 -> 0 | O56: 0 | P56: 0 | Q56: 0 | R56: =$E56*Q56 -> 0
B57: 112985.01 | C57: 119764 | E57: 0.075 | G57: 0 | H57: 0 | I57: 0 | J57: 0 | K57: 0 | L57: 0 | M57: 0 | N57: =$E57*M57 -> 0 | O57: 0 | P57: 0 | Q57: 0 | R57: =$E57*Q57 -> 0
B58: 119764.01 | C58: 126950 | E58: 0.08 | G58: 0 | H58: 0 | I58: 0 | J58: 0 | K58: 0 | L58: 0 | M58: 0 | N58: =$E58*M58 -> 0 | O58: 0 | P58: 0 | Q58: 0 | R58: =$E58*Q58 -> 0
B59: 126950.01 | C59: 134568 | E59: 0.085 | G59: 0 | H59: 0 | I59: 0 | J59: 0 | K59: 0 | L59: 0 | M59: 0 | N59: =$E59*M59 -> 0 | O59: 0 | P59: 0 | Q59: 0 | R59: =$E59*Q59 -> 0
B60: 134568.01 | C60: 142642 | E60: 0.09 | G60: 0 | H60: 0 | I60: 0 | J60: 0 | K60: 0 | L60: 0 | M60: 0 | N60: =$E60*M60 -> 0 | O60: 0 | P60: 0 | Q60: 0 | R60: =$E60*Q60 -> 0
B61: 142642.01 | C61: 151200 | E61: 0.095 | G61: 0 | H61: 0 | I61: 0 | J61: 0 | K61: 0 | L61: 0 | M61: 0 | N61: =$E61*M61 -> 0 | O61: 0 | P61: 0 | Q61: 0 | R61: =$E61*Q61 -> 0
B62: 151200.01 | C62: 100000000 | E62: 0.1 | G62: 0 | H62: 0 | I62: 0 | J62: 0 | K62: 0 | L62: 0 | M62: 0 | N62: =$E62*M62 -> 0 | O62: 0 | P62: 0 | Q62: 0 | R62: =$E62*Q62 -> 0
E63: HECS/HELP DEBT TOTALS: | G63: =SUM(G44:G62) -> 0 | H63: 0 | I63: 0 | J63: 0 | K63: 0 | L63: 0 | M63: 0 | N63: 0 | O63: 0 | P63: 0 | Q63: 0 | R63: 0
E65: Total Tax If HECS/HELP Debt | H65: =H42+H63 -> 0 | J65: =J42+J63 -> 0 | L65: =L42+L63 -> 0 | N65: =N42+N63 -> 0 | P65: =P42+P63 -> 0 | R65: =R42+R63 -> 0
C76: 52974 | D76: 56151 | E76: 0.02
C77: 56152 | D77: 59521 | E77: 0.025
C78: 59522 | D78: 63092 | E78: 0.03
C79: 63093 | D79: 66877 | E79: 0.035
C80: 66878 | D80: 70890 | E80: 0.04
C81: 70891 | D81: 75144 | E81: 0.045
C82: 75145 | D82: 79652 | E82: 0.05
C83: 79653 | D83: 84432 | E83: 0.055
C84: 84433 | D84: 89498 | E84: 0.06
C85: 89499 | D85: 94868 | E85: 0.065
C86: 94869 | D86: 100560 | E86: 0.07
C87: 100561 | D87: 106593 | E87: 0.075
C88: 106594 | D88: 112989 | E88: 0.08
C89: 112990 | D89: 119769 | E89: 0.085
C90: 119770 | D90: 126955 | E90: 0.09
C91: 126956 | D91: 134572 | E91: 0.095
C92: 134573 | E92: 0.1

Sheet Tax Tables (C) (hidden)
A1: Rental Income Allowable % | D1: 0.8
A2: Company Tax Rate % | D2: 0.275
A3: SMSF Investment Returns | D3: 0.03
A4: SMSF Contributions Tax | D4: 0.15
A5: LeaseDoc ICR | D5: 1.4
A6: Individual Tax Calculator | G6: Applicant 1 | I6: Applicant 2 | K6: Applicant 3 | M6: Applicant 4 | O6: Applicant 5
A7: Rental Income Gearing / (Negative Gearing) | G7: =(Commercial!C18*$D$1)-(Commercial!C19)-(Commercial!C20) -> 0 | I7: =(Commercial!E18*$D$1)-(Commercial!E19)-(Commercial!E20) -> 0 | K7: =(Commercial!G18*$D$1)-(Commercial!G19)-(Commercial!G20) -> 0 | M7: =(Commercial!I18*$D$1)-(Commercial!I19)-(Commercial!I20) -> 0 | O7: =(Commercial!K18*$D$1)-(Commercial!K19)-(Commercial!K20) -> 0
A9: Gross Annual Income | G9: =Commercial!C15 -> 0 | I9: =Commercial!E15 -> 0 | K9: =Commercial!G15 -> 0 | M9: =Commercial!I15 -> 0 | O9: =Commercial!K15 -> 0
A11: Gross Taxable Income | E11: Tax Rate | G11: =G7+G9 -> 0 | I11: =I7+I9 -> 0 | K11: =K7+K9 -> 0 | M11: =M7+M9 -> 0 | O11: =O7+O9 -> 0
B12: 0 | C12: 18200 | E12: 0 | G12: =IF(G11>$C$12,$C$12,G11) -> 0 | H12: =$E$12*G12 -> 0 | I12: =IF(I11>$C$12,$C$12,I11) -> 0 | J12: =$E$12*I12 -> 0 | K12: =IF(K11>$C$12,$C$12,K11) -> 0 | L12: =$E$12*K12 -> 0 | M12: =IF(M11>$C$12,$C$12,M11) -> 0 | N12: =$E$12*M12 -> 0 | O12: =IF(O11>$C$12,$C$12,O11) -> 0 | P12: =$E$12*O12 -> 0
B13: 18201 | C13: 45000 | E13: 0.19 | G13: =IF(G12=$C$12,IF(G$11>$C$13,$C$13-$C$12,G$11-$C$12),0) -> 0 | H13: =$E$13*G13 -> 0 | I13: =IF(I12=$C$12,IF(I$11>$C$13,$C$13-$C$12,I$11-$C$12),0) -> 0 | J13: =$E$13*I13 -> 0 | K13: =IF(K12=$C$12,IF(K$11>$C$13,$C$13-$C$12,K$11-$C$12),0) -> 0 | L13: =$E$13*K13 -> 0 | M13: =IF(M12=$C$12,IF(M$11>$C$13,$C$13-$C$12,M$11-$C$12),0) -> 0 | N13: =$E$13*M13 -> 0 | O13: =IF(O12=$C$12,IF(O$11>$C$13,$C$13-$C$12,O$11-$C$12),0) -> 0 | P13: =$E$13*O13 -> 0
B14: 45001 | C14: 120000 | E14: 0.325 | G14: =IF(G13+G12=$C$13,IF(G$11>$C$14,$C$14-$C$13,G$11-$C$13),0) -> 0 | H14: =$E$14*G14 -> 0 | I14: =IF(I13+I12=$C$13,IF(I$11>$C$14,$C$14-$C$13,I$11-$C$13),0) -> 0 | J14: =$E$14*I14 -> 0 | K14: =IF(K13+K12=$C$13,IF(K$11>$C$14,$C$14-$C$13,K$11-$C$13),0) -> 0 | L14: =$E$14*K14 -> 0 | M14: =IF(M13+M12=$C$13,IF(M$11>$C$14,$C$14-$C$13,M$11-$C$13),0) -> 0 | N14: =$E$14*M14 -> 0 | O14: =IF(O13+O12=$C$13,IF(O$11>$C$14,$C$14-$C$13,O$11-$C$13),0) -> 0 | P14: =$E$14*O14 -> 0
B15: 120001 | C15: 180000 | E15: 0.37 | G15: =IF(G14+G13+G12=$C$14,IF(G$11>$C$15,$C$15-$C$14,G$11-$C$14),0) -> 0 | H15: =$E$15*G15 -> 0 | I15: =IF(I14+I13+I12=$C$14,IF(I$11>$C$15,$C$15-$C$14,I$11-$C$14),0) -> 0 | J15: =$E$15*I15 -> 0 | K15: =IF(K14+K13+K12=$C$14,IF(K$11>$C$15,$C$15-$C$14,K$11-$C$14),0) -> 0 | L15: =$E$15*K15 -> 0 | M15: =IF(M14+M13+M12=$C$14,IF(M$11>$C$15,$C$15-$C$14,M$11-$C$14),0) -> 0 | N15: =$E$15*M15 -> 0 | O15: =IF(O14+O13+O12=$C$14,IF(O$11>$C$15,$C$15-$C$14,O$11-$C$14),0) -> 0 | P15: =$E$15*O15 -> 0
B16: 180001 | C16: 100000000 | E16: 0.45 | G16: =IF(G15+G14+G13+G12=$C$15,IF(G$11>$C$16,$C$16-$C$15,G$11-$C$15),0) -> 0 | H16: =$E$16*G16 -> 0 | I16: =IF(I15+I14+I13+I12=$C$15,IF(I$11>$C$16,$C$16-$C$15,I$11-$C$15),0) -> 0 | J16: =$E$16*I16 -> 0 | K16: =IF(K15+K14+K13+K12=$C$15,IF(K$11>$C$16,$C$16-$C$15,K$11-$C$15),0) -> 0 | L16: =$E$16*K16 -> 0 | M16: =IF(M15+M14+M13+M12=$C$15,IF(M$11>$C$16,$C$16-$C$15,M$11-$C$15),0) -> 0 | N16: =$E$16*M16 -> 0 | O16: =IF(O15+O14+O13+O12=$C$15,IF(O$11>$C$16,$C$16-$C$15,O$11-$C$15),0) -> 0 | P16: =$E$16*O16 -> 0
E17: Taxable IncomeTotals: | G17: =SUM(G12:G16) -> 0 | H17: 0 | I17: 0 | J17: 0 | K17: 0 | L17: 0 | M17: 0 | N17: 0 | O17: 0 | P17: 0
A19: Low & Middle Income Tax Offset table | D19: Tax Offset | E19: Tax Offset %
B20: 0 | C20: 37000 | D20: 0 | G20: =IF(G$11>$C$20,$C$20,G$11) -> 0 | H20: =IF(G$11<$C$20+0.01,$D$20,0) -> 0 | I20: =IF(I$11>$C$20,$C$20,I$11) -> 0 | J20: =IF(I$11<$C$20+0.01,$D$20,0) -> 0 | K20: =IF(K$11>$C$20,$C$20,K$11) -> 0 | L20: =IF(K$11<$C$20+0.01,$D$20,0) -> 0 | M20: =IF(M$11>$C$20,$C$20,M$11) -> 0 | N20: =IF(M$11<$C$20+0.01,$D$20,0) -> 0 | O20: =IF(O$11>$C$20,$C$20,O$11) -> 0 | P20: =IF(O$11<$C$20+0.01,$D$20,0) -> 0 | Q20: does not exceed $37,000, you will be entitled to an offset amount of $255 on your tax payable.
B21: 37001 | C21: 48000 | D21: 0 | E21: 0.075 | G21: =IF(G20=$C$20,IF(G$11>$C$21,$C$21-$C$20,G$11-$C$20),0) -> 0 | H21: =IF(G21=0,0,IF(G$11<$C$21+0.01,(((G$11-$C$20)*$E$21)+$D$21),0)) -> 0 | I21: =IF(I20=$C$20,IF(I$11>$C$21,$C$21-$C$20,I$11-$C$20),0) -> 0 | J21: =IF(I21=0,0,IF(I$11<$C$21+0.01,(((I$11-$C$20)*$E$21)+$D$21),0)) -> 0 | K21: =IF(K20=$C$20,IF(K$11>$C$21,$C$21-$C$20,K$11-$C$20),0) -> 0 | L21: =IF(K21=0,0,IF(K$11<$C$21+0.01,(((K$11-$C$20)*$E$21)+$D$21),0)) -> 0 | M21: =IF(M20=$C$20,IF(M$11>$C$21,$C$21-$C$20,M$11-$C$20),0) -> 0 | N21: =IF(M21=0,0,IF(M$11<$C$21+0.01,(((M$11-$C$20)*$E$21)+$D$21),0)) -> 0 | O21: =IF(O20=$C$20,IF(O$11>$C$21,$C$21-$C$20,O$11-$C$20),0) -> 0 | P21: =IF(O21=0,0,IF(O$11<$C$21+0.01,(((O$11-$C$20)*$E$21)+$D$21),0)) -> 0 | Q21: exceeds $37,000 but is not more than $48,000, you will be entitled to an offset amount of $255, plus 7.5% of the excess above $37,000 to a maximum offset of $1,080 on your tax payable.
B22: 48001 | C22: 90000 | D22: 0 | G22: =IF(G21+G20=$C$21,IF(G$11>$C$22,$C$22-$C$21,G$11-$C$21),0) -> 0 | H22: =IF(G22=0,0,IF(G$11<$C$22+0.01,(((G$11-$C$21)*$E$22)+$D$22),0)) -> 0 | I22: =IF(I21+I20=$C$21,IF(I$11>$C$22,$C$22-$C$21,I$11-$C$21),0) -> 0 | J22: =IF(I22=0,0,IF(I$11<$C$22+0.01,(((I$11-$C$21)*$E$22)+$D$22),0)) -> 0 | K22: =IF(K21+K20=$C$21,IF(K$11>$C$22,$C$22-$C$21,K$11-$C$21),0) -> 0 | L22: =IF(K22=0,0,IF(K$11<$C$22+0.01,(((K$11-$C$21)*$E$22)+$D$22),0)) -> 0 | M22: =IF(M21+M20=$C$21,IF(M$11>$C$22,$C$22-$C$21,M$11-$C$21),0) -> 0 | N22: =IF(M22=0,0,IF(M$11<$C$22+0.01,(((M$11-$C$21)*$E$22)+$D$22),0)) -> 0 | O22: =IF(O21+O20=$C$21,IF(O$11>$C$22,$C$22-$C$21,O$11-$C$21),0) -> 0 | P22: =IF(O22=0,0,IF(O$11<$C$22+0.01,(((O$11-$C$21)*$E$22)+$D$22),0)) -> 0 | Q22: exceeds $48,000 but is not more than $90,000, you will be entitled to the maximum offset amount of $1,080 on your tax payable.
B23: 90001 | C23: 126000 | D23: 0 | E23: -0.03 | G23: =IF(G22+G21+G20=$C$22,IF(G$11>$C$23,$C$23-$C$22,G$11-$C$22),0) -> 0 | H23: =IF(G23=0,0,IF(G$11<$C$23+0.01,(((G$11-$C$22)*$E$23)+$D$23),0)) -> 0 | I23: =IF(I22+I21+I20=$C$22,IF(I$11>$C$23,$C$23-$C$22,I$11-$C$22),0) -> 0 | J23: =IF(I23=0,0,IF(I$11<$C$23+0.01,(((I$11-$C$22)*$E$23)+$D$23),0)) -> 0 | K23: =IF(K22+K21+K20=$C$22,IF(K$11>$C$23,$C$23-$C$22,K$11-$C$22),0) -> 0 | L23: =IF(K23=0,0,IF(K$11<$C$23+0.01,(((K$11-$C$22)*$E$23)+$D$23),0)) -> 0 | M23: =IF(M22+M21+M20=$C$22,IF(M$11>$C$23,$C$23-$C$22,M$11-$C$22),0) -> 0 | N23: =IF(M23=0,0,IF(M$11<$C$23+0.01,(((M$11-$C$22)*$E$23)+$D$23),0)) -> 0 | O23: =IF(O22+O21+O20=$C$22,IF(O$11>$C$23,$C$23-$C$22,O$11-$C$22),0) -> 0 | P23: =IF(O23=0,0,IF(O$11<$C$23+0.01,(((O$11-$C$22)*$E$23)+$D$23),0)) -> 0 | Q23: exceeds $90,000 but is not more than $126,000, you will be entitled to an offset amount $1,080 less 3% of your taxable income above $90,000.
B24: 126001 | C24: 100000000 | G24: =IF(G23+G22+G21+G20=$C$23,IF(G$11>$C$24,$C$24-$C$23,G$11-$C$23),0) -> 0 | I24: =IF(I23+I22+I21+I20=$C$23,IF(I$11>$C$24,$C$24-$C$23,I$11-$C$23),0) -> 0 | K24: =IF(K23+K22+K21+K20=$C$23,IF(K$11>$C$24,$C$24-$C$23,K$11-$C$23),0) -> 0 | M24: =IF(M23+M22+M21+M20=$C$23,IF(M$11>$C$24,$C$24-$C$23,M$11-$C$23),0) -> 0 | O24: =IF(O23+O22+O21+O20=$C$23,IF(O$11>$C$24,$C$24-$C$23,O$11-$C$23),0) -> 0
E25: Low & Middle Income Tax Offse Totals: | G25: =SUM(G19:G24) -> 0 | H25: 0 | I25: 0 | J25: 0 | K25: 0 | L25: 0 | M25: 0 | N25: 0 | O25: 0 | P25: 0
A27: Low Income Tax Offset | D27: Tax Offset | E27: Tax Offset %
B28: 0 | C28: 37500 | D28: 700 | G28: =IF(G$11>$C$28,$C$28,G$11) -> 0 | H28: =IF(G$11<$C$28+0.01,$D$28,0) -> 700 | I28: =IF(I$11>$C$28,$C$28,I$11) -> 0 | J28: =IF(I$11<$C$28+0.01,$D$28,0) -> 700 | K28: =IF(K$11>$C$28,$C$28,K$11) -> 0 | L28: =IF(K$11<$C$28+0.01,$D$28,0) -> 700 | M28: =IF(M$11>$C$28,$C$28,M$11) -> 0 | N28: =IF(M$11<$C$28+0.01,$D$28,0) -> 700 | O28: =IF(O$11>$C$28,$C$28,O$11) -> 0 | P28: =IF(O$11<$C$28+0.01,$D$28,0) -> 700 | Q28: The maximum tax offset of $700 applies if your taxable income is $37,500 or less. \
B29: 37501 | C29: 45000 | D29: 700 | E29: -0.05 | G29: =IF(G28=$C$28,IF(G$11>$C$29,$C$29-$C$28,G$11-$C$28),0) -> 0 | H29: =IF(G29=0,0,IF(G$11<$C$29+0.01,(((G$11-$C$28)*$E$29)+$D$29),0)) -> 0 | I29: =IF(I28=$C$28,IF(I$11>$C$29,$C$29-$C$28,I$11-$C$28),0) -> 0 | J29: =IF(I29=0,0,IF(I$11<$C$29+0.01,(((I$11-$C$28)*$E$29)+$D$29),0)) -> 0 | K29: =IF(K28=$C$28,IF(K$11>$C$29,$C$29-$C$28,K$11-$C$28),0) -> 0 | L29: =IF(K29=0,0,IF(K$11<$C$29+0.01,(((K$11-$C$28)*$E$29)+$D$29),0)) -> 0 | M29: =IF(M28=$C$28,IF(M$11>$C$29,$C$29-$C$28,M$11-$C$28),0) -> 0 | N29: =IF(M29=0,0,IF(M$11<$C$29+0.01,(((M$11-$C$28)*$E$29)+$D$29),0)) -> 0 | O29: =IF(O28=$C$28,IF(O$11>$C$29,$C$29-$C$28,O$11-$C$28),0) -> 0 | P29: =IF(O29=0,0,IF(O$11<$C$29+0.01,(((O$11-$C$28)*$E$29)+$D$29),0)) -> 0 | Q29: This amount is reduced by 5 cents for each dollar over $37,500 up to $45,000.
B30: 45001 | C30: 66667 | D30: 325 | E30: -0.015 | G30: =IF(G29+G28=$C$29,IF(G$11>$C$30,$C$30-$C$29,G$11-$C$29),0) -> 0 | H30: =IF(G30=0,0,IF(G$11<$C$30+0.01,(((G$11-$C$29)*$E$30)+$D$30),0)) -> 0 | I30: =IF(I29+I28=$C$29,IF(I$11>$C$30,$C$30-$C$29,I$11-$C$29),0) -> 0 | J30: =IF(I30=0,0,IF(I$11<$C$30+0.01,(((I$11-$C$29)*$E$30)+$D$30),0)) -> 0 | K30: =IF(K29+K28=$C$29,IF(K$11>$C$30,$C$30-$C$29,K$11-$C$29),0) -> 0 | L30: =IF(K30=0,0,IF(K$11<$C$30+0.01,(((K$11-$C$29)*$E$30)+$D$30),0)) -> 0 | M30: =IF(M29+M28=$C$29,IF(M$11>$C$30,$C$30-$C$29,M$11-$C$29),0) -> 0 | N30: =IF(M30=0,0,IF(M$11<$C$30+0.01,(((M$11-$C$29)*$E$30)+$D$30),0)) -> 0 | O30: =IF(O29+O28=$C$29,IF(O$11>$C$30,$C$30-$C$29,O$11-$C$29),0) -> 0 | P30: =IF(O30=0,0,IF(O$11<$C$30+0.01,(((O$11-$C$29)*$E$30)+$D$30),0)) -> 0 | Q30: This amount is reduced by 1.55 cents for each dollar over $45,000 up to $66,667
B31: 66668 | C31: 100000000 | G31: =IF(G29+G28=$C$29,IF(G$11>$C$31,$C$31-$C$29,G$11-$C$29),0) -> 0 | H31: =IF(G31=0,0,IF(G$11<$C$31+0.01,(((G$11-$C$29)*$E$31)+$D$31),0)) -> 0 | I31: =IF(I29+I28=$C$29,IF(I$11>$C$31,$C$31-$C$29,I$11-$C$29),0) -> 0 | J31: =IF(I31=0,0,IF(I$11<$C$31+0.01,(((I$11-$C$29)*$E$31)+$D$31),0)) -> 0 | K31: =IF(K29+K28=$C$29,IF(K$11>$C$31,$C$31-$C$29,K$11-$C$29),0) -> 0 | L31: =IF(K31=0,0,IF(K$11<$C$31+0.01,(((K$11-$C$29)*$E$31)+$D$31),0)) -> 0 | M31: =IF(M29+M28=$C$29,IF(M$11>$C$31,$C$31-$C$29,M$11-$C$29),0) -> 0 | N31: =IF(M31=0,0,IF(M$11<$C$31+0.01,(((M$11-$C$29)*$E$31)+$D$31),0)) -> 0 | O31: =IF(O29+O28=$C$29,IF(O$11>$C$31,$C$31-$C$29,O$11-$C$29),0) -> 0 | P31: =IF(O31=0,0,IF(O$11<$C$31+0.01,(((O$11-$C$29)*$E$31)+$D$31),0)) -> 0
E32: Low Income Tax Offset Totals: | H32: =SUM(H28:H31) -> 700 | J32: =SUM(J28:J31) -> 700 | L32: =SUM(L28:L31) -> 700 | N32: =SUM(N28:N31) -> 700 | P32: =SUM(P28:P31) -> 700
E34: Total Tax | H34: =IF(H17-H25-H32<0,0,H17-H25-H32) -> 0 | J34: =IF(J17-J25-J32<0,0,J17-J25-J32) -> 0 | L34: =IF(L17-L25-L32<0,0,L17-L25-L32) -> 0 | N34: =IF(N17-N25-N32<0,0,N17-N25-N32) -> 0 | P34: =IF(P17-P25-P32<0,0,P17-P25-P32) -> 0
A36: Medicare Levy (Yearly) | Q36: In 2018–19, you do not have to pay the Medicare levy if your taxable income is equal to or less than $22,398
B37: 0 | C37: 24276 | D37: 0 | E37: 0 | G37: =IF(G$11>$C$37,$C$37,G$11) -> 0 | H37: =IF(G$11<$C$37+0.01,$D$37,0) -> 0 | I37: =IF(I$11>$C$37,$C$37,I$11) -> 0 | J37: =IF(I$11<$C$37+0.01,$D$37,0) -> 0 | K37: =IF(K$11>$C$37,$C$37,K$11) -> 0 | L37: =IF(K$11<$C$37+0.01,$D$37,0) -> 0 | M37: =IF(M$11>$C$37,$C$37,M$11) -> 0 | N37: =IF(M$11<$C$37+0.01,$D$37,0) -> 0 | O37: =IF(O$11>$C$37,$C$37,O$11) -> 0 | P37: =IF(O$11<$C$37+0.01,$D$37,0) -> 0 | Q37: You will pay only part of the Medicare levy if your taxable income is between $22,398 and $27,997
B38: 24276 | C38: 30345 | D38: 0 | E38: 0.1 | G38: =IF(G37=$C$37,IF(G$11>$C$38,$C$38-$C$37,G$11-$C$37),0) -> 0 | H38: =IF(G38=0,0,IF(G$11<$C$38+0.01,(((G$11-$C$37)*$E$38)+$D$38),0)) -> 0 | I38: =IF(I37=$C$37,IF(I$11>$C$38,$C$38-$C$37,I$11-$C$37),0) -> 0 | J38: =IF(I38=0,0,IF(I$11<$C$38+0.01,(((I$11-$C$37)*$E$38)+$D$38),0)) -> 0 | K38: =IF(K37=$C$37,IF(K$11>$C$38,$C$38-$C$37,K$11-$C$37),0) -> 0 | L38: =IF(K38=0,0,IF(K$11<$C$38+0.01,(((K$11-$C$37)*$E$38)+$D$38),0)) -> 0 | M38: =IF(M37=$C$37,IF(M$11>$C$38,$C$38-$C$37,M$11-$C$37),0) -> 0 | N38: =IF(M38=0,0,IF(M$11<$C$38+0.01,(((M$11-$C$37)*$E$38)+$D$38),0)) -> 0 | O38: =IF(O37=$C$37,IF(O$11>$C$38,$C$38-$C$37,O$11-$C$37),0) -> 0 | P38: =IF(O38=0,0,IF(O$11<$C$38+0.01,(((O$11-$C$37)*$E$38)+$D$38),0)) -> 0
B39: 30345 | C39: 100000000 | D39: =C38*2% -> 606.9 | E39: 0.02 | G39: =IF(G38+G37=$C$38,IF(G$11>$C$39,$C$39-$C$38,G$11-$C$38),0) -> 0 | H39: =IF(G39=0,0,IF(G$11<$C$39+0.01,(((G$11-$C$38)*$E$39)+$D$39),0)) -> 0 | I39: =IF(I38+I37=$C$38,IF(I$11>$C$39,$C$39-$C$38,I$11-$C$38),0) -> 0 | J39: =IF(I39=0,0,IF(I$11<$C$39+0.01,(((I$11-$C$38)*$E$39)+$D$39),0)) -> 0 | K39: =IF(K38+K37=$C$38,IF(K$11>$C$39,$C$39-$C$38,K$11-$C$38),0) -> 0 | L39: =IF(K39=0,0,IF(K$11<$C$39+0.01,(((K$11-$C$38)*$E$39)+$D$39),0)) -> 0 | M39: =IF(M38+M37=$C$38,IF(M$11>$C$39,$C$39-$C$38,M$11-$C$38),0) -> 0 | N39: =IF(M39=0,0,IF(M$11<$C$39+0.01,(((M$11-$C$38)*$E$39)+$D$39),0)) -> 0 | O39: =IF(O38+O37=$C$38,IF(O$11>$C$39,$C$39-$C$38,O$11-$C$38),0) -> 0 | P39: =IF(O39=0,0,IF(O$11<$C$39+0.01,(((O$11-$C$38)*$E$39)+$D$39),0)) -> 0
E40: Medicare Levy Totals: | H40: =SUM(H37:H39) -> 0 | J40: =SUM(J37:J39) -> 0 | L40: =SUM(L37:L39) -> 0 | N40: =SUM(N37:N39) -> 0 | P40: =SUM(P37:P39) -> 0
E42: Total Tax | H42: =H34+H40 -> 0 | J42: =J34+J40 -> 0 | L42: =L34+L40 -> 0 | N42: =N34+N40 -> 0 | P42: =P34+P40 -> 0
A43: HECS/HELP Debt | G43: =IF(G7>0,G7+G9,G9) -> 0 | I43: =IF(I7>0,I7+I9,I9) -> 0 | K43: =IF(K7>0,K7+K9,K9) -> 0 | M43: =IF(M7>0,M7+M9,M9) -> 0 | O43: =IF(O7>0,O7+O9,O9) -> 0
B44: 0 | C44: 51550 | E44: 0 | G44: =IF(G$43>$C44,0,IF(G$43<$B44,0,G$43)) -> 0 | H44: =$E44*G44 -> 0 | I44: =IF(I$43>$C44,0,IF(I$43<$B44,0,I$43)) -> 0 | J44: =$E44*I44 -> 0 | K44: =IF(K$43>$C44,0,IF(K$43<$B44,0,K$43)) -> 0 | L44: =$E44*K44 -> 0 | M44: =IF(M$43>$C44,0,IF(M$43<$B44,0,M$43)) -> 0 | N44: =$E44*M44 -> 0 | O44: =IF(O$43>$C44,0,IF(O$43<$B44,0,O$43)) -> 0 | P44: =$E44*O44 -> 0
B45: =C44+0.01 -> 51550.01 | C45: 59518 | E45: 0.01 | G45: 0 | H45: =$E45*G45 -> 0 | I45: 0 | J45: 0 | K45: 0 | L45: =$E45*K45 -> 0 | M45: 0 | N45: =$E45*M45 -> 0 | O45: 0 | P45: =$E45*O45 -> 0
B46: 59518.01 | C46: 63089 | E46: 0.02 | G46: 0 | H46: 0 | I46: 0 | J46: 0 | K46: 0 | L46: 0 | M46: 0 | N46: 0 | O46: 0 | P46: 0
B47: 63089.01 | C47: 66875 | E47: 0.025 | G47: 0 | H47: 0 | I47: 0 | J47: 0 | K47: 0 | L47: 0 | M47: 0 | N47: 0 | O47: 0 | P47: 0
B48: 66875.01 | C48: 70888 | E48: 0.03 | G48: 0 | H48: 0 | I48: 0 | J48: 0 | K48: 0 | L48: 0 | M48: 0 | N48: 0 | O48: 0 | P48: 0
B49: 70888.01 | C49: 75140 | E49: 0.035 | G49: 0 | H49: 0 | I49: 0 | J49: 0 | K49: 0 | L49: 0 | M49: 0 | N49: 0 | O49: 0 | P49: 0
B50: 75140.01 | C50: 79649 | E50: 0.04 | G50: 0 | H50: 0 | I50: 0 | J50: 0 | K50: 0 | L50: 0 | M50: 0 | N50: 0 | O50: 0 | P50: 0
B51: 79649.01 | C51: 84429 | E51: 0.045 | G51: 0 | H51: 0 | I51: 0 | J51: 0 | K51: 0 | L51: 0 | M51: 0 | N51: 0 | O51: 0 | P51: 0
B52: 84429.01 | C52: 89494 | E52: 0.05 | G52: 0 | H52: 0 | I52: 0 | J52: 0 | K52: 0 | L52: 0 | M52: 0 | N52: 0 | O52: 0 | P52: 0
B53: 89494.01 | C53: 94865 | E53: 0.055 | G53: 0 | H53: 0 | I53: 0 | J53: 0 | K53: 0 | L53: 0 | M53: 0 | N53: 0 | O53: 0 | P53: 0
B54: 94865.01 | C54: 100557 | E54: 0.06 | G54: 0 | H54: 0 | I54: 0 | J54: 0 | K54: 0 | L54: 0 | M54: 0 | N54: 0 | O54: 0 | P54: 0
B55: 100557.01 | C55: 106590 | E55: 0.065 | G55: 0 | H55: 0 | I55: 0 | J55: 0 | K55: 0 | L55: 0 | M55: 0 | N55: 0 | O55: 0 | P55: 0
B56: 106590.01 | C56: 112985 | E56: 0.07 | G56: 0 | H56: 0 | I56: 0 | J56: 0 | K56: 0 | L56: 0 | M56: 0 | N56: 0 | O56: 0 | P56: 0
B57: 112985.01 | C57: 119764 | E57: 0.075 | G57: 0 | H57: 0 | I57: 0 | J57: 0 | K57: 0 | L57: 0 | M57: 0 | N57: 0 | O57: 0 | P57: 0
B58: 119764.01 | C58: 126950 | E58: 0.08 | G58: 0 | H58: 0 | I58: 0 | J58: 0 | K58: 0 | L58: 0 | M58: 0 | N58: 0 | O58: 0 | P58: 0
B59: 126950.01 | C59: 134568 | E59: 0.085 | G59: 0 | H59: 0 | I59: 0 | J59: 0 | K59: 0 | L59: 0 | M59: 0 | N59: 0 | O59: 0 | P59: 0
B60: 134568.01 | C60: 142642 | E60: 0.09 | G60: 0 | H60: 0 | I60: 0 | J60: 0 | K60: 0 | L60: 0 | M60: 0 | N60: 0 | O60: 0 | P60: 0
B61: 142642.01 | C61: 151200 | E61: 0.095 | G61: 0 | H61: =$E61*G61 -> 0 | I61: 0 | J61: 0 | K61: 0 | L61: 0 | M61: 0 | N61: 0 | O61: 0 | P61: 0
B62: 151200.01 | C62: 100000000 | E62: 0.1 | G62: 0 | H62: 0 | I62: 0 | J62: 0 | K62: 0 | L62: 0 | M62: 0 | N62: 0 | O62: 0 | P62: 0
E63: HECS/HELP DEBT TOTALS: | G63: =SUM(G44:G62) -> 0 | H63: 0 | I63: 0 | J63: 0 | K63: 0 | L63: 0 | M63: 0 | N63: 0 | O63: 0 | P63: 0
E65: Total Tax If HECS/HELP Debt | H65: =H42+H63 -> 0 | J65: =J42+J63 -> 0 | L65: =L42+L63 -> 0 | N65: =N42+N63 -> 0 | P65: =P42+P63 -> 0

Sheet SMSF Tax Tables (hidden)
A1: Rental Income Allowable % | D1: 0.8
A2: SMSF Investment Returns | D2: 0.03
A3: SMSF Contributions Tax | D3: 0.15
A5: Individual Tax Calculator | G5: Applicant 1 | I5: Applicant 2 | K5: Applicant 3 | M5: Applicant 4 | O5: Applicant 5 | Q5: Applicant 6 | S5: Total Tax
A6: Concessional Contributions | E6: Tax Rate | G6: =SMSF!C13+SMSF!C15 -> 0 | I6: =SMSF!E13+SMSF!E15 -> 0 | K6: =SMSF!G13+SMSF!G15 -> 0 | M6: =SMSF!I13+SMSF!I15 -> 0 | O6: =SMSF!K13+SMSF!K15 -> 0 | Q6: =SMSF!M13+SMSF!M15 -> 0
B7: 0 | C7: 27500 | E7: 0.15 | G7: =IF(G6>$C$7,$C$7,G6) -> 0 | H7: =$E$7*G7 -> 0 | I7: =IF(I6>$C$7,$C$7,I6) -> 0 | J7: =$E$7*I7 -> 0 | K7: =IF(K6>$C$7,$C$7,K6) -> 0 | L7: =$E$7*K7 -> 0 | M7: =IF(M6>$C$7,$C$7,M6) -> 0 | N7: =$E$7*M7 -> 0 | O7: =IF(O6>$C$7,$C$7,O6) -> 0 | P7: =$E$7*O7 -> 0 | Q7: =IF(Q6>$C$7,$C$7,Q6) -> 0 | R7: =$E$7*Q7 -> 0
B8: 27500.01 | C8: 100000000 | E8: 0.47 | G8: =IF(G7=$C$7,IF(G$6>$C$8,$C$8-$C$7,G$6-$C$7),0) -> 0 | H8: =$E$8*G8 -> 0 | I8: =IF(I7=$C$7,IF(I$6>$C$8,$C$8-$C$7,I$6-$C$7),0) -> 0 | J8: =$E$8*I8 -> 0 | K8: =IF(K7=$C$7,IF(K$6>$C$8,$C$8-$C$7,K$6-$C$7),0) -> 0 | L8: =$E$8*K8 -> 0 | M8: =IF(M7=$C$7,IF(M$6>$C$8,$C$8-$C$7,M$6-$C$7),0) -> 0 | N8: =$E$8*M8 -> 0 | O8: =IF(O7=$C$7,IF(O$6>$C$8,$C$8-$C$7,O$6-$C$7),0) -> 0 | P8: =$E$8*O8 -> 0 | Q8: =IF(Q7=$C$7,IF(Q$6>$C$8,$C$8-$C$7,Q$6-$C$7),0) -> 0 | R8: =$E$8*Q8 -> 0
E9: Concessional ContributionTotals: | G9: =SUM(G7:G8) -> 0 | H9: 0 | I9: 0 | J9: 0 | K9: 0 | L9: 0 | M9: 0 | N9: 0 | O9: =SUM(O7:O8) -> 0 | P9: 0 | Q9: 0 | R9: 0
A11: Non-Concessional Contributions | E11: Tax Rate | G11: =SMSF!C16+SMSF!C17 -> 0 | I11: =SMSF!E16+SMSF!E17 -> 0 | K11: =SMSF!G16+SMSF!G17 -> 0 | M11: =SMSF!I16+SMSF!I17 -> 0 | O11: =SMSF!K16+SMSF!K17 -> 0 | Q11: =SMSF!M16+SMSF!M17 -> 0
B12: 0 | C12: 110000 | E12: 0 | G12: =IF(G11>$C$12,$C$12,G11) -> 0 | H12: =$E$12*G12 -> 0 | I12: =IF(I11>$C$12,$C$12,I11) -> 0 | J12: =$E$12*I12 -> 0 | K12: =IF(K11>$C$12,$C$12,K11) -> 0 | L12: =$E$12*K12 -> 0 | M12: =IF(M11>$C$12,$C$12,M11) -> 0 | N12: =$E$12*M12 -> 0 | O12: =IF(O11>$C$12,$C$12,O11) -> 0 | P12: =$E$12*O12 -> 0 | Q12: =IF(Q11>$C$12,$C$12,Q11) -> 0 | R12: =$E$12*Q12 -> 0
B13: 110000.01 | C13: 100000000 | E13: 0.47 | G13: =IF(G12=$C$12,IF(G$11>$C$13,$C$13-$C$12,G$11-$C$12),0) -> 0 | H13: =$E$13*G13 -> 0 | I13: =IF(I12=$C$12,IF(I$11>$C$13,$C$13-$C$12,I$11-$C$12),0) -> 0 | J13: =$E$13*I13 -> 0 | K13: =IF(K12=$C$12,IF(K$11>$C$13,$C$13-$C$12,K$11-$C$12),0) -> 0 | L13: =$E$13*K13 -> 0 | M13: =IF(M12=$C$12,IF(M$11>$C$13,$C$13-$C$12,M$11-$C$12),0) -> 0 | N13: =$E$13*M13 -> 0 | O13: =IF(O12=$C$12,IF(O$11>$C$13,$C$13-$C$12,O$11-$C$12),0) -> 0 | P13: =$E$13*O13 -> 0 | Q13: =IF(Q12=$C$12,IF(Q$11>$C$13,$C$13-$C$12,Q$11-$C$12),0) -> 0 | R13: =$E$13*Q13 -> 0
E14: Non Concessional Contribution Totals: | G14: =SUM(G12:G13) -> 0 | H14: 0 | I14: 0 | J14: 0 | K14: 0 | L14: 0 | M14: 0 | N14: 0 | O14: =SUM(O12:O13) -> 0 | P14: 0 | Q14: 0 | R14: 0
H15: =H9+H14 -> 0 | J15: =J9+J14 -> 0 | L15: =L9+L14 -> 0 | N15: =N9+N14 -> 0 | P15: =P9+P14 -> 0 | R15: =R9+R14 -> 0 | S15: =SUM(H15:R15) -> 0
A17: Total Contributions | G17: =G9+G14 -> 0 | I17: =I9+I14 -> 0 | K17: =K9+K14 -> 0 | M17: =M9+M14 -> 0 | O17: =O9+O14 -> 0 | Q17: =Q9+Q14 -> 0
A18: Concessional Contribution Cap | E18: 27500
A19: Non Concessional Contribution Cap | E19: 110000
G20: =G$17-$E$18-$E$19 -> -137500 | I20: =I$17-$E$18-$E$19 -> -137500 | K20: =K$17-$E$18-$E$19 -> -137500 | M20: =M$17-$E$18-$E$19 -> -137500 | O20: =O$17-$E$18-$E$19 -> -137500 | Q20: =Q$17-$E$18-$E$19 -> -137500
G21: =IF(G20>0,"Non Concessional Contribution Cap Exceeded","") ->  | I21: =IF(I20>0,"Non Concessional Contribution Cap Exceeded","") ->  | K21: =IF(K20>0,"Non Concessional Contribution Cap Exceeded","") ->  | M21: =IF(M20>0,"Non Concessional Contribution Cap Exceeded","") ->  | O21: =IF(O20>0,"Non Concessional Contribution Cap Exceeded","") ->  | Q21: =IF(Q20>0,"Non Concessional Contribution Cap Exceeded","") -> 
A23: Investment Returns | G23: =SMSF!G25 -> 0 | S23: =G23*D3 -> 0
A25: Rental Income | G25: =SMSF!C22+SMSF!C23 -> 0
A26: Rental Income (After Haircut) | G26: =G25*D1 -> 0
A28: Interest Expense | G28: =SMSF!G22+SMSF!G23 -> 0
A29: Net | G29: =G26-G28 -> 0
A30: Taxed | G30: =G29*D3 -> 0 | S30: =G30 -> 0
A33: SMSF Ongoing Expenses (Annual) | G33: =-SMSF!C35 -> -2500 | S33: =G33*D3 -> -375
M35: Total Tax | S35: =S15+S23+S30+S33 -> -375
M36: Tax used in Calculation | S36: =IF(S35>0,S35,0) -> 0

Sheet Resi SMSF Tax Tables (hidden)
A1: Rental Income Allowable % | D1: 0.8
A2: Company Tax Rate % | D2: 0.275
A3: SMSF Investment Returns | D3: 0.03
A4: SMSF Contributions Tax | D4: 0.15
A5: LeaseDoc ICR | D5: 1.5
A6: Individual Tax Calculator | G6: Applicant 1 | I6: Applicant 2 | K6: Applicant 3 | M6: Applicant 4 | O6: Applicant 5 | Q6: Applicant 6
A7: Rental Income Gearing / (Negative Gearing) | G7: =('Residential SMSF'!C18*$D$1)-('Residential SMSF'!C19)-('Residential SMSF'!C20) -> 0 | I7: =('Residential SMSF'!E18*$D$1)-('Residential SMSF'!E19)-('Residential SMSF'!E20) -> 0 | K7: =('Residential SMSF'!G18*$D$1)-('Residential SMSF'!G19)-('Residential SMSF'!G20) -> 0 | M7: =('Residential SMSF'!I18*$D$1)-('Residential SMSF'!I19)-('Residential SMSF'!I20) -> 0 | O7: =('Residential SMSF'!K18*$D$1)-('Residential SMSF'!K19)-('Residential SMSF'!K29) -> 0 | Q7: =('Residential SMSF'!M18*$D$1)-('Residential SMSF'!M19)-('Residential SMSF'!M20) -> 0
A9: Gross Annual Income | G9: ='Residential SMSF'!C15 -> 0 | I9: ='Residential SMSF'!E15 -> 0 | K9: ='Residential SMSF'!G15 -> 0 | M9: ='Residential SMSF'!I15 -> 0 | O9: ='Residential SMSF'!K15 -> 0 | Q9: ='Residential SMSF'!M15 -> 0
A11: Gross Taxable Income | E11: Tax Rate | G11: =G7+G9 -> 0 | I11: =I7+I9 -> 0 | K11: =K7+K9 -> 0 | M11: =M7+M9 -> 0 | O11: =O7+O9 -> 0 | Q11: =Q7+Q9 -> 0
B12: 0 | C12: 18200 | E12: 0 | G12: =IF(G11>$C$12,$C$12,G11) -> 0 | H12: =$E$12*G12 -> 0 | I12: =IF(I11>$C$12,$C$12,I11) -> 0 | J12: =$E$12*I12 -> 0 | K12: =IF(K11>$C$12,$C$12,K11) -> 0 | L12: =$E$12*K12 -> 0 | M12: =IF(M11>$C$12,$C$12,M11) -> 0 | N12: =$E$12*M12 -> 0 | O12: =IF(O11>$C$12,$C$12,O11) -> 0 | P12: =$E$12*O12 -> 0 | Q12: =IF(Q11>$C$12,$C$12,Q11) -> 0 | R12: =$E$12*Q12 -> 0
B13: 18201 | C13: 45000 | E13: 0.19 | G13: =IF(G12=$C$12,IF(G$11>$C$13,$C$13-$C$12,G$11-$C$12),0) -> 0 | H13: =$E$13*G13 -> 0 | I13: =IF(I12=$C$12,IF(I$11>$C$13,$C$13-$C$12,I$11-$C$12),0) -> 0 | J13: =$E$13*I13 -> 0 | K13: =IF(K12=$C$12,IF(K$11>$C$13,$C$13-$C$12,K$11-$C$12),0) -> 0 | L13: =$E$13*K13 -> 0 | M13: =IF(M12=$C$12,IF(M$11>$C$13,$C$13-$C$12,M$11-$C$12),0) -> 0 | N13: =$E$13*M13 -> 0 | O13: =IF(O12=$C$12,IF(O$11>$C$13,$C$13-$C$12,O$11-$C$12),0) -> 0 | P13: =$E$13*O13 -> 0 | Q13: =IF(Q12=$C$12,IF(Q$11>$C$13,$C$13-$C$12,Q$11-$C$12),0) -> 0 | R13: =$E$13*Q13 -> 0
B14: 45001 | C14: 120000 | E14: 0.325 | G14: =IF(G13+G12=$C$13,IF(G$11>$C$14,$C$14-$C$13,G$11-$C$13),0) -> 0 | H14: =$E$14*G14 -> 0 | I14: =IF(I13+I12=$C$13,IF(I$11>$C$14,$C$14-$C$13,I$11-$C$13),0) -> 0 | J14: =$E$14*I14 -> 0 | K14: =IF(K13+K12=$C$13,IF(K$11>$C$14,$C$14-$C$13,K$11-$C$13),0) -> 0 | L14: =$E$14*K14 -> 0 | M14: =IF(M13+M12=$C$13,IF(M$11>$C$14,$C$14-$C$13,M$11-$C$13),0) -> 0 | N14: =$E$14*M14 -> 0 | O14: =IF(O13+O12=$C$13,IF(O$11>$C$14,$C$14-$C$13,O$11-$C$13),0) -> 0 | P14: =$E$14*O14 -> 0 | Q14: =IF(Q13+Q12=$C$13,IF(Q$11>$C$14,$C$14-$C$13,Q$11-$C$13),0) -> 0 | R14: =$E$14*Q14 -> 0
B15: 120001 | C15: 180000 | E15: 0.37 | G15: =IF(G14+G13+G12=$C$14,IF(G$11>$C$15,$C$15-$C$14,G$11-$C$14),0) -> 0 | H15: =$E$15*G15 -> 0 | I15: =IF(I14+I13+I12=$C$14,IF(I$11>$C$15,$C$15-$C$14,I$11-$C$14),0) -> 0 | J15: =$E$15*I15 -> 0 | K15: =IF(K14+K13+K12=$C$14,IF(K$11>$C$15,$C$15-$C$14,K$11-$C$14),0) -> 0 | L15: =$E$15*K15 -> 0 | M15: =IF(M14+M13+M12=$C$14,IF(M$11>$C$15,$C$15-$C$14,M$11-$C$14),0) -> 0 | N15: =$E$15*M15 -> 0 | O15: =IF(O14+O13+O12=$C$14,IF(O$11>$C$15,$C$15-$C$14,O$11-$C$14),0) -> 0 | P15: =$E$15*O15 -> 0 | Q15: =IF(Q14+Q13+Q12=$C$14,IF(Q$11>$C$15,$C$15-$C$14,Q$11-$C$14),0) -> 0 | R15: =$E$15*Q15 -> 0
B16: 180001 | C16: 100000000 | E16: 0.45 | G16: =IF(G15+G14+G13+G12=$C$15,IF(G$11>$C$16,$C$16-$C$15,G$11-$C$15),0) -> 0 | H16: =$E$16*G16 -> 0 | I16: =IF(I15+I14+I13+I12=$C$15,IF(I$11>$C$16,$C$16-$C$15,I$11-$C$15),0) -> 0 | J16: =$E$16*I16 -> 0 | K16: =IF(K15+K14+K13+K12=$C$15,IF(K$11>$C$16,$C$16-$C$15,K$11-$C$15),0) -> 0 | L16: =$E$16*K16 -> 0 | M16: =IF(M15+M14+M13+M12=$C$15,IF(M$11>$C$16,$C$16-$C$15,M$11-$C$15),0) -> 0 | N16: =$E$16*M16 -> 0 | O16: =IF(O15+O14+O13+O12=$C$15,IF(O$11>$C$16,$C$16-$C$15,O$11-$C$15),0) -> 0 | P16: =$E$16*O16 -> 0 | Q16: =IF(Q15+Q14+Q13+Q12=$C$15,IF(Q$11>$C$16,$C$16-$C$15,Q$11-$C$15),0) -> 0 | R16: =$E$16*Q16 -> 0
E17: Taxable IncomeTotals: | G17: =SUM(G12:G16) -> 0 | H17: =SUM(H12:H16) -> 0 | I17: 0 | J17: 0 | K17: 0 | L17: 0 | M17: 0 | N17: 0 | O17: 0 | P17: 0 | Q17: 0 | R17: 0
A19: Low & Middle Income Tax Offset table | D19: Tax Offset | E19: Tax Offset %
B20: 0 | C20: 37000 | D20: 0 | G20: =IF(G$11>$C$20,$C$20,G$11) -> 0 | H20: =IF(G$11<$C$20+0.01,$D$20,0) -> 0 | I20: =IF(I$11>$C$20,$C$20,I$11) -> 0 | J20: =IF(I$11<$C$20+0.01,$D$20,0) -> 0 | K20: =IF(K$11>$C$20,$C$20,K$11) -> 0 | L20: =IF(K$11<$C$20+0.01,$D$20,0) -> 0 | M20: =IF(M$11>$C$20,$C$20,M$11) -> 0 | N20: =IF(M$11<$C$20+0.01,$D$20,0) -> 0 | O20: =IF(O$11>$C$20,$C$20,O$11) -> 0 | P20: =IF(O$11<$C$20+0.01,$D$20,0) -> 0 | Q20: =IF(Q$11>$C$20,$C$20,Q$11) -> 0 | R20: =IF(Q$11<$C$20+0.01,$D$20,0) -> 0 | S20: does not exceed $37,000, you will be entitled to an offset amount of $255 on your tax payable.
B21: 37001 | C21: 48000 | D21: 0 | E21: 0.075 | G21: =IF(G20=$C$20,IF(G$11>$C$21,$C$21-$C$20,G$11-$C$20),0) -> 0 | H21: =IF(G21=0,0,IF(G$11<$C$21+0.01,(((G$11-$C$20)*$E$21)+$D$21),0)) -> 0 | I21: =IF(I20=$C$20,IF(I$11>$C$21,$C$21-$C$20,I$11-$C$20),0) -> 0 | J21: =IF(I21=0,0,IF(I$11<$C$21+0.01,(((I$11-$C$20)*$E$21)+$D$21),0)) -> 0 | K21: =IF(K20=$C$20,IF(K$11>$C$21,$C$21-$C$20,K$11-$C$20),0) -> 0 | L21: =IF(K21=0,0,IF(K$11<$C$21+0.01,(((K$11-$C$20)*$E$21)+$D$21),0)) -> 0 | M21: =IF(M20=$C$20,IF(M$11>$C$21,$C$21-$C$20,M$11-$C$20),0) -> 0 | N21: =IF(M21=0,0,IF(M$11<$C$21+0.01,(((M$11-$C$20)*$E$21)+$D$21),0)) -> 0 | O21: =IF(O20=$C$20,IF(O$11>$C$21,$C$21-$C$20,O$11-$C$20),0) -> 0 | P21: =IF(O21=0,0,IF(O$11<$C$21+0.01,(((O$11-$C$20)*$E$21)+$D$21),0)) -> 0 | Q21: =IF(Q20=$C$20,IF(Q$11>$C$21,$C$21-$C$20,Q$11-$C$20),0) -> 0 | R21: =IF(Q21=0,0,IF(Q$11<$C$21+0.01,(((Q$11-$C$20)*$E$21)+$D$21),0)) -> 0 | S21: exceeds $37,000 but is not more than $48,000, you will be entitled to an offset amount of $255, plus 7.5% of the excess above $37,000 to a maximum offset of $1,080 on your tax payable.
B22: 48001 | C22: 90000 | D22: 0 | G22: =IF(G21+G20=$C$21,IF(G$11>$C$22,$C$22-$C$21,G$11-$C$21),0) -> 0 | H22: =IF(G22=0,0,IF(G$11<$C$22+0.01,(((G$11-$C$21)*$E$22)+$D$22),0)) -> 0 | I22: =IF(I21+I20=$C$21,IF(I$11>$C$22,$C$22-$C$21,I$11-$C$21),0) -> 0 | J22: =IF(I22=0,0,IF(I$11<$C$22+0.01,(((I$11-$C$21)*$E$22)+$D$22),0)) -> 0 | K22: =IF(K21+K20=$C$21,IF(K$11>$C$22,$C$22-$C$21,K$11-$C$21),0) -> 0 | L22: =IF(K22=0,0,IF(K$11<$C$22+0.01,(((K$11-$C$21)*$E$22)+$D$22),0)) -> 0 | M22: =IF(M21+M20=$C$21,IF(M$11>$C$22,$C$22-$C$21,M$11-$C$21),0) -> 0 | N22: =IF(M22=0,0,IF(M$11<$C$22+0.01,(((M$11-$C$21)*$E$22)+$D$22),0)) -> 0 | O22: =IF(O21+O20=$C$21,IF(O$11>$C$22,$C$22-$C$21,O$11-$C$21),0) -> 0 | P22: =IF(O22=0,0,IF(O$11<$C$22+0.01,(((O$11-$C$21)*$E$22)+$D$22),0)) -> 0 | Q22: =IF(Q21+Q20=$C$21,IF(Q$11>$C$22,$C$22-$C$21,Q$11-$C$21),0) -> 0 | R22: =IF(Q22=0,0,IF(Q$11<$C$22+0.01,(((Q$11-$C$21)*$E$22)+$D$22),0)) -> 0 | S22: exceeds $48,000 but is not more than $90,000, you will be entitled to the maximum offset amount of $1,080 on your tax payable.
B23: 90001 | C23: 126000 | D23: 0 | E23: -0.03 | G23: =IF(G22+G21+G20=$C$22,IF(G$11>$C$23,$C$23-$C$22,G$11-$C$22),0) -> 0 | H23: =IF(G23=0,0,IF(G$11<$C$23+0.01,(((G$11-$C$22)*$E$23)+$D$23),0)) -> 0 | I23: =IF(I22+I21+I20=$C$22,IF(I$11>$C$23,$C$23-$C$22,I$11-$C$22),0) -> 0 | J23: =IF(I23=0,0,IF(I$11<$C$23+0.01,(((I$11-$C$22)*$E$23)+$D$23),0)) -> 0 | K23: =IF(K22+K21+K20=$C$22,IF(K$11>$C$23,$C$23-$C$22,K$11-$C$22),0) -> 0 | L23: =IF(K23=0,0,IF(K$11<$C$23+0.01,(((K$11-$C$22)*$E$23)+$D$23),0)) -> 0 | M23: =IF(M22+M21+M20=$C$22,IF(M$11>$C$23,$C$23-$C$22,M$11-$C$22),0) -> 0 | N23: =IF(M23=0,0,IF(M$11<$C$23+0.01,(((M$11-$C$22)*$E$23)+$D$23),0)) -> 0 | O23: =IF(O22+O21+O20=$C$22,IF(O$11>$C$23,$C$23-$C$22,O$11-$C$22),0) -> 0 | P23: =IF(O23=0,0,IF(O$11<$C$23+0.01,(((O$11-$C$22)*$E$23)+$D$23),0)) -> 0 | Q23: =IF(Q22+Q21+Q20=$C$22,IF(Q$11>$C$23,$C$23-$C$22,Q$11-$C$22),0) -> 0 | R23: =IF(Q23=0,0,IF(Q$11<$C$23+0.01,(((Q$11-$C$22)*$E$23)+$D$23),0)) -> 0 | S23: exceeds $90,000 but is not more than $126,000, you will be entitled to an offset amount $1,080 less 3% of your taxable income above $90,000.
B24: 126001 | C24: 100000000 | G24: =IF(G23+G22+G21+G20=$C$23,IF(G$11>$C$24,$C$24-$C$23,G$11-$C$23),0) -> 0 | I24: =IF(I23+I22+I21+I20=$C$23,IF(I$11>$C$24,$C$24-$C$23,I$11-$C$23),0) -> 0 | K24: =IF(K23+K22+K21+K20=$C$23,IF(K$11>$C$24,$C$24-$C$23,K$11-$C$23),0) -> 0 | M24: =IF(M23+M22+M21+M20=$C$23,IF(M$11>$C$24,$C$24-$C$23,M$11-$C$23),0) -> 0 | O24: =IF(O23+O22+O21+O20=$C$23,IF(O$11>$C$24,$C$24-$C$23,O$11-$C$23),0) -> 0 | Q24: =IF(Q23+Q22+Q21+Q20=$C$23,IF(Q$11>$C$24,$C$24-$C$23,Q$11-$C$23),0) -> 0
E25: Low & Middle Income Tax Offse Totals: | G25: =SUM(G19:G24) -> 0 | H25: 0 | I25: 0 | J25: 0 | K25: 0 | L25: 0 | M25: 0 | N25: 0 | O25: 0 | P25: 0 | Q25: 0 | R25: 0
A27: Low Income Tax Offset | D27: Tax Offset | E27: Tax Offset %
B28: 0 | C28: 37500 | D28: 700 | G28: =IF(G$11>$C$28,$C$28,G$11) -> 0 | H28: =IF(G$11<$C$28+0.01,$D$28,0) -> 700 | I28: =IF(I$11>$C$28,$C$28,I$11) -> 0 | J28: =IF(I$11<$C$28+0.01,$D$28,0) -> 700 | K28: =IF(K$11>$C$28,$C$28,K$11) -> 0 | L28: =IF(K$11<$C$28+0.01,$D$28,0) -> 700 | M28: =IF(M$11>$C$28,$C$28,M$11) -> 0 | N28: =IF(M$11<$C$28+0.01,$D$28,0) -> 700 | O28: =IF(O$11>$C$28,$C$28,O$11) -> 0 | P28: =IF(O$11<$C$28+0.01,$D$28,0) -> 700 | Q28: =IF(Q$11>$C$28,$C$28,Q$11) -> 0 | R28: =IF(Q$11<$C$28+0.01,$D$28,0) -> 700 | S28: The maximum tax offset of $700 applies if your taxable income is $37,500 or less. \
B29: 37501 | C29: 45000 | D29: 700 | E29: -0.05 | G29: =IF(G28=$C$28,IF(G$11>$C$29,$C$29-$C$28,G$11-$C$28),0) -> 0 | H29: =IF(G29=0,0,IF(G$11<$C$29+0.01,(((G$11-$C$28)*$E$29)+$D$29),0)) -> 0 | I29: =IF(I28=$C$28,IF(I$11>$C$29,$C$29-$C$28,I$11-$C$28),0) -> 0 | J29: =IF(I29=0,0,IF(I$11<$C$29+0.01,(((I$11-$C$28)*$E$29)+$D$29),0)) -> 0 | K29: =IF(K28=$C$28,IF(K$11>$C$29,$C$29-$C$28,K$11-$C$28),0) -> 0 | L29: =IF(K29=0,0,IF(K$11<$C$29+0.01,(((K$11-$C$28)*$E$29)+$D$29),0)) -> 0 | M29: =IF(M28=$C$28,IF(M$11>$C$29,$C$29-$C$28,M$11-$C$28),0) -> 0 | N29: =IF(M29=0,0,IF(M$11<$C$29+0.01,(((M$11-$C$28)*$E$29)+$D$29),0)) -> 0 | O29: =IF(O28=$C$28,IF(O$11>$C$29,$C$29-$C$28,O$11-$C$28),0) -> 0 | P29: =IF(O29=0,0,IF(O$11<$C$29+0.01,(((O$11-$C$28)*$E$29)+$D$29),0)) -> 0 | Q29: =IF(Q28=$C$28,IF(Q$11>$C$29,$C$29-$C$28,Q$11-$C$28),0) -> 0 | R29: =IF(Q29=0,0,IF(Q$11<$C$29+0.01,(((Q$11-$C$28)*$E$29)+$D$29),0)) -> 0 | S29: This amount is reduced by 5 cents for each dollar over $37,500 up to $45,000.
B30: 45001 | C30: 66667 | D30: 325 | E30: -0.015 | G30: =IF(G29+G28=$C$29,IF(G$11>$C$30,$C$30-$C$29,G$11-$C$29),0) -> 0 | H30: =IF(G30=0,0,IF(G$11<$C$30+0.01,(((G$11-$C$29)*$E$30)+$D$30),0)) -> 0 | I30: =IF(I29+I28=$C$29,IF(I$11>$C$30,$C$30-$C$29,I$11-$C$29),0) -> 0 | J30: =IF(I30=0,0,IF(I$11<$C$30+0.01,(((I$11-$C$29)*$E$30)+$D$30),0)) -> 0 | K30: =IF(K29+K28=$C$29,IF(K$11>$C$30,$C$30-$C$29,K$11-$C$29),0) -> 0 | L30: =IF(K30=0,0,IF(K$11<$C$30+0.01,(((K$11-$C$29)*$E$30)+$D$30),0)) -> 0 | M30: =IF(M29+M28=$C$29,IF(M$11>$C$30,$C$30-$C$29,M$11-$C$29),0) -> 0 | N30: =IF(M30=0,0,IF(M$11<$C$30+0.01,(((M$11-$C$29)*$E$30)+$D$30),0)) -> 0 | O30: =IF(O29+O28=$C$29,IF(O$11>$C$30,$C$30-$C$29,O$11-$C$29),0) -> 0 | P30: =IF(O30=0,0,IF(O$11<$C$30+0.01,(((O$11-$C$29)*$E$30)+$D$30),0)) -> 0 | Q30: =IF(Q29+Q28=$C$29,IF(Q$11>$C$30,$C$30-$C$29,Q$11-$C$29),0) -> 0 | R30: =IF(Q30=0,0,IF(Q$11<$C$30+0.01,(((Q$11-$C$29)*$E$30)+$D$30),0)) -> 0 | S30: This amount is reduced by 1.55 cents for each dollar over $45,000 up to $66,667
B31: 66668 | C31: 100000000 | G31: =IF(G29+G28+G30=$C$30,IF(G$11>$C$31,$C$31-$C$30,G$11-$C$30),0) -> 0 | H31: =IF(G31=0,0,IF(G$11<$C$31+0.01,(((G$11-$C$29)*$E$31)+$D$31),0)) -> 0 | I31: =IF(I29+I28+I30=$C$30,IF(I$11>$C$31,$C$31-$C$30,I$11-$C$30),0) -> 0 | J31: =IF(I31=0,0,IF(I$11<$C$31+0.01,(((I$11-$C$29)*$E$31)+$D$31),0)) -> 0 | K31: =IF(K29+K28+K30=$C$30,IF(K$11>$C$31,$C$31-$C$30,K$11-$C$30),0) -> 0 | L31: =IF(K31=0,0,IF(K$11<$C$31+0.01,(((K$11-$C$29)*$E$31)+$D$31),0)) -> 0 | M31: =IF(M29+M28+M30=$C$30,IF(M$11>$C$31,$C$31-$C$30,M$11-$C$30),0) -> 0 | N31: =IF(M31=0,0,IF(M$11<$C$31+0.01,(((M$11-$C$29)*$E$31)+$D$31),0)) -> 0 | O31: =IF(O29+O28+O30=$C$30,IF(O$11>$C$31,$C$31-$C$30,O$11-$C$30),0) -> 0 | P31: =IF(O31=0,0,IF(O$11<$C$31+0.01,(((O$11-$C$29)*$E$31)+$D$31),0)) -> 0 | Q31: =IF(Q29+Q28+Q30=$C$30,IF(Q$11>$C$31,$C$31-$C$30,Q$11-$C$30),0) -> 0 | R31: =IF(Q31=0,0,IF(Q$11<$C$31+0.01,(((Q$11-$C$29)*$E$31)+$D$31),0)) -> 0
E32: Low Income Tax Offset Totals: | H32: =SUM(H28:H31) -> 700 | J32: =SUM(J28:J31) -> 700 | L32: =SUM(L28:L31) -> 700 | N32: =SUM(N28:N31) -> 700 | P32: =SUM(P28:P31) -> 700 | R32: =SUM(R28:R31) -> 700
E34: Total Tax | H34: =IF(H17-H25-H32<0,0,H17-H25-H32) -> 0 | J34: =IF(J17-J25-J32<0,0,J17-J25-J32) -> 0 | L34: =IF(L17-L25-L32<0,0,L17-L25-L32) -> 0 | N34: =IF(N17-N25-N32<0,0,N17-N25-N32) -> 0 | P34: =IF(P17-P25-P32<0,0,P17-P25-P32) -> 0 | R34: =IF(R17-R25-R32<0,0,R17-R25-R32) -> 0
A36: Medicare Levy (Yearly) | S36: In 2018–19, you do not have to pay the Medicare levy if your taxable income is equal to or less than $22,398
B37: 0 | C37: 24276 | D37: 0 | E37: 0 | G37: =IF(G$11>$C$37,$C$37,G$11) -> 0 | H37: =IF(G$11<$C$37+0.01,$D$37,0) -> 0 | I37: =IF(I$11>$C$37,$C$37,I$11) -> 0 | J37: =IF(I$11<$C$37+0.01,$D$37,0) -> 0 | K37: =IF(K$11>$C$37,$C$37,K$11) -> 0 | L37: =IF(K$11<$C$37+0.01,$D$37,0) -> 0 | M37: =IF(M$11>$C$37,$C$37,M$11) -> 0 | N37: =IF(M$11<$C$37+0.01,$D$37,0) -> 0 | O37: =IF(O$11>$C$37,$C$37,O$11) -> 0 | P37: =IF(O$11<$C$37+0.01,$D$37,0) -> 0 | Q37: =IF(Q$11>$C$37,$C$37,Q$11) -> 0 | R37: =IF(Q$11<$C$37+0.01,$D$37,0) -> 0 | S37: You will pay only part of the Medicare levy if your taxable income is between $22,398 and $27,997
B38: 24276 | C38: 30345 | D38: 0 | E38: 0.1 | G38: =IF(G37=$C$37,IF(G$11>$C$38,$C$38-$C$37,G$11-$C$37),0) -> 0 | H38: =IF(G38=0,0,IF(G$11<$C$38+0.01,(((G$11-$C$37)*$E$38)+$D$38),0)) -> 0 | I38: =IF(I37=$C$37,IF(I$11>$C$38,$C$38-$C$37,I$11-$C$37),0) -> 0 | J38: =IF(I38=0,0,IF(I$11<$C$38+0.01,(((I$11-$C$37)*$E$38)+$D$38),0)) -> 0 | K38: =IF(K37=$C$37,IF(K$11>$C$38,$C$38-$C$37,K$11-$C$37),0) -> 0 | L38: =IF(K38=0,0,IF(K$11<$C$38+0.01,(((K$11-$C$37)*$E$38)+$D$38),0)) -> 0 | M38: =IF(M37=$C$37,IF(M$11>$C$38,$C$38-$C$37,M$11-$C$37),0) -> 0 | N38: =IF(M38=0,0,IF(M$11<$C$38+0.01,(((M$11-$C$37)*$E$38)+$D$38),0)) -> 0 | O38: =IF(O37=$C$37,IF(O$11>$C$38,$C$38-$C$37,O$11-$C$37),0) -> 0 | P38: =IF(O38=0,0,IF(O$11<$C$38+0.01,(((O$11-$C$37)*$E$38)+$D$38),0)) -> 0 | Q38: =IF(Q37=$C$37,IF(Q$11>$C$38,$C$38-$C$37,Q$11-$C$37),0) -> 0 | R38: =IF(Q38=0,0,IF(Q$11<$C$38+0.01,(((Q$11-$C$37)*$E$38)+$D$38),0)) -> 0
B39: 30345 | C39: 100000000 | D39: =C38*2% -> 606.9 | E39: 0.02 | G39: =IF(G38+G37=$C$38,IF(G$11>$C$39,$C$39-$C$38,G$11-$C$38),0) -> 0 | H39: =IF(G39=0,0,IF(G$11<$C$39+0.01,(((G$11-$C$38)*$E$39)+$D$39),0)) -> 0 | I39: =IF(I38+I37=$C$38,IF(I$11>$C$39,$C$39-$C$38,I$11-$C$38),0) -> 0 | J39: =IF(I39=0,0,IF(I$11<$C$39+0.01,(((I$11-$C$38)*$E$39)+$D$39),0)) -> 0 | K39: =IF(K38+K37=$C$38,IF(K$11>$C$39,$C$39-$C$38,K$11-$C$38),0) -> 0 | L39: =IF(K39=0,0,IF(K$11<$C$39+0.01,(((K$11-$C$38)*$E$39)+$D$39),0)) -> 0 | M39: =IF(M38+M37=$C$38,IF(M$11>$C$39,$C$39-$C$38,M$11-$C$38),0) -> 0 | N39: =IF(M39=0,0,IF(M$11<$C$39+0.01,(((M$11-$C$38)*$E$39)+$D$39),0)) -> 0 | O39: =IF(O38+O37=$C$38,IF(O$11>$C$39,$C$39-$C$38,O$11-$C$38),0) -> 0 | P39: =IF(O39=0,0,IF(O$11<$C$39+0.01,(((O$11-$C$38)*$E$39)+$D$39),0)) -> 0 | Q39: =IF(Q38+Q37=$C$38,IF(Q$11>$C$39,$C$39-$C$38,Q$11-$C$38),0) -> 0 | R39: =IF(Q39=0,0,IF(Q$11<$C$39+0.01,(((Q$11-$C$38)*$E$39)+$D$39),0)) -> 0
E40: Medicare Levy Totals: | H40: =SUM(H37:H39) -> 0 | J40: =SUM(J37:J39) -> 0 | L40: =SUM(L37:L39) -> 0 | N40: =SUM(N37:N39) -> 0 | P40: =SUM(P37:P39) -> 0 | R40: =SUM(R37:R39) -> 0
E42: Total Tax | H42: =H34+H40 -> 0 | J42: =J34+J40 -> 0 | L42: =L34+L40 -> 0 | N42: =N34+N40 -> 0 | P42: =P34+P40 -> 0 | R42: =R34+R40 -> 0
A43: HECS/HELP Debt | G43: =IF(G7>0,G7+G9,G9) -> 0 | I43: =IF(I7>0,I7+I9,I9) -> 0 | K43: =IF(K7>0,K7+K9,K9) -> 0 | M43: =IF(M7>0,M7+M9,M9) -> 0 | O43: =IF(O7>0,O7+O9,O9) -> 0 | Q43: =IF(Q7>0,Q7+Q9,Q9) -> 0
B44: 0 | C44: 51550 | E44: 0 | G44: =IF(G$43>$C44,0,IF(G$43<$B44,0,G$43)) -> 0 | H44: =$E44*G44 -> 0 | I44: =IF(I$43>$C44,0,IF(I$43<$B44,0,I$43)) -> 0 | J44: =$E44*I44 -> 0 | K44: =IF(K$43>$C44,0,IF(K$43<$B44,0,K$43)) -> 0 | L44: =$E44*K44 -> 0 | M44: =IF(M$43>$C44,0,IF(M$43<$B44,0,M$43)) -> 0 | N44: =$E44*M44 -> 0 | O44: =IF(O$43>$C44,0,IF(O$43<$B44,0,O$43)) -> 0 | P44: =$E44*O44 -> 0 | Q44: =IF(Q$43>$C44,0,IF(Q$43<$B44,0,Q$43)) -> 0 | R44: =$E44*Q44 -> 0
B45: =C44+0.01 -> 51550.01 | C45: 59518 | E45: 0.01 | G45: 0 | H45: =$E45*G45 -> 0 | I45: 0 | J45: 0 | K45: 0 | L45: =$E45*K45 -> 0 | M45: 0 | N45: =$E45*M45 -> 0 | O45: 0 | P45: =$E45*O45 -> 0 | Q45: 0 | R45: =$E45*Q45 -> 0
B46: 59518.01 | C46: 63089 | E46: 0.02 | G46: 0 | H46: 0 | I46: 0 | J46: 0 | K46: 0 | L46: 0 | M46: 0 | N46: 0 | O46: 0 | P46: 0 | Q46: 0 | R46: 0
B47: 63089.01 | C47: 66875 | E47: 0.025 | G47: 0 | H47: 0 | I47: 0 | J47: 0 | K47: 0 | L47: 0 | M47: 0 | N47: 0 | O47: 0 | P47: 0 | Q47: 0 | R47: 0
B48: 66875.01 | C48: 70888 | E48: 0.03 | G48: 0 | H48: 0 | I48: 0 | J48: 0 | K48: 0 | L48: 0 | M48: 0 | N48: 0 | O48: 0 | P48: 0 | Q48: 0 | R48: 0
B49: 70888.01 | C49: 75140 | E49: 0.035 | G49: 0 | H49: 0 | I49: 0 | J49: 0 | K49: 0 | L49: 0 | M49: 0 | N49: 0 | O49: 0 | P49: 0 | Q49: 0 | R49: 0
B50: 75140.01 | C50: 79649 | E50: 0.04 | G50: 0 | H50: 0 | I50: 0 | J50: 0 | K50: 0 | L50: 0 | M50: 0 | N50: 0 | O50: 0 | P50: 0 | Q50: 0 | R50: 0
B51: 79649.01 | C51: 84429 | E51: 0.045 | G51: 0 | H51: 0 | I51: 0 | J51: 0 | K51: 0 | L51: 0 | M51: 0 | N51: 0 | O51: 0 | P51: 0 | Q51: 0 | R51: 0
B52: 84429.01 | C52: 89494 | E52: 0.05 | G52: 0 | H52: 0 | I52: 0 | J52: 0 | K52: 0 | L52: 0 | M52: 0 | N52: 0 | O52: 0 | P52: 0 | Q52: 0 | R52: 0
B53: 89494.01 | C53: 94865 | E53: 0.055 | G53: 0 | H53: 0 | I53: 0 | J53: 0 | K53: 0 | L53: 0 | M53: 0 | N53: 0 | O53: 0 | P53: 0 | Q53: 0 | R53: 0
B54: 94865.01 | C54: 100557 | E54: 0.06 | G54: 0 | H54: 0 | I54: 0 | J54: 0 | K54: 0 | L54: 0 | M54: 0 | N54: 0 | O54: 0 | P54: 0 | Q54: 0 | R54: 0
B55: 100557.01 | C55: 106590 | E55: 0.065 | G55: 0 | H55: 0 | I55: 0 | J55: 0 | K55: 0 | L55: 0 | M55: 0 | N55: 0 | O55: 0 | P55: 0 | Q55: 0 | R55: 0
B56: 106590.01 | C56: 112985 | E56: 0.07 | G56: 0 | H56: 0 | I56: 0 | J56: 0 | K56: 0 | L56: 0 | M56: 0 | N56: 0 | O56: 0 | P56: 0 | Q56: 0 | R56: 0
B57: 112985.01 | C57: 119764 | E57: 0.075 | G57: 0 | H57: 0 | I57: 0 | J57: 0 | K57: 0 | L57: 0 | M57: 0 | N57: 0 | O57: 0 | P57: 0 | Q57: 0 | R57: 0
B58: 119764.01 | C58: 126950 | E58: 0.08 | G58: 0 | H58: 0 | I58: 0 | J58: 0 | K58: 0 | L58: 0 | M58: 0 | N58: 0 | O58: 0 | P58: 0 | Q58: 0 | R58: 0
B59: 126950.01 | C59: 134568 | E59: 0.085 | G59: 0 | H59: 0 | I59: 0 | J59: 0 | K59: 0 | L59: 0 | M59: 0 | N59: 0 | O59: 0 | P59: 0 | Q59: 0 | R59: 0
B60: 134568.01 | C60: 142642 | E60: 0.09 | G60: 0 | H60: 0 | I60: 0 | J60: 0 | K60: 0 | L60: 0 | M60: 0 | N60: 0 | O60: 0 | P60: 0 | Q60: 0 | R60: 0
B61: 142642.01 | C61: 151200 | E61: 0.095 | G61: 0 | H61: 0 | I61: 0 | J61: 0 | K61: 0 | L61: 0 | M61: 0 | N61: 0 | O61: 0 | P61: 0 | Q61: 0 | R61: 0
B62: 151200.01 | C62: 100000000 | E62: 0.1 | G62: 0 | H62: 0 | I62: 0 | J62: 0 | K62: 0 | L62: 0 | M62: 0 | N62: 0 | O62: 0 | P62: 0 | Q62: 0 | R62: 0
E63: HECS/HELP DEBT TOTALS: | G63: =SUM(G44:G62) -> 0 | H63: 0 | I63: 0 | J63: 0 | K63: 0 | L63: 0 | M63: 0 | N63: 0 | O63: 0 | P63: 0 | Q63: 0 | R63: 0
E65: Total Tax If HECS/HELP Debt | H65: =H42+H63 -> 0 | J65: =J42+J63 -> 0 | L65: =L42+L63 -> 0 | N65: =N42+N63 -> 0 | P65: =P42+P63 -> 0 | R65: =R42+R63 -> 0
C76: 52974 | D76: 56151 | E76: 0.02
C77: 56152 | D77: 59521 | E77: 0.025
C78: 59522 | D78: 63092 | E78: 0.03
C79: 63093 | D79: 66877 | E79: 0.035
C80: 66878 | D80: 70890 | E80: 0.04
C81: 70891 | D81: 75144 | E81: 0.045
C82: 75145 | D82: 79652 | E82: 0.05
C83: 79653 | D83: 84432 | E83: 0.055
C84: 84433 | D84: 89498 | E84: 0.06
C85: 89499 | D85: 94868 | E85: 0.065
C86: 94869 | D86: 100560 | E86: 0.07
C87: 100561 | D87: 106593 | E87: 0.075
C88: 106594 | D88: 112989 | E88: 0.08
C89: 112990 | D89: 119769 | E89: 0.085
C90: 119770 | D90: 126955 | E90: 0.09
C91: 126956 | D91: 134572 | E91: 0.095
C92: 134573 | E92: 0.1

Sheet HEM (hidden)
A1: Credit Cards | C1: 0.038
A3: Combined Couple Gross Income | C3: =B4 -> 0 | D3: 22000 | E3: 33000 | F3: 44000 | G3: 55000 | H3: 66000 | I3: 87000 | J3: 109000 | K3: 131000 | L3: 153000 | M3: 175000 | N3: 218000 | O3: 273000 | P3: 328000
A4: HEM 2019Q4 | C4: 22000 | D4: 33000 | E4: 44000 | F4: 55000 | G4: 66000 | H4: 87000 | I4: 109000 | J4: 131000 | K4: 153000 | L4: 175000 | M4: 218000 | N4: 273000 | O4: 328000 | P4: 9999999
C5: 1 | D5: 2 | E5: 3 | F5: 4 | G5: 5 | H5: 6 | I5: 7 | J5: 8 | K5: 9 | L5: 10 | M5: 11 | N5: 12 | O5: 13 | P5: 14
A6: Elixir - Proposed
A7: Single | B7: IS0 | C7: =C30 -> 293.8449549 | D7: =D30 -> 310.8881899 | E7: 326.2255165 | F7: 346.1764205 | G7: 383.9305774 | H7: 442.8814733 | I7: 522.7899173 | J7: 595.4950762 | K7: 683.634548 | L7: 722.2410041 | M7: 770.5881359 | N7: 899.4447351 | O7: 1013.015181 | P7: 1079.292419
A8: Couple | B8: IC0 | C8: =C22 -> 577.3711208 | D8: =D22 -> 577.3711208 | E8: 592.8024892 | F8: 612.8757023 | G8: 650.8613518 | H8: 710.1736457 | I8: 790.5720149 | J8: 863.7229266 | K8: 952.4027412 | L8: 991.2459665 | M8: 1039.889476 | N8: 1169.536035 | O8: 1283.802851 | P8: 1350.486358
A9: Single parent with 1 child (per child) | B9: IS1 | C9: =IF(C31-C30<0,0,C31-C30) -> 111.3152162 | D9: =IF(D31-D30<0,0,D31-D30) -> 111.3152162 | E9: 111.464901 | F9: 111.6595967 | G9: 112.0280428 | H9: 112.6033662 | I9: 113.3832094 | J9: 114.0927542 | K9: 114.9528885 | L9: 115.3296569 | M9: 115.801524 | N9: 117.0590065 | O9: 118.1673642 | P9: 118.8141777
A10: Single parent with 2 children (per child) | B10: IS2 | C10: =IF(C32-C30<0,0,C32-C30)/2 -> 106.950685 | D10: =IF(D32-D30<0,0,D32-D30)/2 -> 106.950685 | E10: 106.9863671 | F10: 107.0327585 | G10: 107.1205406 | H10: 107.2576225 | I10: 107.4434181 | J10: 107.612478 | K10: 107.8174177 | L10: 107.9071978 | M10: 108.0196369 | N10: 108.3192368 | O10: 108.5833198 | P10: 108.737433
A11: Single parent with 3 children (per child) | B11: IS3 | C11: =IF(C33-C30<0,0,C33-C30)/3 -> 105.4958413 | D11: =IF(D33-D30<0,0,D33-D30)/3 -> 105.4958413 | E11: 105.4935225 | F11: 105.4904791 | G11: 105.4847065 | H11: 105.475708 | I11: 105.4634877 | J11: 105.4523859 | K11: 105.4389274 | L11: 105.4330447 | M11: 105.4256746 | N11: 105.4059802 | O11: 105.3886384 | P11: 105.3785181
A12: Single parent with 4 or more children (per child) | B12: IS4 | C12: =IF(C33-C30<0,0,C33-C30)/3 -> 105.4958413 | D12: =IF(D33-D30<0,0,D33-D30)/3 -> 105.4958413 | E12: =IF(E33-E30<0,0,E33-E30)/3 -> 105.4935225 | F12: 105.4904791 | G12: 105.4847065 | H12: 105.475708 | I12: 105.4634877 | J12: 105.4523859 | K12: 105.4389274 | L12: 105.4330447 | M12: 105.4256746 | N12: 105.4059802 | O12: 105.3886384 | P12: 105.3785181
A13: Couple with 1 child (per child) | B13: IC1 | C13: =IF(C23-C22<0,0,C23-C22) -> 91.56244499 | D13: =IF(D23-D22<0,0,D23-D22) -> 91.56244499 | E13: 91.56244499 | F13: 91.61937544 | G13: 91.72709044 | H13: 91.89529021 | I13: 92.12325534 | J13: 92.33068765 | K13: 92.58222936 | L13: 92.69230171 | M13: 92.83025757 | N13: 93.19789324 | O13: 93.52191694 | P13: 93.71100977
A14: Couple with 2 children (per child) | B14: IC2 | C14: =IF(C24-C22<0,0,C24-C22)/2 -> 80.32592559 | D14: =IF(D24-D22<0,0,D24-D22)/2 -> 80.32592559 | E14: 69.08940619 | F14: 80.33661658 | G14: 80.35688805 | H14: 80.38850502 | I14: 80.43139959 | J14: 80.47041056 | K14: 80.5176937 | L14: 80.53838069 | M14: 80.56435917 | N14: 80.63349893 | O14: 80.69439961 | P14: 80.72999871
A15: Couple with 3 children (per child) | B15: IC3 | C15: =IF(C25-C22<0,0,C25-C22)/3 -> 76.58041912 | D15: =IF(D25-D22<0,0,D25-D22)/3 -> 76.58041912 | E15: 69.08940619 | F15: 76.95410639 | G15: 76.95606656 | H15: 76.95916205 | I15: 76.96332466 | J15: 76.96711711 | K15: 76.97172834 | L15: 76.97374542 | M15: 76.97626523 | N15: 76.98299763 | O15: 76.98893137 | P15: 76.99240654
A16: Couple with 4 or more children (per child) | B16: IC4 | C16: =IF(C25-C22<0,0,C25-C22)/3 -> 76.58041912 | D16: =IF(D25-D22<0,0,D25-D22)/3 -> 76.58041912 | E16: =E15 -> 69.08940619 | F16: =IF(F25-F22<0,0,F25-F22)/3 -> 76.95410639 | G16: 76.95606656 | H16: 76.95916205 | I16: 76.96332466 | J16: 76.96711711 | K16: 76.97172834 | L16: 76.97374542 | M16: 76.97626523 | N16: 76.98299763 | O16: 76.98893137 | P16: 76.99240654
A19: Australia | C19: 0 | D19: 25000 | E19: 38000 | F19: 50000 | G19: 63000 | H19: 76000 | I19: 101000 | J19: 126000 | K19: 151000 | L19: 176000 | M19: 202000 | N19: 252000 | O19: 315000 | P19: 378000
B20: 0 | C20: 25000 | D20: 38000 | E20: 50000 | F20: 63000 | G20: 76000 | H20: 101000 | I20: 126000 | J20: 151000 | K20: 176000 | L20: 202000 | M20: 252000 | N20: 315000 | O20: 378000 | P20: 9999999
B21: 1 | C21: 2 | D21: 3 | E21: 4 | F21: 5 | G21: 6 | H21: 7 | I21: 8 | J21: 9 | K21: 10 | L21: 11 | M21: 12 | N21: 13 | O21: 14 | P21: 15
A22: Couple | B22: IC0 | C22: =D22 -> 577.3711208 | D22: 577.3711208 | E22: 592.8024892 | F22: 612.8757023 | G22: 650.8613518 | H22: 710.1736457 | I22: 790.5720149 | J22: 863.7229266 | K22: 952.4027412 | L22: 991.2459665 | M22: 1039.889476 | N22: 1169.536035 | O22: 1283.802851 | P22: 1350.486358
A23: Couple with 1 child | B23: IC1 | C23: 668.9335658 | D23: =D22+(E23-E22) -> 668.9335658 | E23: 684.3649342 | F23: 704.4950777 | G23: 742.5884423 | H23: 802.0689359 | I23: 882.6952702 | J23: 956.0536142 | K23: 1044.984971 | L23: 1083.938268 | M23: 1132.719733 | N23: 1262.733928 | O23: 1377.324768 | P23: 1444.197368
A24: Couple with 2 children | B24: IC2 | C24: 738.022972 | D24: =D23+(E24-E23) -> 738.022972 | E24: 753.4543404 | F24: 773.5489355 | G24: 811.5751279 | H24: 870.9506557 | I24: 951.4348141 | J24: 1024.663748 | K24: 1113.438129 | L24: 1152.322728 | M24: 1201.018194 | N24: 1330.803032 | O24: 1445.19165 | P24: 1511.946356
A25: Couple with 3 children | B25: IC3 | C25: 807.1123782 | D25: =D24+(D24-D23) -> 807.1123782 | E25: 822.5437466 | F25: 843.7380215 | G25: 881.7295515 | H25: 941.0511318 | I25: 1021.461989 | J25: 1094.624278 | K25: 1183.317926 | L25: 1222.167203 | M25: 1270.818271 | N25: 1400.485027 | O25: 1514.769645 | P25: 1581.463578
A26: Couple with 4 children | B26: IC4 | C26: 876.2017843 | D26: 876.2017843 | E26: 891.6331528 | F26: =F25+(F25-F24) -> 913.9271075 | G26: =G25+(G25-G24) -> 951.8839751 | H26: =H25+(H25-H24) -> 1011.151608 | I26: =I25+(I25-I24) -> 1091.489164 | J26: =J25+(J25-J24) -> 1164.584808 | K26: =K25+(K25-K24) -> 1253.197724 | L26: =L25+(L25-L24) -> 1292.011678 | M26: =M25+(M25-M24) -> 1340.618349 | N26: =N25+(N25-N24) -> 1470.167022 | O26: =O25+(O25-O24) -> 1584.34764 | P26: =P25+(P25-P24) -> 1650.9808
A27: Couple with 5 children | B27: IC5 | C27: 945.2911905 | D27: 945.2911905 | E27: 960.722559 | F27: =F26+(F26-F25) -> 984.1161934 | G27: 1022.038399 | H27: 1081.252084 | I27: 1161.516338 | J27: 1234.545338 | K27: 1323.077522 | L27: 1361.856152 | M27: 1410.418426 | N27: 1539.849017 | O27: 1653.925635 | P27: 1720.498022
A28: Couple with 6 children | B28: IC6 | C28: 1014.380597 | D28: 1014.380597 | E28: 1029.811965 | F28: =F27+(F27-F26) -> 1054.305279 | G28: 1092.192822 | H28: 1151.35256 | I28: 1231.543513 | J28: 1304.505869 | K28: 1392.957319 | L28: 1431.700627 | M28: 1480.218504 | N28: 1609.531012 | O28: 1723.50363 | P28: 1790.015244
A29: Couple with 7 children | B29: IC7 | C29: 1083.470003 | D29: 1083.470003 | E29: 1098.901371 | F29: =F28+(F28-F27) -> 1124.494365 | G29: 1162.347246 | H29: 1221.453036 | I29: 1301.570688 | J29: 1374.466399 | K29: 1462.837117 | L29: 1501.545102 | M29: 1550.018581 | N29: 1679.213007 | O29: 1793.081625 | P29: 1859.532467
A30: Single person | B30: IS0 | C30: 293.8449549 | D30: 310.8881899 | E30: 326.2255165 | F30: 346.1764205 | G30: 383.9305774 | H30: 442.8814733 | I30: 522.7899173 | J30: 595.4950762 | K30: 683.634548 | L30: 722.2410041 | M30: 770.5881359 | N30: 899.4447351 | O30: 1013.015181 | P30: 1079.292419
A31: Single parent with 1 child | B31: IS1 | C31: =C30+(D31-D30) -> 405.1601711 | D31: 422.2034061 | E31: 437.6904175 | F31: 457.8360172 | G31: 495.9586202 | H31: 555.4848394 | I31: 636.1731267 | J31: 709.5878304 | K31: 798.5874365 | L31: 837.5706611 | M31: 886.3896599 | N31: 1016.503742 | O31: 1131.182545 | P31: 1198.106597
A32: Single parent with 2 children | B32: IS2 | C32: =C31+(D32-D31) -> 507.7463249 | D32: 524.7895599 | E32: 540.1982507 | F32: 560.2419376 | G32: 598.1716586 | H32: 657.3967183 | I32: 737.6767536 | J32: 810.7200322 | K32: 899.2693833 | L32: 938.0553996 | M32: 986.6274098 | N32: 1116.083209 | O32: 1230.181821 | P32: 1296.767285
A33: Single parent with 3 children | B33: IS3 | C33: =C32+(C32-C31) -> 610.3324787 | D33: 627.3757137 | E33: 642.7060839 | F33: 662.6478579 | G33: 700.384697 | H33: 759.3085972 | I33: 839.1803805 | J33: 911.852234 | K33: 999.9513302 | L33: 1038.540138 | M33: 1086.86516 | N33: 1215.662676 | O33: 1329.181096 | P33: 1395.427973
A34: Single parent with 4 children | B34: IS4 | C34: 712.9186325 | D34: 729.9618675 | E34: =E33+(E33-E32) -> 745.2139171 | F34: =F33+(F33-F32) -> 765.0537783 | G34: =G33+(G33-G32) -> 802.5977353 | H34: =H33+(H33-H32) -> 861.2204761 | I34: =I33+(I33-I32) -> 940.6840074 | J34: =J33+(J33-J32) -> 1012.984436 | K34: =K33+(K33-K32) -> 1100.633277 | L34: =L33+(L33-L32) -> 1139.024877 | M34: =M33+(M33-M32) -> 1187.102909 | N34: =N33+(N33-N32) -> 1315.242143 | O34: =O33+(O33-O32) -> 1428.180371 | P34: =P33+(P33-P32) -> 1494.088662
A35: Single parent with 5 children | B35: IS5 | C35: 815.5047863 | D35: 832.5480213 | E35: =E34+(E34-E33) -> 847.7217503 | F35: 867.4596987 | G35: 904.8107737 | H35: 963.132355 | I35: 1042.187634 | J35: 1114.116637 | K35: 1201.315224 | L35: 1239.509615 | M35: 1287.340659 | N35: 1414.82161 | O35: 1527.179647 | P35: 1592.74935
A36: Single parent with 6 children | B36: IS6 | C36: 918.0909401 | D36: 935.1341751 | E36: =E35+(E35-E34) -> 950.2295835 | F36: 969.865619 | G36: 1007.023812 | H36: 1065.044234 | I36: 1143.691261 | J36: 1215.248839 | K36: 1301.997171 | L36: 1339.994354 | M36: 1387.578409 | N36: 1514.401077 | O36: 1626.178922 | P36: 1691.410038
A37: Single parent with 7 children | B37: IS7 | C37: 1020.677094 | D37: 1037.720329 | E37: =E36+(E36-E35) -> 1052.737417 | F37: 1072.271539 | G37: 1109.23685 | H37: 1166.956113 | I37: 1245.194888 | J37: 1316.381041 | K37: 1402.679118 | L37: 1440.479092 | M37: 1487.816159 | N37: 1613.980544 | O37: 1725.178198 | P37: 1790.070726

Sheet List (hidden)
A1: Dependents | B1: Applicant Status | C1: HouseholdStatusID | D1: Household | E1: No/Yes | G1: Interest Type
A2: 0 | B2: n/a | C2: 0 | E2: No | G2: Amortising
A3: 1 | B3: Individual (Single) | C3: IS | D3: 1 | E3: Yes | G3: Bullet
A4: 2 | B4: Individual (Couple) | C4: IC | D4: 2
A5: 3 | B5: Company | C5: C | D5: 3
A6: 4
A7: 5
A8: 6
A9: 7
B11: Residential | J11: Commercial | O11: SMSF | P11: LeaseDoc
B12: 1 | C12: 2 | D12: 3 | E12: 4 | F12: 5 | G12: 6 | J12: 1 | K12: 2 | L12: 3 | M12: 4 | N12: 5
A13: Sensitivity | B13: 0.02 | C13: 0.02 | D13: 0.02 | E13: 0.02 | F13: 0.02 | G13: 0.02 | J13: 0.02 | K13: 0.02 | L13: 0.02 | M13: 0.02 | N13: 0.02 | O13: 0.02 | P13: 0.02
A14: Borrower Rate | B14: =Residential!C96 -> 0.05 | C14: =Residential!E96 -> 0.05 | D14: =Residential!G96 -> 0.05 | E14: =Residential!I96 -> 0.05 | F14: =Residential!K96 -> 0.05 | G14: =Residential!M96 -> 0.05 | J14: =Commercial!C95 -> 0.05 | K14: =Commercial!E95 -> 0.05 | L14: =Commercial!G95 -> 0.05 | M14: =Commercial!I95 -> 0.05 | N14: =Commercial!K95 -> 0.05 | O14: =SMSF!G47 -> 0.05 | P14: =LeaseDoc!G12 -> 0.05
B15: =B13+B14 -> 0.07 | C15: 0.07 | D15: 0.07 | E15: 0.07 | F15: 0.07 | G15: 0.07 | J15: =J13+J14 -> 0.07 | K15: 0.07 | L15: 0.07 | M15: 0.07 | N15: 0.07 | O15: 0.07 | P15: 0.07
A16: Sensitivity Floor | B16: 0.0575 | C16: 0.0575 | D16: 0.0575 | E16: 0.0575 | F16: 0.0575 | G16: 0.0575 | J16: 0.0575 | K16: 0.0575 | L16: 0.0575 | M16: 0.0575 | N16: 0.0575 | O16: 0.0575 | P16: 0.0575
A22: Residential Serviceability Calculator | O22: =Menu!A6 -> Version 1.19 (1 April 2024)

Sheet Linked Picture (hidden)
A3: Country | B3: Flag | J3: =VLOOKUP(D4,I4:J16,2,FALSE) -> The information contained in this calculator is provided by ORDE Financial Pty Limited ACN 634 779 990 Australian Credit Licence 522079 and ORDE Capital Management Limited ACN 636 165 378 Australian Financial Services Licence 523150 Australian Credit Licence 523150 for illustrative purposes only and should not be regarded as a prediction, or as personal advice. Calculations are not forecasts or projections but is a tool that may assist you to make your own projections. The calculator is not intended to be a substitute for professional advice. The information in this calculator does not constitute an offer to lend, or imply the product is suitable for clients. Before acting on this general information, your client must consider its appropriateness having regard to their own objectives, financial situation and need and also seek independent financial, legal and taxation advice. No guarantee, warranty, or representation is given or implied as to the reliability or accuracy of the information use to compile each index or each calculation. ORDE Financial specifically disclaims any liability for any direct, indirect, incidental, consequential, or special damages or for any loss arising out of or in any way connected with the access to, reliance on, or use of this calculator.
A4: ORDE Financial | D4: ORDE Financial | I4: ORDE Financial | J4: The information contained in this calculator is provided by ORDE Financial Pty Limited ACN 634 779 990 Australian Credit Licence 522079 and ORDE Capital Management Limited ACN 636 165 378 Australian Financial Services Licence 523150 Australian Credit Licence 523150 for illustrative purposes only and should not be regarded as a prediction, or as personal advice. Calculations are not forecasts or projections but is a tool that may assist you to make your own projections. The calculator is not intended to be a substitute for professional advice. The information in this calculator does not constitute an offer to lend, or imply the product is suitable for clients. Before acting on this general information, your client must consider its appropriateness having regard to their own objectives, financial situation and need and also seek independent financial, legal and taxation advice. No guarantee, warranty, or representation is given or implied as to the reliability or accuracy of the information use to compile each index or each calculation. ORDE Financial specifically disclaims any liability for any direct, indirect, incidental, consequential, or special damages or for any loss arising out of or in any way connected with the access to, reliance on, or use of this calculator. | K4: ORDE Financial
A5: Resicom | I5: Resicom | J5: The information contained in this calculator is provided by SJM Financial Solutions Pty Ltd, Australian Credit License 389191 for illustrative purposes only and should not be regarded as a prediction, or as personal advice. Calculations are not forecasts or projections but is a tool that may assist you to make your own projections. The calculator is not intended to be a substitute for professional advice. The information in this calculator does not constitute an offer to lend, or imply the product is suitable for clients. Before acting on this general information, your client must consider its appropriateness having regard to their own objectives, financial situation and need and also seek independent financial, legal and taxation advice. No guarantee, warranty, or representation is given or implied as to the reliability or accuracy of the information use to compile each index or each calculation. SJM specifically disclaims any liability for any direct, indirect, incidental, consequential, or special damages or for any loss arising out of or in any way connected with the access to, reliance on, or use of this calculator.
A6: Paramount | I6: Paramount | J6: The information contained in this calculator is provided by Paramount Mortgages Pty Ltd ACN 104 607 178, Australian Credit License 392788 for illustrative purposes only and should not be regarded as a prediction, or as personal advice. Calculations are not forecasts or projections but is a tool that may assist you to make your own projections. The calculator is not intended to be a substitute for professional advice. The information in this calculator does not constitute an offer to lend, or imply the product is suitable for clients. Before acting on this general information, your client must consider its appropriateness having regard to their own objectives, financial situation and need and also seek independent financial, legal and taxation advice. No guarantee, warranty, or representation is given or implied as to the reliability or accuracy of the information use to compile each index or each calculation. Paramount specifically disclaims any liability for any direct, indirect, incidental, consequential, or special damages or for any loss arising out of or in any way connected with the access to, reliance on, or use of this calculator.
A7: Australian Financial | I7: Australian Financial | J7: The information contained in this calculator is provided by Australian Financial Mortgage Group Pty Ltd ABN 82 138 467 268, Australian Credit License 388993 for illustrative purposes only and should not be regarded as a prediction, or as personal advice. Calculations are not forecasts or projections but is a tool that may assist you to make your own projections. The calculator is not intended to be a substitute for professional advice. The information in this calculator does not constitute an offer to lend, or imply the product is suitable for clients. Before acting on this general information, your client must consider its appropriateness having regard to their own objectives, financial situation and need and also seek independent financial, legal and taxation advice. No guarantee, warranty, or representation is given or implied as to the reliability or accuracy of the information use to compile each index or each calculation. Australian Financial specifically disclaims any liability for any direct, indirect, incidental, consequential, or special damages or for any loss arising out of or in any way connected with the access to, reliance on, or use of this calculator.
A8: Tailored Capital | I8: Tailored Capital | J8: The information contained in this calculator is provided by Tailored Capital Pty Ltd ACN 614 208 007, Australian Credit License 494487 for illustrative purposes only and should not be regarded as a prediction, or as personal advice. Calculations are not forecasts or projections but is a tool that may assist you to make your own projections. The calculator is not intended to be a substitute for professional advice. The information in this calculator does not constitute an offer to lend, or imply the product is suitable for clients. Before acting on this general information, your client must consider its appropriateness having regard to their own objectives, financial situation and need and also seek independent financial, legal and taxation advice. No guarantee, warranty, or representation is given or implied as to the reliability or accuracy of the information use to compile each index or each calculation. Tailored Capital specifically disclaims any liability for any direct, indirect, incidental, consequential, or special damages or for any loss arising out of or in any way connected with the access to, reliance on, or use of this calculator.
A9: emoney | I9: eMoney | J9: The information contained in this calculator is provided by emoney pty ltd ACN 079 790 364, Australian Credit License 386 494 for illustrative purposes only and should not be regarded as a prediction, or as personal advice. Calculations are not forecasts or projections but is a tool that may assist you to make your own projections. The calculator is not intended to be a substitute for professional advice. The information in this calculator does not constitute an offer to lend, or imply the product is suitable for clients. Before acting on this general information, your client must consider its appropriateness having regard to their own objectives, financial situation and need and also seek independent financial, legal and taxation advice. No guarantee, warranty, or representation is given or implied as to the reliability or accuracy of the information use to compile each index or each calculation. emoney specifically disclaims any liability for any direct, indirect, incidental, consequential, or special damages or for any loss arising out of or in any way connected with the access to, reliance on, or use of this calculator.
A10: BMM | I10: BMM | J10: The information contained in this calculator is provided by Better Mortgage Management Pty Ltd ACN 089 835 192, Australian Credit License 389612 for illustrative purposes only and should not be regarded as a prediction, or as personal advice. Calculations are not forecasts or projections but is a tool that may assist you to make your own projections. The calculator is not intended to be a substitute for professional advice. The information in this calculator does not constitute an offer to lend, or imply the product is suitable for clients. Before acting on this general information, your client must consider its appropriateness having regard to their own objectives, financial situation and need and also seek independent financial, legal and taxation advice. No guarantee, warranty, or representation is given or implied as to the reliability or accuracy of the information use to compile each index or each calculation. Better Mortgage Management specifically disclaims any liability for any direct, indirect, incidental, consequential, or special damages or for any loss arising out of or in any way connected with the access to, reliance on, or use of this calculator.
A11: Revas MM | I11: Revas | J11: The information contained in this calculator is provided by Revas Mortgage Management Pty Ltd ACN 644 579 813, Australian Credit License 526391 for illustrative purposes only and should not be regarded as a prediction, or as personal advice. Calculations are not forecasts or projections but is a tool that may assist you to make your own projections. The calculator is not intended to be a substitute for professional advice. The information in this calculator does not constitute an offer to lend, or imply the product is suitable for clients. Before acting on this general information, your client must consider its appropriateness having regard to their own objectives, financial situation and need and also seek independent financial, legal and taxation advice. No guarantee, warranty, or representation is given or implied as to the reliability or accuracy of the information use to compile each index or each calculation. Revas Mortgage Management specifically disclaims any liability for any direct, indirect, incidental, consequential, or special damages or for any loss arising out of or in any way connected with the access to, reliance on, or use of this calculator.
A12: Allstate | I12: Allstate | J12: The information contained in this calculator is provided by Allstate Home Loans Pty Ltd ACN 089 835 192, Australian Credit License 384512 for illustrative purposes only and should not be regarded as a prediction, or as personal advice. Calculations are not forecasts or projections but is a tool that may assist you to make your own projections. The calculator is not intended to be a substitute for professional advice. The information in this calculator does not constitute an offer to lend, or imply the product is suitable for clients. Before acting on this general information, your client must consider its appropriateness having regard to their own objectives, financial situation and need and also seek independent financial, legal and taxation advice. No guarantee, warranty, or representation is given or implied as to the reliability or accuracy of the information use to compile each index or each calculation. Allstate specifically disclaims any liability for any direct, indirect, incidental, consequential, or special damages or for any loss arising out of or in any way connected with the access to, reliance on, or use of this calculator.
A13: Infinity Capital | I13: Infinity Capital | J13: The information contained in this calculator is provided by Infinity Capital Mortgage Management Pty Ltd ACN 632 265 153, Australian Credit License 528727 for illustrative purposes only and should not be regarded as a prediction, or as personal advice. Calculations are not forecasts or projections but is a tool that may assist you to make your own projections. The calculator is not intended to be a substitute for professional advice. The information in this calculator does not constitute an offer to lend, or imply the product is suitable for clients. Before acting on this general information, your client must consider its appropriateness having regard to their own objectives, financial situation and need and also seek independent financial, legal and taxation advice. No guarantee, warranty, or representation is given or implied as to the reliability or accuracy of the information use to compile each index or each calculation. Infinity Capital specifically disclaims any liability for any direct, indirect, incidental, consequential, or special damages or for any loss arising out of or in any way connected with the access to, reliance on, or use of this calculator.
A14: Your Manager | I14: Your Manager | J14: The information contained in this calculator is provided by Your Manager Pty Ltd ACN 142 152 323, Australian Credit License 506104 for illustrative purposes only and should not be regarded as a prediction, or as personal advice. Calculations are not forecasts or projections but is a tool that may assist you to make your own projections. The calculator is not intended to be a substitute for professional advice. The information in this calculator does not constitute an offer to lend, or imply the product is suitable for clients. Before acting on this general information, your client must consider its appropriateness having regard to their own objectives, financial situation and need and also seek independent financial, legal and taxation advice. No guarantee, warranty, or representation is given or implied as to the reliability or accuracy of the information use to compile each index or each calculation. Your Manager specifically disclaims any liability for any direct, indirect, incidental, consequential, or special damages or for any loss arising out of or in any way connected with the access to, reliance on, or use of this calculator.
A15: HY Capital | I15: HY Capital | J15: The information contained in this calculator is provided by HY Capital Pty Ltd ACN 146 212 151, Australian Credit License 382846 for illustrative purposes only and should not be regarded as a prediction, or as personal advice. Calculations are not forecasts or projections but is a tool that may assist you to make your own projections. The calculator is not intended to be a substitute for professional advice. The information in this calculator does not constitute an offer to lend, or imply the product is suitable for clients. Before acting on this general information, your client must consider its appropriateness having regard to their own objectives, financial situation and need and also seek independent financial, legal and taxation advice. No guarantee, warranty, or representation is given or implied as to the reliability or accuracy of the information use to compile each index or each calculation. HY Capital specifically disclaims any liability for any direct, indirect, incidental, consequential, or special damages or for any loss arising out of or in any way connected with the access to, reliance on, or use of this calculator.
